Organisation Name,Organisation Code,Unique Ref No,Effective Date,Directorate  where expenditure incurred,Supplier Name,Payment Date,Net Amount,Procurement Classification (Higher Level),Purpose of Spend,Procurement Classification (Lower Level),Capital/Revenue
Walsall Council,http://opendatacommunities.org/id/metropolitan-district-council/walsall,WC104-01,31/05/2019,Childrens,11KBW,14/05/2019,"3,675.00",73014-LEGAL FEES-PRIV CONTRACTOR FEES,GENERAL MANAGEMENT SUPPORT (INC LEGAL),Third Party Payments,Revenue
Walsall Council,http://opendatacommunities.org/id/metropolitan-district-council/walsall,WC104-02,31/05/2019,Childrens,247 CARS (WILLENHALL) LIMITED,15/05/2019,475.00,52000-WITH DRIVER-HIRE OF VEHICLES,HOME TO SCHOOL TRANSPORT,Transport,Revenue
Walsall Council,http://opendatacommunities.org/id/metropolitan-district-council/walsall,WC104-03,31/05/2019,Childrens,247 CARS (WILLENHALL) LIMITED,15/05/2019,"4,236.00",52000-WITH DRIVER-HIRE OF VEHICLES,HOME TO SCHOOL TRANSPORT,Transport,Revenue
Walsall Council,http://opendatacommunities.org/id/metropolitan-district-council/walsall,WC104-04,31/05/2019,Resources and Transformation,2HILLS CONSULTANCY,08/05/2019,"1,594.75",63102-CONSULTANTS FEES - CORPORATE,COMMUNITY SAFETY 2012/2013,Supplies & Services,Revenue
Walsall Council,http://opendatacommunities.org/id/metropolitan-district-council/walsall,WC104-05,31/05/2019,Resources and Transformation,31ST SUTTON COLDFIELD WEST SCOUT GROUP BUILDING FUND,17/05/2019,425.00,63128-HIRE OF ROOM-SERVICES-FEES,ELECTORAL ADMINISTRATION,Supplies & Services,Revenue
Walsall Council,http://opendatacommunities.org/id/metropolitan-district-council/walsall,WC104-06,31/05/2019,Adult Social Care,39 ESSEX STREET LLP PFA,13/05/2019,800.00,73014-LEGAL FEES-PRIV CONTRACTOR FEES,SAFEGUARDING,Third Party Payments,Revenue
Walsall Council,http://opendatacommunities.org/id/metropolitan-district-council/walsall,WC104-07,31/05/2019,Resources and Transformation,39 ESSEX STREET LLP PFA,16/05/2019,"3,000.00",73014-LEGAL FEES-PRIV CONTRACTOR FEES,LAW LIBRARY,Third Party Payments,Revenue
Walsall Council,http://opendatacommunities.org/id/metropolitan-district-council/walsall,WC104-08,31/05/2019,Childrens,3PB BARRISTERS,01/05/2019,700.00,73014-LEGAL FEES-PRIV CONTRACTOR FEES,GENERAL MANAGEMENT SUPPORT (INC LEGAL),Third Party Payments,Revenue
Walsall Council,http://opendatacommunities.org/id/metropolitan-district-council/walsall,WC104-09,31/05/2019,Childrens,3PB BARRISTERS,13/05/2019,"1,250.00",73014-LEGAL FEES-PRIV CONTRACTOR FEES,GENERAL MANAGEMENT SUPPORT (INC LEGAL),Third Party Payments,Revenue
Walsall Council,http://opendatacommunities.org/id/metropolitan-district-council/walsall,WC104-10,31/05/2019,Adult Social Care,5 CARE SERVICES LTD,24/05/2019,261.60,73507-DOMICILIARY CARE,PHYSICAL SUPPORT,Third Party Payments,Revenue
Walsall Council,http://opendatacommunities.org/id/metropolitan-district-council/walsall,WC104-11,31/05/2019,Adult Social Care,5 CARE SERVICES LTD,24/05/2019,268.67,73507-DOMICILIARY CARE,PHYSICAL SUPPORT,Third Party Payments,Revenue
Walsall Council,http://opendatacommunities.org/id/metropolitan-district-council/walsall,WC104-12,31/05/2019,Adult Social Care,5 CARE SERVICES LTD,24/05/2019,269.03,73507-DOMICILIARY CARE,SENSORY SUPPORT,Third Party Payments,Revenue
Walsall Council,http://opendatacommunities.org/id/metropolitan-district-council/walsall,WC104-13,31/05/2019,Adult Social Care,5 CARE SERVICES LTD,24/05/2019,302.33,73507-DOMICILIARY CARE,SOCIAL SUPPORT,Third Party Payments,Revenue
Walsall Council,http://opendatacommunities.org/id/metropolitan-district-council/walsall,WC104-14,31/05/2019,Adult Social Care,5 CARE SERVICES LTD,24/05/2019,303.26,73507-DOMICILIARY CARE,PHYSICAL SUPPORT,Third Party Payments,Revenue
Walsall Council,http://opendatacommunities.org/id/metropolitan-district-council/walsall,WC104-15,31/05/2019,Adult Social Care,5 CARE SERVICES LTD,24/05/2019,308.05,73507-DOMICILIARY CARE,PHYSICAL SUPPORT,Third Party Payments,Revenue
Walsall Council,http://opendatacommunities.org/id/metropolitan-district-council/walsall,WC104-16,31/05/2019,Adult Social Care,5 CARE SERVICES LTD,24/05/2019,324.34,73507-DOMICILIARY CARE,SENSORY SUPPORT,Third Party Payments,Revenue
Walsall Council,http://opendatacommunities.org/id/metropolitan-district-council/walsall,WC104-17,31/05/2019,Adult Social Care,5 CARE SERVICES LTD,24/05/2019,330.53,73507-DOMICILIARY CARE,MENTAL HEALTH SUPPORT,Third Party Payments,Revenue
Walsall Council,http://opendatacommunities.org/id/metropolitan-district-council/walsall,WC104-18,31/05/2019,Childrens,5 CARE SERVICES LTD,14/05/2019,343.00,63000-PROFESSIONAL FEES AND SERVICES,DIRECTLY COMMISSIONED NURSING SERVICES,Supplies & Services,Revenue
Walsall Council,http://opendatacommunities.org/id/metropolitan-district-council/walsall,WC104-19,31/05/2019,Adult Social Care,5 CARE SERVICES LTD,24/05/2019,344.67,73507-DOMICILIARY CARE,PHYSICAL SUPPORT,Third Party Payments,Revenue
Walsall Council,http://opendatacommunities.org/id/metropolitan-district-council/walsall,WC104-20,31/05/2019,Adult Social Care,5 CARE SERVICES LTD,24/05/2019,347.79,73507-DOMICILIARY CARE,PHYSICAL SUPPORT,Third Party Payments,Revenue
Walsall Council,http://opendatacommunities.org/id/metropolitan-district-council/walsall,WC104-21,31/05/2019,Adult Social Care,5 CARE SERVICES LTD,24/05/2019,381.52,73507-DOMICILIARY CARE,PHYSICAL SUPPORT,Third Party Payments,Revenue
Walsall Council,http://opendatacommunities.org/id/metropolitan-district-council/walsall,WC104-22,31/05/2019,Adult Social Care,5 CARE SERVICES LTD,24/05/2019,390.15,73507-DOMICILIARY CARE,PHYSICAL SUPPORT,Third Party Payments,Revenue
Walsall Council,http://opendatacommunities.org/id/metropolitan-district-council/walsall,WC104-23,31/05/2019,Adult Social Care,5 CARE SERVICES LTD,24/05/2019,394.78,73507-DOMICILIARY CARE,PHYSICAL SUPPORT,Third Party Payments,Revenue
Walsall Council,http://opendatacommunities.org/id/metropolitan-district-council/walsall,WC104-24,31/05/2019,Adult Social Care,5 CARE SERVICES LTD,24/05/2019,398.38,73507-DOMICILIARY CARE,PHYSICAL SUPPORT,Third Party Payments,Revenue
Walsall Council,http://opendatacommunities.org/id/metropolitan-district-council/walsall,WC104-25,31/05/2019,Adult Social Care,5 CARE SERVICES LTD,24/05/2019,400.82,73507-DOMICILIARY CARE,PHYSICAL SUPPORT,Third Party Payments,Revenue
Walsall Council,http://opendatacommunities.org/id/metropolitan-district-council/walsall,WC104-26,31/05/2019,Adult Social Care,5 CARE SERVICES LTD,24/05/2019,428.56,73507-DOMICILIARY CARE,PHYSICAL SUPPORT,Third Party Payments,Revenue
Walsall Council,http://opendatacommunities.org/id/metropolitan-district-council/walsall,WC104-27,31/05/2019,Adult Social Care,5 CARE SERVICES LTD,24/05/2019,430.92,73507-DOMICILIARY CARE,PHYSICAL SUPPORT,Third Party Payments,Revenue
Walsall Council,http://opendatacommunities.org/id/metropolitan-district-council/walsall,WC104-28,31/05/2019,Adult Social Care,5 CARE SERVICES LTD,24/05/2019,461.09,73507-DOMICILIARY CARE,PHYSICAL SUPPORT,Third Party Payments,Revenue
Walsall Council,http://opendatacommunities.org/id/metropolitan-district-council/walsall,WC104-29,31/05/2019,Adult Social Care,5 CARE SERVICES LTD,24/05/2019,466.06,73507-DOMICILIARY CARE,PHYSICAL SUPPORT,Third Party Payments,Revenue
Walsall Council,http://opendatacommunities.org/id/metropolitan-district-council/walsall,WC104-30,31/05/2019,Adult Social Care,5 CARE SERVICES LTD,24/05/2019,473.23,73507-DOMICILIARY CARE,SENSORY SUPPORT,Third Party Payments,Revenue
Walsall Council,http://opendatacommunities.org/id/metropolitan-district-council/walsall,WC104-31,31/05/2019,Adult Social Care,5 CARE SERVICES LTD,24/05/2019,497.78,73507-DOMICILIARY CARE,PHYSICAL SUPPORT,Third Party Payments,Revenue
Walsall Council,http://opendatacommunities.org/id/metropolitan-district-council/walsall,WC104-32,31/05/2019,Adult Social Care,5 CARE SERVICES LTD,24/05/2019,497.82,73507-DOMICILIARY CARE,PHYSICAL SUPPORT,Third Party Payments,Revenue
Walsall Council,http://opendatacommunities.org/id/metropolitan-district-council/walsall,WC104-33,31/05/2019,Adult Social Care,5 CARE SERVICES LTD,24/05/2019,521.39,73507-DOMICILIARY CARE,PHYSICAL SUPPORT,Third Party Payments,Revenue
Walsall Council,http://opendatacommunities.org/id/metropolitan-district-council/walsall,WC104-34,31/05/2019,Adult Social Care,5 CARE SERVICES LTD,24/05/2019,543.52,73507-DOMICILIARY CARE,PHYSICAL SUPPORT,Third Party Payments,Revenue
Walsall Council,http://opendatacommunities.org/id/metropolitan-district-council/walsall,WC104-35,31/05/2019,Adult Social Care,5 CARE SERVICES LTD,24/05/2019,543.86,73507-DOMICILIARY CARE,PHYSICAL SUPPORT,Third Party Payments,Revenue
Walsall Council,http://opendatacommunities.org/id/metropolitan-district-council/walsall,WC104-36,31/05/2019,Adult Social Care,5 CARE SERVICES LTD,24/05/2019,546.72,73507-DOMICILIARY CARE,PHYSICAL SUPPORT,Third Party Payments,Revenue
Walsall Council,http://opendatacommunities.org/id/metropolitan-district-council/walsall,WC104-37,31/05/2019,Adult Social Care,5 CARE SERVICES LTD,24/05/2019,554.11,73507-DOMICILIARY CARE,PHYSICAL SUPPORT,Third Party Payments,Revenue
Walsall Council,http://opendatacommunities.org/id/metropolitan-district-council/walsall,WC104-38,31/05/2019,Adult Social Care,5 CARE SERVICES LTD,24/05/2019,575.38,73507-DOMICILIARY CARE,PHYSICAL SUPPORT,Third Party Payments,Revenue
Walsall Council,http://opendatacommunities.org/id/metropolitan-district-council/walsall,WC104-39,31/05/2019,Adult Social Care,5 CARE SERVICES LTD,24/05/2019,616.29,73507-DOMICILIARY CARE,PHYSICAL SUPPORT,Third Party Payments,Revenue
Walsall Council,http://opendatacommunities.org/id/metropolitan-district-council/walsall,WC104-40,31/05/2019,Adult Social Care,5 CARE SERVICES LTD,24/05/2019,616.93,73507-DOMICILIARY CARE,PHYSICAL SUPPORT,Third Party Payments,Revenue
Walsall Council,http://opendatacommunities.org/id/metropolitan-district-council/walsall,WC104-41,31/05/2019,Adult Social Care,5 CARE SERVICES LTD,24/05/2019,687.57,73507-DOMICILIARY CARE,PHYSICAL SUPPORT,Third Party Payments,Revenue
Walsall Council,http://opendatacommunities.org/id/metropolitan-district-council/walsall,WC104-42,31/05/2019,Adult Social Care,5 CARE SERVICES LTD,24/05/2019,700.16,73507-DOMICILIARY CARE,PHYSICAL SUPPORT,Third Party Payments,Revenue
Walsall Council,http://opendatacommunities.org/id/metropolitan-district-council/walsall,WC104-43,31/05/2019,Adult Social Care,5 CARE SERVICES LTD,24/05/2019,709.78,73507-DOMICILIARY CARE,LEARNING DISABILITY SUPPORT,Third Party Payments,Revenue
Walsall Council,http://opendatacommunities.org/id/metropolitan-district-council/walsall,WC104-44,31/05/2019,Adult Social Care,5 CARE SERVICES LTD,24/05/2019,786.06,73507-DOMICILIARY CARE,PHYSICAL SUPPORT,Third Party Payments,Revenue
Walsall Council,http://opendatacommunities.org/id/metropolitan-district-council/walsall,WC104-45,31/05/2019,Adult Social Care,5 CARE SERVICES LTD,24/05/2019,794.34,73507-DOMICILIARY CARE,PHYSICAL SUPPORT,Third Party Payments,Revenue
Walsall Council,http://opendatacommunities.org/id/metropolitan-district-council/walsall,WC104-46,31/05/2019,Adult Social Care,5 CARE SERVICES LTD,24/05/2019,868.18,73507-DOMICILIARY CARE,PHYSICAL SUPPORT,Third Party Payments,Revenue
Walsall Council,http://opendatacommunities.org/id/metropolitan-district-council/walsall,WC104-47,31/05/2019,Adult Social Care,5 CARE SERVICES LTD,24/05/2019,890.50,73507-DOMICILIARY CARE,PHYSICAL SUPPORT,Third Party Payments,Revenue
Walsall Council,http://opendatacommunities.org/id/metropolitan-district-council/walsall,WC104-48,31/05/2019,Adult Social Care,5 CARE SERVICES LTD,24/05/2019,924.89,73507-DOMICILIARY CARE,PHYSICAL SUPPORT,Third Party Payments,Revenue
Walsall Council,http://opendatacommunities.org/id/metropolitan-district-council/walsall,WC104-49,31/05/2019,Adult Social Care,5 CARE SERVICES LTD,24/05/2019,958.38,73507-DOMICILIARY CARE,PHYSICAL SUPPORT,Third Party Payments,Revenue
Walsall Council,http://opendatacommunities.org/id/metropolitan-district-council/walsall,WC104-50,31/05/2019,Adult Social Care,5 CARE SERVICES LTD,24/05/2019,958.46,73507-DOMICILIARY CARE,PHYSICAL SUPPORT,Third Party Payments,Revenue
Walsall Council,http://opendatacommunities.org/id/metropolitan-district-council/walsall,WC104-51,31/05/2019,Adult Social Care,5 CARE SERVICES LTD,24/05/2019,"1,126.38",73507-DOMICILIARY CARE,PHYSICAL SUPPORT,Third Party Payments,Revenue
Walsall Council,http://opendatacommunities.org/id/metropolitan-district-council/walsall,WC104-52,31/05/2019,Adult Social Care,5 CARE SERVICES LTD,24/05/2019,"1,205.82",73507-DOMICILIARY CARE,PHYSICAL SUPPORT,Third Party Payments,Revenue
Walsall Council,http://opendatacommunities.org/id/metropolitan-district-council/walsall,WC104-53,31/05/2019,Adult Social Care,5 CARE SERVICES LTD,24/05/2019,"1,267.22",73507-DOMICILIARY CARE,PHYSICAL SUPPORT,Third Party Payments,Revenue
Walsall Council,http://opendatacommunities.org/id/metropolitan-district-council/walsall,WC104-54,31/05/2019,Adult Social Care,5 CARE SERVICES LTD,24/05/2019,"1,421.46",73507-DOMICILIARY CARE,PHYSICAL SUPPORT,Third Party Payments,Revenue
Walsall Council,http://opendatacommunities.org/id/metropolitan-district-council/walsall,WC104-55,31/05/2019,Adult Social Care,5 CARE SERVICES LTD,24/05/2019,"1,610.19",73507-DOMICILIARY CARE,PHYSICAL SUPPORT,Third Party Payments,Revenue
Walsall Council,http://opendatacommunities.org/id/metropolitan-district-council/walsall,WC104-56,31/05/2019,Adult Social Care,5 CARE SERVICES LTD,24/05/2019,"1,697.80",73507-DOMICILIARY CARE,PHYSICAL SUPPORT,Third Party Payments,Revenue
Walsall Council,http://opendatacommunities.org/id/metropolitan-district-council/walsall,WC104-57,31/05/2019,Adult Social Care,5 CARE SERVICES LTD,24/05/2019,"1,740.26",73507-DOMICILIARY CARE,PHYSICAL SUPPORT,Third Party Payments,Revenue
Walsall Council,http://opendatacommunities.org/id/metropolitan-district-council/walsall,WC104-58,31/05/2019,Adult Social Care,5 CARE SERVICES LTD,24/05/2019,"1,795.60",73507-DOMICILIARY CARE,PHYSICAL SUPPORT,Third Party Payments,Revenue
Walsall Council,http://opendatacommunities.org/id/metropolitan-district-council/walsall,WC104-59,31/05/2019,Adult Social Care,5 CARE SERVICES LTD,24/05/2019,"1,905.60",73507-DOMICILIARY CARE,PHYSICAL SUPPORT,Third Party Payments,Revenue
Walsall Council,http://opendatacommunities.org/id/metropolitan-district-council/walsall,WC104-60,31/05/2019,Adult Social Care,A & A SERVICES WEST MIDLANDS,10/05/2019,500.00,60006-NEW-FURNITURE & EQUIPMENT,SENIOR MANAGEMENT TEAM,Supplies & Services,Revenue
Walsall Council,http://opendatacommunities.org/id/metropolitan-district-council/walsall,WC104-61,31/05/2019,Economy & Environment,A ASHTON,07/05/2019,349.90,60500-GENERAL MATERIALS,INFRASTRUCTURE MAINTENANCE,Supplies & Services,Revenue
Walsall Council,http://opendatacommunities.org/id/metropolitan-district-council/walsall,WC104-62,31/05/2019,Resources and Transformation,A D T FIRE AND SECURITY PLC,23/05/2019,279.42,73002-SECURITY-PRIV CONTRACTOR FEES,CENTRALISED MAINTENANCE,Third Party Payments,Revenue
Walsall Council,http://opendatacommunities.org/id/metropolitan-district-council/walsall,WC104-63,31/05/2019,Economy & Environment,A F BLAKEMORE & SON LTD,08/05/2019,263.96,61008-CONFECTIONERY/SNACKS-PROVISIONS,OAK PARK,Supplies & Services,Revenue
Walsall Council,http://opendatacommunities.org/id/metropolitan-district-council/walsall,WC104-64,31/05/2019,Economy & Environment,A F BLAKEMORE & SON LTD,29/05/2019,339.08,61008-CONFECTIONERY/SNACKS-PROVISIONS,DARLASTON LEISURE CENTRE,Supplies & Services,Revenue
Walsall Council,http://opendatacommunities.org/id/metropolitan-district-council/walsall,WC104-65,31/05/2019,Economy & Environment,A F BLAKEMORE & SON LTD,29/05/2019,355.15,61002-DRY FOODS-PROVISIONS,WALSALL GALA CENTRE,Supplies & Services,Revenue
Walsall Council,http://opendatacommunities.org/id/metropolitan-district-council/walsall,WC104-66,31/05/2019,Economy & Environment,A F BLAKEMORE & SON LTD,15/05/2019,357.30,61008-CONFECTIONERY/SNACKS-PROVISIONS,OAK PARK,Supplies & Services,Revenue
Walsall Council,http://opendatacommunities.org/id/metropolitan-district-council/walsall,WC104-67,31/05/2019,Economy & Environment,A F BLAKEMORE & SON LTD,03/05/2019,389.84,61018-DRINKS-PROVISIONS,OAK PARK,Supplies & Services,Revenue
Walsall Council,http://opendatacommunities.org/id/metropolitan-district-council/walsall,WC104-68,31/05/2019,Adult Social Care,A F BLAKEMORE & SON LTD,08/05/2019,409.50,61016-FOOD AND BEVERAGES-PROVISIONS,GOSCOTE,Supplies & Services,Revenue
Walsall Council,http://opendatacommunities.org/id/metropolitan-district-council/walsall,WC104-69,31/05/2019,Economy & Environment,A F BLAKEMORE & SON LTD,29/05/2019,459.34,61008-CONFECTIONERY/SNACKS-PROVISIONS,OAK PARK,Supplies & Services,Revenue
Walsall Council,http://opendatacommunities.org/id/metropolitan-district-council/walsall,WC104-70,31/05/2019,Adult Social Care,A F BLAKEMORE & SON LTD,28/05/2019,481.46,61016-FOOD AND BEVERAGES-PROVISIONS,GOSCOTE,Supplies & Services,Revenue
Walsall Council,http://opendatacommunities.org/id/metropolitan-district-council/walsall,WC104-71,31/05/2019,Economy & Environment,A F BLAKEMORE & SON LTD,28/05/2019,509.69,61018-DRINKS-PROVISIONS,OAK PARK,Supplies & Services,Revenue
Walsall Council,http://opendatacommunities.org/id/metropolitan-district-council/walsall,WC104-72,31/05/2019,Economy & Environment,A F BLAKEMORE & SON LTD,08/05/2019,587.15,61018-DRINKS-PROVISIONS,OAK PARK,Supplies & Services,Revenue
Walsall Council,http://opendatacommunities.org/id/metropolitan-district-council/walsall,WC104-73,31/05/2019,Economy & Environment,A F BLAKEMORE & SON LTD,07/05/2019,655.41,61008-CONFECTIONERY/SNACKS-PROVISIONS,OAK PARK,Supplies & Services,Revenue
Walsall Council,http://opendatacommunities.org/id/metropolitan-district-council/walsall,WC104-74,31/05/2019,Economy & Environment,A F BLAKEMORE & SON LTD,01/05/2019,"1,054.73",61008-CONFECTIONERY/SNACKS-PROVISIONS,BLOXWICH LEISURE CENTRE,Supplies & Services,Revenue
Walsall Council,http://opendatacommunities.org/id/metropolitan-district-council/walsall,WC104-75,31/05/2019,Resources and Transformation,A G BARR PLC,07/05/2019,214.98,61305-CATERING,INTEGRATED FACILITIES MANAGEMENT,Supplies & Services,Revenue
Walsall Council,http://opendatacommunities.org/id/metropolitan-district-council/walsall,WC104-76,31/05/2019,Resources and Transformation,AAINA COMMUNITY HUB,20/05/2019,300.00,63128-HIRE OF ROOM-SERVICES-FEES,ELECTORAL ADMINISTRATION,Supplies & Services,Revenue
Walsall Council,http://opendatacommunities.org/id/metropolitan-district-council/walsall,WC104-77,31/05/2019,Childrens,REDACTED,07/05/2019,428.40,73506-DIRECT PAYMENT,FAMILY SUPPORT - DIRECT PAYMENTS,Third Party Payments,Revenue
Walsall Council,http://opendatacommunities.org/id/metropolitan-district-council/walsall,WC104-78,31/05/2019,Adult Social Care,ABBEY COURT NURSING & RESIDEN,24/05/2019,"1,793.43",73500-RESIDENTIAL,PHYSICAL SUPPORT,Third Party Payments,Revenue
Walsall Council,http://opendatacommunities.org/id/metropolitan-district-council/walsall,WC104-79,31/05/2019,Adult Social Care,ABBEY COURT NURSING & RESIDEN,24/05/2019,"1,948.31",73501-RESIDENTIAL EMI,PHYSICAL SUPPORT,Third Party Payments,Revenue
Walsall Council,http://opendatacommunities.org/id/metropolitan-district-council/walsall,WC104-80,31/05/2019,Adult Social Care,ABBEY COURT NURSING & RESIDEN,24/05/2019,"1,948.31",73501-RESIDENTIAL EMI,PHYSICAL SUPPORT,Third Party Payments,Revenue
Walsall Council,http://opendatacommunities.org/id/metropolitan-district-council/walsall,WC104-81,31/05/2019,Adult Social Care,ABBEY COURT NURSING & RESIDEN,24/05/2019,"1,948.31",73501-RESIDENTIAL EMI,SUPPORT WITH MEMORY & COGNITION,Third Party Payments,Revenue
Walsall Council,http://opendatacommunities.org/id/metropolitan-district-council/walsall,WC104-82,31/05/2019,Adult Social Care,ABBEY COURT NURSING & RESIDEN,24/05/2019,"2,329.47",73503-NURSING EMI,MENTAL HEALTH SUPPORT,Third Party Payments,Revenue
Walsall Council,http://opendatacommunities.org/id/metropolitan-district-council/walsall,WC104-83,31/05/2019,Adult Social Care,ABBEY COURT NURSING & RESIDEN,24/05/2019,"2,357.71",73502-NURSING,SUPPORT WITH MEMORY & COGNITION,Third Party Payments,Revenue
Walsall Council,http://opendatacommunities.org/id/metropolitan-district-council/walsall,WC104-84,31/05/2019,Adult Social Care,ABBEY COURT NURSING & RESIDEN,24/05/2019,"4,152.02",73503-NURSING EMI,PHYSICAL SUPPORT,Third Party Payments,Revenue
Walsall Council,http://opendatacommunities.org/id/metropolitan-district-council/walsall,WC104-85,31/05/2019,Adult Social Care,ABBEY HEALTHCARE HOMES LTD,24/05/2019,424.82,73502-NURSING,PHYSICAL SUPPORT,Third Party Payments,Revenue
Walsall Council,http://opendatacommunities.org/id/metropolitan-district-council/walsall,WC104-86,31/05/2019,Adult Social Care,ABBEY HEALTHCARE HOMES LTD,24/05/2019,573.52,73502-NURSING,PHYSICAL SUPPORT,Third Party Payments,Revenue
Walsall Council,http://opendatacommunities.org/id/metropolitan-district-council/walsall,WC104-87,31/05/2019,Adult Social Care,ABBEY HEALTHCARE HOMES LTD,24/05/2019,728.57,73502-NURSING,LEARNING DISABILITY SUPPORT,Third Party Payments,Revenue
Walsall Council,http://opendatacommunities.org/id/metropolitan-district-council/walsall,WC104-88,31/05/2019,Adult Social Care,ABBEY HEALTHCARE HOMES LTD,24/05/2019,750.00,73502-NURSING,LEARNING DISABILITY SUPPORT,Third Party Payments,Revenue
Walsall Council,http://opendatacommunities.org/id/metropolitan-district-council/walsall,WC104-89,31/05/2019,Adult Social Care,ABBEY HEALTHCARE HOMES LTD,24/05/2019,750.00,73502-NURSING,PHYSICAL SUPPORT,Third Party Payments,Revenue
Walsall Council,http://opendatacommunities.org/id/metropolitan-district-council/walsall,WC104-90,31/05/2019,Adult Social Care,ABBEY HEALTHCARE HOMES LTD,24/05/2019,750.00,73502-NURSING,LEARNING DISABILITY SUPPORT,Third Party Payments,Revenue
Walsall Council,http://opendatacommunities.org/id/metropolitan-district-council/walsall,WC104-91,31/05/2019,Adult Social Care,ABBEY HEALTHCARE HOMES LTD,24/05/2019,"1,287.21",73500-RESIDENTIAL,PHYSICAL SUPPORT,Third Party Payments,Revenue
Walsall Council,http://opendatacommunities.org/id/metropolitan-district-council/walsall,WC104-92,31/05/2019,Adult Social Care,ABBEY HEALTHCARE HOMES LTD,24/05/2019,"1,737.78",73500-RESIDENTIAL,PHYSICAL SUPPORT,Third Party Payments,Revenue
Walsall Council,http://opendatacommunities.org/id/metropolitan-district-council/walsall,WC104-93,31/05/2019,Adult Social Care,ABBEY HEALTHCARE HOMES LTD,24/05/2019,"2,272.50",73500-RESIDENTIAL,PHYSICAL SUPPORT,Third Party Payments,Revenue
Walsall Council,http://opendatacommunities.org/id/metropolitan-district-council/walsall,WC104-94,31/05/2019,Adult Social Care,ABBEY HEALTHCARE HOMES LTD,24/05/2019,"2,272.50",73500-RESIDENTIAL,LEARNING DISABILITY SUPPORT,Third Party Payments,Revenue
Walsall Council,http://opendatacommunities.org/id/metropolitan-district-council/walsall,WC104-95,31/05/2019,Adult Social Care,ABBEY HEALTHCARE HOMES LTD,24/05/2019,"2,272.50",73500-RESIDENTIAL,LEARNING DISABILITY SUPPORT,Third Party Payments,Revenue
Walsall Council,http://opendatacommunities.org/id/metropolitan-district-council/walsall,WC104-96,31/05/2019,Adult Social Care,ABBEY HEALTHCARE HOMES LTD,24/05/2019,"2,575.50",73500-RESIDENTIAL,LEARNING DISABILITY SUPPORT,Third Party Payments,Revenue
Walsall Council,http://opendatacommunities.org/id/metropolitan-district-council/walsall,WC104-97,31/05/2019,Adult Social Care,ABBEY HEALTHCARE HOMES LTD,24/05/2019,"3,000.00",73502-NURSING,PHYSICAL SUPPORT,Third Party Payments,Revenue
Walsall Council,http://opendatacommunities.org/id/metropolitan-district-council/walsall,WC104-98,31/05/2019,Adult Social Care,ABBEY HEALTHCARE HOMES LTD,24/05/2019,"3,022.50",73500-RESIDENTIAL,LEARNING DISABILITY SUPPORT,Third Party Payments,Revenue
Walsall Council,http://opendatacommunities.org/id/metropolitan-district-council/walsall,WC104-99,31/05/2019,Adult Social Care,ABBEY HEALTHCARE HOMES LTD,24/05/2019,"3,485.83",73503-NURSING EMI,PHYSICAL SUPPORT,Third Party Payments,Revenue
Walsall Council,http://opendatacommunities.org/id/metropolitan-district-council/walsall,WC104-100,31/05/2019,Childrens,ABC TEACHERS LIMITED,02/05/2019,"1,566.54",63000-PROFESSIONAL FEES AND SERVICES,SCHOOL IMPROVEMENT-VIRTUAL SCHOOL,Supplies & Services,Revenue
Walsall Council,http://opendatacommunities.org/id/metropolitan-district-council/walsall,WC104-101,31/05/2019,Childrens,ABC TEACHERS LIMITED,02/05/2019,"2,610.90",63000-PROFESSIONAL FEES AND SERVICES,SCHOOL IMPROVEMENT-VIRTUAL SCHOOL,Supplies & Services,Revenue
Walsall Council,http://opendatacommunities.org/id/metropolitan-district-council/walsall,WC104-102,31/05/2019,Childrens,ABC TEACHERS LIMITED,02/05/2019,"2,610.90",63000-PROFESSIONAL FEES AND SERVICES,SCHOOL IMPROVEMENT-VIRTUAL SCHOOL,Supplies & Services,Revenue
Walsall Council,http://opendatacommunities.org/id/metropolitan-district-council/walsall,WC104-104,31/05/2019,Adult Social Care,REDACTED,03/05/2019,"1,999.20",73506-DIRECT PAYMENT,LEARNING DISABILITY SUPPORT,Third Party Payments,Revenue
Walsall Council,http://opendatacommunities.org/id/metropolitan-district-council/walsall,WC104-104,31/05/2019,Childrens,ABLEWELL CARS,15/05/2019,"3,255.28",52000-WITH DRIVER-HIRE OF VEHICLES,HOME TO SCHOOL TRANSPORT,Transport,Revenue
Walsall Council,http://opendatacommunities.org/id/metropolitan-district-council/walsall,WC104-105,31/05/2019,Childrens,ABS TAXIS (ALDRIDGE),15/05/2019,663.60,52000-WITH DRIVER-HIRE OF VEHICLES,HOME TO SCHOOL TRANSPORT,Transport,Revenue
Walsall Council,http://opendatacommunities.org/id/metropolitan-district-council/walsall,WC104-106,31/05/2019,Adult Social Care,ACCORD HOUSING ASSOCIATION LTD#135,23/05/2019,250.74,73507-DOMICILIARY CARE,PHYSICAL SUPPORT,Third Party Payments,Revenue
Walsall Council,http://opendatacommunities.org/id/metropolitan-district-council/walsall,WC104-107,31/05/2019,Adult Social Care,ACCORD HOUSING ASSOCIATION LTD#135,23/05/2019,252.28,73507-DOMICILIARY CARE,MENTAL HEALTH SUPPORT,Third Party Payments,Revenue
Walsall Council,http://opendatacommunities.org/id/metropolitan-district-council/walsall,WC104-108,31/05/2019,Adult Social Care,ACCORD HOUSING ASSOCIATION LTD#135,23/05/2019,259.70,73507-DOMICILIARY CARE,MENTAL HEALTH SUPPORT,Third Party Payments,Revenue
Walsall Council,http://opendatacommunities.org/id/metropolitan-district-council/walsall,WC104-109,31/05/2019,Adult Social Care,ACCORD HOUSING ASSOCIATION LTD#135,23/05/2019,275.21,73507-DOMICILIARY CARE,PHYSICAL SUPPORT,Third Party Payments,Revenue
Walsall Council,http://opendatacommunities.org/id/metropolitan-district-council/walsall,WC104-110,31/05/2019,Adult Social Care,ACCORD HOUSING ASSOCIATION LTD#135,23/05/2019,276.96,73508-COMMUNITY SUPPORTED LIVING/SUPPORTED ACCOMMODATION,LEARNING DISABILITY SUPPORT,Third Party Payments,Revenue
Walsall Council,http://opendatacommunities.org/id/metropolitan-district-council/walsall,WC104-111,31/05/2019,Adult Social Care,ACCORD HOUSING ASSOCIATION LTD#135,23/05/2019,300.51,73507-DOMICILIARY CARE,PHYSICAL SUPPORT,Third Party Payments,Revenue
Walsall Council,http://opendatacommunities.org/id/metropolitan-district-council/walsall,WC104-112,31/05/2019,Adult Social Care,ACCORD HOUSING ASSOCIATION LTD#135,23/05/2019,300.51,73507-DOMICILIARY CARE,MENTAL HEALTH SUPPORT,Third Party Payments,Revenue
Walsall Council,http://opendatacommunities.org/id/metropolitan-district-council/walsall,WC104-113,31/05/2019,Adult Social Care,ACCORD HOUSING ASSOCIATION LTD#135,23/05/2019,300.51,73507-DOMICILIARY CARE,SUPPORT WITH MEMORY & COGNITION,Third Party Payments,Revenue
Walsall Council,http://opendatacommunities.org/id/metropolitan-district-council/walsall,WC104-114,31/05/2019,Adult Social Care,ACCORD HOUSING ASSOCIATION LTD#135,23/05/2019,303.26,73507-DOMICILIARY CARE,PHYSICAL SUPPORT,Third Party Payments,Revenue
Walsall Council,http://opendatacommunities.org/id/metropolitan-district-council/walsall,WC104-115,31/05/2019,Adult Social Care,ACCORD HOUSING ASSOCIATION LTD#135,01/05/2019,318.32,73507-DOMICILIARY CARE,MENTAL HEALTH SUPPORT,Third Party Payments,Revenue
Walsall Council,http://opendatacommunities.org/id/metropolitan-district-council/walsall,WC104-116,31/05/2019,Adult Social Care,ACCORD HOUSING ASSOCIATION LTD#135,23/05/2019,318.43,73507-DOMICILIARY CARE,MENTAL HEALTH SUPPORT,Third Party Payments,Revenue
Walsall Council,http://opendatacommunities.org/id/metropolitan-district-council/walsall,WC104-117,31/05/2019,Adult Social Care,ACCORD HOUSING ASSOCIATION LTD#135,23/05/2019,324.46,73507-DOMICILIARY CARE,MENTAL HEALTH SUPPORT,Third Party Payments,Revenue
Walsall Council,http://opendatacommunities.org/id/metropolitan-district-council/walsall,WC104-118,31/05/2019,Adult Social Care,ACCORD HOUSING ASSOCIATION LTD#135,23/05/2019,325.41,73507-DOMICILIARY CARE,PHYSICAL SUPPORT,Third Party Payments,Revenue
Walsall Council,http://opendatacommunities.org/id/metropolitan-district-council/walsall,WC104-119,31/05/2019,Adult Social Care,ACCORD HOUSING ASSOCIATION LTD#135,23/05/2019,329.62,73507-DOMICILIARY CARE,PHYSICAL SUPPORT,Third Party Payments,Revenue
Walsall Council,http://opendatacommunities.org/id/metropolitan-district-council/walsall,WC104-120,31/05/2019,Adult Social Care,ACCORD HOUSING ASSOCIATION LTD#135,23/05/2019,350.91,73507-DOMICILIARY CARE,SOCIAL SUPPORT,Third Party Payments,Revenue
Walsall Council,http://opendatacommunities.org/id/metropolitan-district-council/walsall,WC104-121,31/05/2019,Adult Social Care,ACCORD HOUSING ASSOCIATION LTD#135,23/05/2019,350.91,73507-DOMICILIARY CARE,PHYSICAL SUPPORT,Third Party Payments,Revenue
Walsall Council,http://opendatacommunities.org/id/metropolitan-district-council/walsall,WC104-122,31/05/2019,Adult Social Care,ACCORD HOUSING ASSOCIATION LTD#135,23/05/2019,360.64,73507-DOMICILIARY CARE,PHYSICAL SUPPORT,Third Party Payments,Revenue
Walsall Council,http://opendatacommunities.org/id/metropolitan-district-council/walsall,WC104-123,31/05/2019,Adult Social Care,ACCORD HOUSING ASSOCIATION LTD#135,23/05/2019,363.58,73507-DOMICILIARY CARE,MENTAL HEALTH SUPPORT,Third Party Payments,Revenue
Walsall Council,http://opendatacommunities.org/id/metropolitan-district-council/walsall,WC104-124,31/05/2019,Adult Social Care,ACCORD HOUSING ASSOCIATION LTD#135,23/05/2019,365.54,73507-DOMICILIARY CARE,SOCIAL SUPPORT,Third Party Payments,Revenue
Walsall Council,http://opendatacommunities.org/id/metropolitan-district-council/walsall,WC104-125,31/05/2019,Adult Social Care,ACCORD HOUSING ASSOCIATION LTD#135,23/05/2019,371.00,73507-DOMICILIARY CARE,MENTAL HEALTH SUPPORT,Third Party Payments,Revenue
Walsall Council,http://opendatacommunities.org/id/metropolitan-district-council/walsall,WC104-126,31/05/2019,Adult Social Care,ACCORD HOUSING ASSOCIATION LTD#135,23/05/2019,376.32,73507-DOMICILIARY CARE,MENTAL HEALTH SUPPORT,Third Party Payments,Revenue
Walsall Council,http://opendatacommunities.org/id/metropolitan-district-council/walsall,WC104-127,31/05/2019,Adult Social Care,ACCORD HOUSING ASSOCIATION LTD#135,23/05/2019,400.68,73507-DOMICILIARY CARE,PHYSICAL SUPPORT,Third Party Payments,Revenue
Walsall Council,http://opendatacommunities.org/id/metropolitan-district-council/walsall,WC104-128,31/05/2019,Adult Social Care,ACCORD HOUSING ASSOCIATION LTD#135,23/05/2019,409.92,73507-DOMICILIARY CARE,PHYSICAL SUPPORT,Third Party Payments,Revenue
Walsall Council,http://opendatacommunities.org/id/metropolitan-district-council/walsall,WC104-129,31/05/2019,Adult Social Care,ACCORD HOUSING ASSOCIATION LTD#135,23/05/2019,418.11,73507-DOMICILIARY CARE,PHYSICAL SUPPORT,Third Party Payments,Revenue
Walsall Council,http://opendatacommunities.org/id/metropolitan-district-council/walsall,WC104-130,31/05/2019,Adult Social Care,ACCORD HOUSING ASSOCIATION LTD#135,23/05/2019,437.78,73507-DOMICILIARY CARE,MENTAL HEALTH SUPPORT,Third Party Payments,Revenue
Walsall Council,http://opendatacommunities.org/id/metropolitan-district-council/walsall,WC104-131,31/05/2019,Adult Social Care,ACCORD HOUSING ASSOCIATION LTD#135,23/05/2019,441.44,73507-DOMICILIARY CARE,SENSORY SUPPORT,Third Party Payments,Revenue
Walsall Council,http://opendatacommunities.org/id/metropolitan-district-council/walsall,WC104-132,31/05/2019,Adult Social Care,ACCORD HOUSING ASSOCIATION LTD#135,23/05/2019,451.08,73507-DOMICILIARY CARE,PHYSICAL SUPPORT,Third Party Payments,Revenue
Walsall Council,http://opendatacommunities.org/id/metropolitan-district-council/walsall,WC104-133,31/05/2019,Adult Social Care,ACCORD HOUSING ASSOCIATION LTD#135,23/05/2019,451.08,73507-DOMICILIARY CARE,PHYSICAL SUPPORT,Third Party Payments,Revenue
Walsall Council,http://opendatacommunities.org/id/metropolitan-district-council/walsall,WC104-134,31/05/2019,Adult Social Care,ACCORD HOUSING ASSOCIATION LTD#135,23/05/2019,454.71,73507-DOMICILIARY CARE,PHYSICAL SUPPORT,Third Party Payments,Revenue
Walsall Council,http://opendatacommunities.org/id/metropolitan-district-council/walsall,WC104-135,31/05/2019,Adult Social Care,ACCORD HOUSING ASSOCIATION LTD#135,23/05/2019,489.24,73507-DOMICILIARY CARE,PHYSICAL SUPPORT,Third Party Payments,Revenue
Walsall Council,http://opendatacommunities.org/id/metropolitan-district-council/walsall,WC104-136,31/05/2019,Adult Social Care,ACCORD HOUSING ASSOCIATION LTD#135,23/05/2019,493.84,73507-DOMICILIARY CARE,MENTAL HEALTH SUPPORT,Third Party Payments,Revenue
Walsall Council,http://opendatacommunities.org/id/metropolitan-district-council/walsall,WC104-137,31/05/2019,Adult Social Care,ACCORD HOUSING ASSOCIATION LTD#135,23/05/2019,501.48,73507-DOMICILIARY CARE,PHYSICAL SUPPORT,Third Party Payments,Revenue
Walsall Council,http://opendatacommunities.org/id/metropolitan-district-council/walsall,WC104-138,31/05/2019,Adult Social Care,ACCORD HOUSING ASSOCIATION LTD#135,23/05/2019,501.48,73507-DOMICILIARY CARE,SOCIAL SUPPORT,Third Party Payments,Revenue
Walsall Council,http://opendatacommunities.org/id/metropolitan-district-council/walsall,WC104-139,31/05/2019,Adult Social Care,ACCORD HOUSING ASSOCIATION LTD#135,23/05/2019,501.48,73507-DOMICILIARY CARE,PHYSICAL SUPPORT,Third Party Payments,Revenue
Walsall Council,http://opendatacommunities.org/id/metropolitan-district-council/walsall,WC104-140,31/05/2019,Adult Social Care,ACCORD HOUSING ASSOCIATION LTD#135,23/05/2019,522.96,73507-DOMICILIARY CARE,PHYSICAL SUPPORT,Third Party Payments,Revenue
Walsall Council,http://opendatacommunities.org/id/metropolitan-district-council/walsall,WC104-141,31/05/2019,Adult Social Care,ACCORD HOUSING ASSOCIATION LTD#135,23/05/2019,537.06,73507-DOMICILIARY CARE,SOCIAL SUPPORT,Third Party Payments,Revenue
Walsall Council,http://opendatacommunities.org/id/metropolitan-district-council/walsall,WC104-142,31/05/2019,Adult Social Care,ACCORD HOUSING ASSOCIATION LTD#135,23/05/2019,559.08,73507-DOMICILIARY CARE,LEARNING DISABILITY SUPPORT,Third Party Payments,Revenue
Walsall Council,http://opendatacommunities.org/id/metropolitan-district-council/walsall,WC104-143,31/05/2019,Adult Social Care,ACCORD HOUSING ASSOCIATION LTD#135,23/05/2019,565.95,73507-DOMICILIARY CARE,MENTAL HEALTH SUPPORT,Third Party Payments,Revenue
Walsall Council,http://opendatacommunities.org/id/metropolitan-district-council/walsall,WC104-144,31/05/2019,Adult Social Care,ACCORD HOUSING ASSOCIATION LTD#135,23/05/2019,594.60,73507-DOMICILIARY CARE,PHYSICAL SUPPORT,Third Party Payments,Revenue
Walsall Council,http://opendatacommunities.org/id/metropolitan-district-council/walsall,WC104-145,31/05/2019,Adult Social Care,ACCORD HOUSING ASSOCIATION LTD#135,01/05/2019,594.64,73507-DOMICILIARY CARE,PHYSICAL SUPPORT,Third Party Payments,Revenue
Walsall Council,http://opendatacommunities.org/id/metropolitan-district-council/walsall,WC104-146,31/05/2019,Adult Social Care,ACCORD HOUSING ASSOCIATION LTD#135,23/05/2019,627.06,73507-DOMICILIARY CARE,SENSORY SUPPORT,Third Party Payments,Revenue
Walsall Council,http://opendatacommunities.org/id/metropolitan-district-council/walsall,WC104-147,31/05/2019,Adult Social Care,ACCORD HOUSING ASSOCIATION LTD#135,23/05/2019,642.24,73507-DOMICILIARY CARE,MENTAL HEALTH SUPPORT,Third Party Payments,Revenue
Walsall Council,http://opendatacommunities.org/id/metropolitan-district-council/walsall,WC104-148,31/05/2019,Adult Social Care,ACCORD HOUSING ASSOCIATION LTD#135,23/05/2019,645.03,73507-DOMICILIARY CARE,MENTAL HEALTH SUPPORT,Third Party Payments,Revenue
Walsall Council,http://opendatacommunities.org/id/metropolitan-district-council/walsall,WC104-149,31/05/2019,Adult Social Care,ACCORD HOUSING ASSOCIATION LTD#135,23/05/2019,680.04,73508-COMMUNITY SUPPORTED LIVING/SUPPORTED ACCOMMODATION,MENTAL HEALTH SUPPORT,Third Party Payments,Revenue
Walsall Council,http://opendatacommunities.org/id/metropolitan-district-council/walsall,WC104-150,31/05/2019,Adult Social Care,ACCORD HOUSING ASSOCIATION LTD#135,23/05/2019,693.55,73507-DOMICILIARY CARE,LEARNING DISABILITY SUPPORT,Third Party Payments,Revenue
Walsall Council,http://opendatacommunities.org/id/metropolitan-district-council/walsall,WC104-151,31/05/2019,Adult Social Care,ACCORD HOUSING ASSOCIATION LTD#135,23/05/2019,703.11,73507-DOMICILIARY CARE,PHYSICAL SUPPORT,Third Party Payments,Revenue
Walsall Council,http://opendatacommunities.org/id/metropolitan-district-council/walsall,WC104-152,31/05/2019,Adult Social Care,ACCORD HOUSING ASSOCIATION LTD#135,23/05/2019,712.50,73507-DOMICILIARY CARE,LEARNING DISABILITY SUPPORT,Third Party Payments,Revenue
Walsall Council,http://opendatacommunities.org/id/metropolitan-district-council/walsall,WC104-153,31/05/2019,Adult Social Care,ACCORD HOUSING ASSOCIATION LTD#135,23/05/2019,717.80,73508-COMMUNITY SUPPORTED LIVING/SUPPORTED ACCOMMODATION,MENTAL HEALTH SUPPORT,Third Party Payments,Revenue
Walsall Council,http://opendatacommunities.org/id/metropolitan-district-council/walsall,WC104-154,31/05/2019,Adult Social Care,ACCORD HOUSING ASSOCIATION LTD#135,23/05/2019,717.80,73508-COMMUNITY SUPPORTED LIVING/SUPPORTED ACCOMMODATION,MENTAL HEALTH SUPPORT,Third Party Payments,Revenue
Walsall Council,http://opendatacommunities.org/id/metropolitan-district-council/walsall,WC104-155,31/05/2019,Adult Social Care,ACCORD HOUSING ASSOCIATION LTD#135,29/05/2019,730.88,73507-DOMICILIARY CARE,LEARNING DISABILITY SUPPORT,Third Party Payments,Revenue
Walsall Council,http://opendatacommunities.org/id/metropolitan-district-council/walsall,WC104-156,31/05/2019,Adult Social Care,ACCORD HOUSING ASSOCIATION LTD#135,23/05/2019,745.00,73507-DOMICILIARY CARE,LEARNING DISABILITY SUPPORT,Third Party Payments,Revenue
Walsall Council,http://opendatacommunities.org/id/metropolitan-district-council/walsall,WC104-157,31/05/2019,Adult Social Care,ACCORD HOUSING ASSOCIATION LTD#135,23/05/2019,752.22,73507-DOMICILIARY CARE,LEARNING DISABILITY SUPPORT,Third Party Payments,Revenue
Walsall Council,http://opendatacommunities.org/id/metropolitan-district-council/walsall,WC104-158,31/05/2019,Adult Social Care,ACCORD HOUSING ASSOCIATION LTD#135,23/05/2019,755.60,73508-COMMUNITY SUPPORTED LIVING/SUPPORTED ACCOMMODATION,MENTAL HEALTH SUPPORT,Third Party Payments,Revenue
Walsall Council,http://opendatacommunities.org/id/metropolitan-district-council/walsall,WC104-159,31/05/2019,Adult Social Care,ACCORD HOUSING ASSOCIATION LTD#135,07/05/2019,810.00,73500-RESIDENTIAL,LEARNING DISABILITY SUPPORT,Third Party Payments,Revenue
Walsall Council,http://opendatacommunities.org/id/metropolitan-district-council/walsall,WC104-160,31/05/2019,Adult Social Care,ACCORD HOUSING ASSOCIATION LTD#135,23/05/2019,842.01,73507-DOMICILIARY CARE,PHYSICAL SUPPORT,Third Party Payments,Revenue
Walsall Council,http://opendatacommunities.org/id/metropolitan-district-council/walsall,WC104-161,31/05/2019,Adult Social Care,ACCORD HOUSING ASSOCIATION LTD#135,23/05/2019,842.53,73507-DOMICILIARY CARE,PHYSICAL SUPPORT,Third Party Payments,Revenue
Walsall Council,http://opendatacommunities.org/id/metropolitan-district-council/walsall,WC104-162,31/05/2019,Adult Social Care,ACCORD HOUSING ASSOCIATION LTD#135,23/05/2019,902.16,73507-DOMICILIARY CARE,PHYSICAL SUPPORT,Third Party Payments,Revenue
Walsall Council,http://opendatacommunities.org/id/metropolitan-district-council/walsall,WC104-163,31/05/2019,Adult Social Care,ACCORD HOUSING ASSOCIATION LTD#135,23/05/2019,927.77,73507-DOMICILIARY CARE,PHYSICAL SUPPORT,Third Party Payments,Revenue
Walsall Council,http://opendatacommunities.org/id/metropolitan-district-council/walsall,WC104-164,31/05/2019,Adult Social Care,ACCORD HOUSING ASSOCIATION LTD#135,23/05/2019,982.28,73508-COMMUNITY SUPPORTED LIVING/SUPPORTED ACCOMMODATION,MENTAL HEALTH SUPPORT,Third Party Payments,Revenue
Walsall Council,http://opendatacommunities.org/id/metropolitan-district-council/walsall,WC104-165,31/05/2019,Adult Social Care,ACCORD HOUSING ASSOCIATION LTD#135,23/05/2019,"1,002.75",73507-DOMICILIARY CARE,MENTAL HEALTH SUPPORT,Third Party Payments,Revenue
Walsall Council,http://opendatacommunities.org/id/metropolitan-district-council/walsall,WC104-166,31/05/2019,Adult Social Care,ACCORD HOUSING ASSOCIATION LTD#135,23/05/2019,"1,004.88",73507-DOMICILIARY CARE,PHYSICAL SUPPORT,Third Party Payments,Revenue
Walsall Council,http://opendatacommunities.org/id/metropolitan-district-council/walsall,WC104-167,31/05/2019,Adult Social Care,ACCORD HOUSING ASSOCIATION LTD#135,23/05/2019,"1,092.59",73507-DOMICILIARY CARE,PHYSICAL SUPPORT,Third Party Payments,Revenue
Walsall Council,http://opendatacommunities.org/id/metropolitan-district-council/walsall,WC104-168,31/05/2019,Adult Social Care,ACCORD HOUSING ASSOCIATION LTD#135,24/05/2019,"1,126.35",73500-RESIDENTIAL,LEARNING DISABILITY SUPPORT,Third Party Payments,Revenue
Walsall Council,http://opendatacommunities.org/id/metropolitan-district-council/walsall,WC104-169,31/05/2019,Adult Social Care,ACCORD HOUSING ASSOCIATION LTD#135,24/05/2019,"1,126.35",73500-RESIDENTIAL,LEARNING DISABILITY SUPPORT,Third Party Payments,Revenue
Walsall Council,http://opendatacommunities.org/id/metropolitan-district-council/walsall,WC104-170,31/05/2019,Adult Social Care,ACCORD HOUSING ASSOCIATION LTD#135,24/05/2019,"1,126.35",73500-RESIDENTIAL,LEARNING DISABILITY SUPPORT,Third Party Payments,Revenue
Walsall Council,http://opendatacommunities.org/id/metropolitan-district-council/walsall,WC104-171,31/05/2019,Adult Social Care,ACCORD HOUSING ASSOCIATION LTD#135,01/05/2019,"1,130.85",73507-DOMICILIARY CARE,SOCIAL SUPPORT,Third Party Payments,Revenue
Walsall Council,http://opendatacommunities.org/id/metropolitan-district-council/walsall,WC104-172,31/05/2019,Adult Social Care,ACCORD HOUSING ASSOCIATION LTD#135,03/05/2019,"1,179.92",73507-DOMICILIARY CARE,PHYSICAL SUPPORT,Third Party Payments,Revenue
Walsall Council,http://opendatacommunities.org/id/metropolitan-district-council/walsall,WC104-173,31/05/2019,Adult Social Care,ACCORD HOUSING ASSOCIATION LTD#135,23/05/2019,"1,254.12",73507-DOMICILIARY CARE,PHYSICAL SUPPORT,Third Party Payments,Revenue
Walsall Council,http://opendatacommunities.org/id/metropolitan-district-council/walsall,WC104-174,31/05/2019,Adult Social Care,ACCORD HOUSING ASSOCIATION LTD#135,23/05/2019,"1,279.11",73507-DOMICILIARY CARE,PHYSICAL SUPPORT,Third Party Payments,Revenue
Walsall Council,http://opendatacommunities.org/id/metropolitan-district-council/walsall,WC104-175,31/05/2019,Adult Social Care,ACCORD HOUSING ASSOCIATION LTD#135,23/05/2019,"1,355.22",73507-DOMICILIARY CARE,SENSORY SUPPORT,Third Party Payments,Revenue
Walsall Council,http://opendatacommunities.org/id/metropolitan-district-council/walsall,WC104-176,31/05/2019,Adult Social Care,ACCORD HOUSING ASSOCIATION LTD#135,23/05/2019,"1,567.84",73508-COMMUNITY SUPPORTED LIVING/SUPPORTED ACCOMMODATION,MENTAL HEALTH SUPPORT,Third Party Payments,Revenue
Walsall Council,http://opendatacommunities.org/id/metropolitan-district-council/walsall,WC104-177,31/05/2019,Adult Social Care,ACCORD HOUSING ASSOCIATION LTD#135,24/05/2019,"1,572.02",73500-RESIDENTIAL,LEARNING DISABILITY SUPPORT,Third Party Payments,Revenue
Walsall Council,http://opendatacommunities.org/id/metropolitan-district-council/walsall,WC104-178,31/05/2019,Adult Social Care,ACCORD HOUSING ASSOCIATION LTD#135,24/05/2019,"1,572.02",73500-RESIDENTIAL,LEARNING DISABILITY SUPPORT,Third Party Payments,Revenue
Walsall Council,http://opendatacommunities.org/id/metropolitan-district-council/walsall,WC104-179,31/05/2019,Adult Social Care,ACCORD HOUSING ASSOCIATION LTD#135,24/05/2019,"1,572.02",73500-RESIDENTIAL,LEARNING DISABILITY SUPPORT,Third Party Payments,Revenue
Walsall Council,http://opendatacommunities.org/id/metropolitan-district-council/walsall,WC104-180,31/05/2019,Adult Social Care,ACCORD HOUSING ASSOCIATION LTD#135,23/05/2019,"1,639.33",73507-DOMICILIARY CARE,LEARNING DISABILITY SUPPORT,Third Party Payments,Revenue
Walsall Council,http://opendatacommunities.org/id/metropolitan-district-council/walsall,WC104-181,31/05/2019,Adult Social Care,ACCORD HOUSING ASSOCIATION LTD#135,23/05/2019,"1,639.33",73507-DOMICILIARY CARE,LEARNING DISABILITY SUPPORT,Third Party Payments,Revenue
Walsall Council,http://opendatacommunities.org/id/metropolitan-district-council/walsall,WC104-182,31/05/2019,Adult Social Care,ACCORD HOUSING ASSOCIATION LTD#135,23/05/2019,"1,639.33",73507-DOMICILIARY CARE,LEARNING DISABILITY SUPPORT,Third Party Payments,Revenue
Walsall Council,http://opendatacommunities.org/id/metropolitan-district-council/walsall,WC104-183,31/05/2019,Adult Social Care,ACCORD HOUSING ASSOCIATION LTD#135,23/05/2019,"1,672.09",73507-DOMICILIARY CARE,LEARNING DISABILITY SUPPORT,Third Party Payments,Revenue
Walsall Council,http://opendatacommunities.org/id/metropolitan-district-council/walsall,WC104-184,31/05/2019,Adult Social Care,ACCORD HOUSING ASSOCIATION LTD#135,24/05/2019,"3,412.83",73500-RESIDENTIAL,LEARNING DISABILITY SUPPORT,Third Party Payments,Revenue
Walsall Council,http://opendatacommunities.org/id/metropolitan-district-council/walsall,WC104-185,31/05/2019,Adult Social Care,ACCORD HOUSING ASSOCIATION LTD#135,24/05/2019,"3,412.83",73500-RESIDENTIAL,LEARNING DISABILITY SUPPORT,Third Party Payments,Revenue
Walsall Council,http://opendatacommunities.org/id/metropolitan-district-council/walsall,WC104-186,31/05/2019,Adult Social Care,ACCORD HOUSING ASSOCIATION LTD#135,24/05/2019,"3,412.83",73500-RESIDENTIAL,LEARNING DISABILITY SUPPORT,Third Party Payments,Revenue
Walsall Council,http://opendatacommunities.org/id/metropolitan-district-council/walsall,WC104-187,31/05/2019,Resources and Transformation,ACCORD HOUSING ASSOCIATION LTD#135,28/05/2019,"4,487.03",01045-PRIVATE GRANTS,CFR 1359 DISABLED FACILITIES GRANT,Capital,Capital
Walsall Council,http://opendatacommunities.org/id/metropolitan-district-council/walsall,WC104-188,31/05/2019,Adult Social Care,ACCORD HOUSING ASSOCIATION LTD#135,24/05/2019,"4,539.18",73500-RESIDENTIAL,LEARNING DISABILITY SUPPORT,Third Party Payments,Revenue
Walsall Council,http://opendatacommunities.org/id/metropolitan-district-council/walsall,WC104-189,31/05/2019,Adult Social Care,ACCORD HOUSING ASSOCIATION LTD#135,24/05/2019,"4,763.22",73500-RESIDENTIAL,LEARNING DISABILITY SUPPORT,Third Party Payments,Revenue
Walsall Council,http://opendatacommunities.org/id/metropolitan-district-council/walsall,WC104-190,31/05/2019,Adult Social Care,ACCORD HOUSING ASSOCIATION LTD#135,24/05/2019,"4,763.22",73500-RESIDENTIAL,LEARNING DISABILITY SUPPORT,Third Party Payments,Revenue
Walsall Council,http://opendatacommunities.org/id/metropolitan-district-council/walsall,WC104-191,31/05/2019,Adult Social Care,ACCORD HOUSING ASSOCIATION LTD#135,24/05/2019,"4,763.22",73500-RESIDENTIAL,LEARNING DISABILITY SUPPORT,Third Party Payments,Revenue
Walsall Council,http://opendatacommunities.org/id/metropolitan-district-council/walsall,WC104-192,31/05/2019,Resources and Transformation,ACCORD HOUSING ASSOCIATION LTD#135,08/05/2019,"5,847.00",01046-OTHER GRANTS,CFR 1108 OFF GAS SCHEME-DECC,Capital,Capital
Walsall Council,http://opendatacommunities.org/id/metropolitan-district-council/walsall,WC104-193,31/05/2019,Adult Social Care,ACCORD HOUSING ASSOCIATION LTD#135,14/05/2019,"11,164.00",73365-BLOCK GROSS-SUPPORTING PEOPLE,OLDER PEOPLE SLA,Third Party Payments,Revenue
Walsall Council,http://opendatacommunities.org/id/metropolitan-district-council/walsall,WC104-194,31/05/2019,Adult Social Care,ACCORD HOUSING ASSOCIATION LTD#135,17/05/2019,"29,330.75",73365-BLOCK GROSS-SUPPORTING PEOPLE,OLDER PEOPLE SLA,Third Party Payments,Revenue
Walsall Council,http://opendatacommunities.org/id/metropolitan-district-council/walsall,WC104-195,31/05/2019,Adult Social Care,ACEPAY LTD (COTTAGE NUR HOME),24/05/2019,765.61,73502-NURSING,PHYSICAL SUPPORT,Third Party Payments,Revenue
Walsall Council,http://opendatacommunities.org/id/metropolitan-district-council/walsall,WC104-196,31/05/2019,Adult Social Care,ACEPAY LTD (COTTAGE NUR HOME),24/05/2019,"1,338.31",73501-RESIDENTIAL EMI,PHYSICAL SUPPORT,Third Party Payments,Revenue
Walsall Council,http://opendatacommunities.org/id/metropolitan-district-council/walsall,WC104-197,31/05/2019,Adult Social Care,ACEPAY LTD (COTTAGE NUR HOME),24/05/2019,"1,753.43",73500-RESIDENTIAL,PHYSICAL SUPPORT,Third Party Payments,Revenue
Walsall Council,http://opendatacommunities.org/id/metropolitan-district-council/walsall,WC104-198,31/05/2019,Adult Social Care,ACEPAY LTD (COTTAGE NUR HOME),24/05/2019,"2,117.71",73502-NURSING,PHYSICAL SUPPORT,Third Party Payments,Revenue
Walsall Council,http://opendatacommunities.org/id/metropolitan-district-council/walsall,WC104-199,31/05/2019,Adult Social Care,ACEPAY LTD (COTTAGE NUR HOME),24/05/2019,"2,117.71",73502-NURSING,SUPPORT WITH MEMORY & COGNITION,Third Party Payments,Revenue
Walsall Council,http://opendatacommunities.org/id/metropolitan-district-council/walsall,WC104-200,31/05/2019,Adult Social Care,ACEPAY LTD (COTTAGE NUR HOME),24/05/2019,"2,117.71",73502-NURSING,PHYSICAL SUPPORT,Third Party Payments,Revenue
Walsall Council,http://opendatacommunities.org/id/metropolitan-district-council/walsall,WC104-201,31/05/2019,Adult Social Care,ACEPAY LTD (COTTAGE NUR HOME),24/05/2019,"2,117.71",73502-NURSING,PHYSICAL SUPPORT,Third Party Payments,Revenue
Walsall Council,http://opendatacommunities.org/id/metropolitan-district-council/walsall,WC104-202,31/05/2019,Adult Social Care,ACEPAY LTD (COTTAGE NUR HOME),24/05/2019,"2,117.71",73502-NURSING,SUPPORT WITH MEMORY & COGNITION,Third Party Payments,Revenue
Walsall Council,http://opendatacommunities.org/id/metropolitan-district-council/walsall,WC104-203,31/05/2019,Adult Social Care,ACEPAY LTD (COTTAGE NUR HOME),24/05/2019,"2,117.71",73502-NURSING,SUPPORT WITH MEMORY & COGNITION,Third Party Payments,Revenue
Walsall Council,http://opendatacommunities.org/id/metropolitan-district-council/walsall,WC104-204,31/05/2019,Adult Social Care,ACEPAY LTD (COTTAGE NUR HOME),24/05/2019,"2,117.71",73502-NURSING,PHYSICAL SUPPORT,Third Party Payments,Revenue
Walsall Council,http://opendatacommunities.org/id/metropolitan-district-council/walsall,WC104-205,31/05/2019,Adult Social Care,ACEPAY LTD (COTTAGE NUR HOME),24/05/2019,"2,117.71",73502-NURSING,PHYSICAL SUPPORT,Third Party Payments,Revenue
Walsall Council,http://opendatacommunities.org/id/metropolitan-district-council/walsall,WC104-206,31/05/2019,Adult Social Care,ACEPAY LTD (COTTAGE NUR HOME),24/05/2019,"2,117.71",73502-NURSING,PHYSICAL SUPPORT,Third Party Payments,Revenue
Walsall Council,http://opendatacommunities.org/id/metropolitan-district-council/walsall,WC104-207,31/05/2019,Adult Social Care,ACEPAY LTD (COTTAGE NUR HOME),24/05/2019,"2,117.71",73502-NURSING,PHYSICAL SUPPORT,Third Party Payments,Revenue
Walsall Council,http://opendatacommunities.org/id/metropolitan-district-council/walsall,WC104-208,31/05/2019,Adult Social Care,ACEPAY LTD (COTTAGE NUR HOME),24/05/2019,"2,117.71",73502-NURSING,SOCIAL SUPPORT,Third Party Payments,Revenue
Walsall Council,http://opendatacommunities.org/id/metropolitan-district-council/walsall,WC104-209,31/05/2019,Adult Social Care,ACEPAY LTD (COTTAGE NUR HOME),07/05/2019,"2,331.21",73025-PROFESSIONAL SERVICES-PRIV CONTRACTOR & OTHER AGENCIES,TRANSITIONAL CARE SUPPORT TEAM,Third Party Payments,Revenue
Walsall Council,http://opendatacommunities.org/id/metropolitan-district-council/walsall,WC104-210,31/05/2019,Adult Social Care,ACEPAY LTD (COTTAGE NUR HOME),24/05/2019,"7,726.83",73502-NURSING,SUPPORT WITH MEMORY & COGNITION,Third Party Payments,Revenue
Walsall Council,http://opendatacommunities.org/id/metropolitan-district-council/walsall,WC104-211,31/05/2019,Adult Social Care,ACEPAY LTD (COTTAGE NUR HOME),15/05/2019,"8,165.28",73373-RESIDENTIAL & NURSING CARE PLACEMENTS,OP PACKAGE/PLACEMENT COSTS,Third Party Payments,Revenue
Walsall Council,http://opendatacommunities.org/id/metropolitan-district-council/walsall,WC104-212,31/05/2019,Childrens,ACORN CARE & EDUCATION LTD (SALES),13/05/2019,"2,606.94",66502-TOP UP FUNDING -GRANTS TO SCHOOLS,INDEPENDENT PROVIDERS - SPECIAL & AP,Third Party Payments,Revenue
Walsall Council,http://opendatacommunities.org/id/metropolitan-district-council/walsall,WC104-213,31/05/2019,Childrens,ACORN CARE & EDUCATION LTD (SALES),28/05/2019,"4,457.47",66502-TOP UP FUNDING -GRANTS TO SCHOOLS,INDEPENDENT PROVIDERS - SPECIAL & AP,Third Party Payments,Revenue
Walsall Council,http://opendatacommunities.org/id/metropolitan-district-council/walsall,WC104-214,31/05/2019,Childrens,ACORN CARE & EDUCATION LTD (SALES),15/05/2019,"6,333.33",66502-TOP UP FUNDING -GRANTS TO SCHOOLS,INDEPENDENT PROVIDERS - SPECIAL & AP,Third Party Payments,Revenue
Walsall Council,http://opendatacommunities.org/id/metropolitan-district-council/walsall,WC104-215,31/05/2019,Childrens,ACORN CARE & EDUCATION LTD (SALES),13/05/2019,"14,456.67",66502-TOP UP FUNDING -GRANTS TO SCHOOLS,INDEPENDENT PROVIDERS - SPECIAL & AP,Third Party Payments,Revenue
Walsall Council,http://opendatacommunities.org/id/metropolitan-district-council/walsall,WC104-216,31/05/2019,Childrens,ACORN CARE & EDUCATION LTD (SALES),13/05/2019,"14,456.67",66502-TOP UP FUNDING -GRANTS TO SCHOOLS,INDEPENDENT PROVIDERS - SPECIAL & AP,Third Party Payments,Revenue
Walsall Council,http://opendatacommunities.org/id/metropolitan-district-council/walsall,WC104-217,31/05/2019,Childrens,ACORN CARE & EDUCATION LTD (SALES),15/05/2019,"14,456.67",66502-TOP UP FUNDING -GRANTS TO SCHOOLS,INDEPENDENT PROVIDERS - SPECIAL & AP,Third Party Payments,Revenue
Walsall Council,http://opendatacommunities.org/id/metropolitan-district-council/walsall,WC104-218,31/05/2019,Childrens,ACORN CARE & EDUCATION LTD (SALES),28/05/2019,"14,456.67",66502-TOP UP FUNDING -GRANTS TO SCHOOLS,INDEPENDENT PROVIDERS - SPECIAL & AP,Third Party Payments,Revenue
Walsall Council,http://opendatacommunities.org/id/metropolitan-district-council/walsall,WC104-219,31/05/2019,Childrens,ACORN CARE & EDUCATION LTD (SALES),15/05/2019,"16,166.67",66502-TOP UP FUNDING -GRANTS TO SCHOOLS,INDEPENDENT PROVIDERS - SPECIAL & AP,Third Party Payments,Revenue
Walsall Council,http://opendatacommunities.org/id/metropolitan-district-council/walsall,WC104-220,31/05/2019,Adult Social Care,ACORN REST HOME,24/05/2019,"4,344.59",73500-RESIDENTIAL,SOCIAL SUPPORT,Third Party Payments,Revenue
Walsall Council,http://opendatacommunities.org/id/metropolitan-district-council/walsall,WC104-221,31/05/2019,Childrens,ACORNS CHILDRENS HOSPICE TRUST,14/05/2019,750.00,63000-PROFESSIONAL FEES AND SERVICES,DIRECTLY COMMISSIONED NURSING SERVICES,Supplies & Services,Revenue
Walsall Council,http://opendatacommunities.org/id/metropolitan-district-council/walsall,WC104-222,31/05/2019,Childrens,ACORNS CHILDRENS HOSPICE TRUST,14/05/2019,750.00,63000-PROFESSIONAL FEES AND SERVICES,DIRECTLY COMMISSIONED NURSING SERVICES,Supplies & Services,Revenue
Walsall Council,http://opendatacommunities.org/id/metropolitan-district-council/walsall,WC104-223,31/05/2019,Childrens,ACPAS LIMITED,17/05/2019,793.00,63000-PROFESSIONAL FEES AND SERVICES,SAFEGUARDING & FAMILY SUPPORT,Supplies & Services,Revenue
Walsall Council,http://opendatacommunities.org/id/metropolitan-district-council/walsall,WC104-224,31/05/2019,Economy & Environment,ACTION DIGITAL MEDIA LTD T/A ACTION GRAPHICS,01/05/2019,491.38,"62521-INTERPRETATION,TRANSLATION & HUMAN AIDS TO TRANSCRIPTION",NAG - FAMILY GALLERY,Supplies & Services,Revenue
Walsall Council,http://opendatacommunities.org/id/metropolitan-district-council/walsall,WC104-225,31/05/2019,Adult Social Care,ACTION ON HEARING LOSS,23/05/2019,"1,008.00",73508-COMMUNITY SUPPORTED LIVING/SUPPORTED ACCOMMODATION,MENTAL HEALTH SUPPORT,Third Party Payments,Revenue
Walsall Council,http://opendatacommunities.org/id/metropolitan-district-council/walsall,WC104-226,31/05/2019,Resources and Transformation,ACTIVATING CREATIVE TALENT CIC,29/05/2019,"8,312.00",66500-GRANTS TO OTHER ORGS,COMMUNITY SAFETY 2012/2013,Third Party Payments,Revenue
Walsall Council,http://opendatacommunities.org/id/metropolitan-district-council/walsall,WC104-227,31/05/2019,Childrens,ACTIVE CARE SOLUTIONS LTD,17/05/2019,"2,662.80",74037-INDEPENDENT FOSTER CARE-OTH AGENCY PROVISION,EXTERNAL FOSTER CARE PROVISION,Third Party Payments,Revenue
Walsall Council,http://opendatacommunities.org/id/metropolitan-district-council/walsall,WC104-228,31/05/2019,Childrens,ACTIVE CARE SOLUTIONS LTD,17/05/2019,"3,024.00",74037-INDEPENDENT FOSTER CARE-OTH AGENCY PROVISION,EXTERNAL FOSTER CARE PROVISION,Third Party Payments,Revenue
Walsall Council,http://opendatacommunities.org/id/metropolitan-district-council/walsall,WC104-229,31/05/2019,Childrens,ACTIVE CARE SOLUTIONS LTD,17/05/2019,"3,024.00",74037-INDEPENDENT FOSTER CARE-OTH AGENCY PROVISION,EXTERNAL FOSTER CARE PROVISION,Third Party Payments,Revenue
Walsall Council,http://opendatacommunities.org/id/metropolitan-district-council/walsall,WC104-230,31/05/2019,Childrens,ACTIVE CARE SOLUTIONS LTD,17/05/2019,"3,220.00",74037-INDEPENDENT FOSTER CARE-OTH AGENCY PROVISION,EXTERNAL FOSTER CARE PROVISION,Third Party Payments,Revenue
Walsall Council,http://opendatacommunities.org/id/metropolitan-district-council/walsall,WC104-231,31/05/2019,Adult Social Care,REDACTED,03/05/2019,442.52,73506-DIRECT PAYMENT,LEARNING DISABILITY SUPPORT,Third Party Payments,Revenue
Walsall Council,http://opendatacommunities.org/id/metropolitan-district-council/walsall,WC104-232,31/05/2019,Childrens,ADCS (ASSOCIATION OF DIRECTORS OF CHILDRENS SERVICES),07/05/2019,780.00,30030-EXTERNAL TRAINING,GENERAL MANAGEMENT SUPPORT (INC LEGAL),Employees,Revenue
Walsall Council,http://opendatacommunities.org/id/metropolitan-district-council/walsall,WC104-233,31/05/2019,Resources and Transformation,ADELIE FOODS LTD,01/05/2019,560.17,61305-CATERING,TOWN HALL RESTAURANT BISTRO,Supplies & Services,Revenue
Walsall Council,http://opendatacommunities.org/id/metropolitan-district-council/walsall,WC104-234,31/05/2019,Resources and Transformation,ADELIE FOODS LTD,01/05/2019,626.13,61305-CATERING,TOWN HALL RESTAURANT BISTRO,Supplies & Services,Revenue
Walsall Council,http://opendatacommunities.org/id/metropolitan-district-council/walsall,WC104-235,31/05/2019,Resources and Transformation,ADELIE FOODS LTD,14/05/2019,710.45,61305-CATERING,TOWN HALL RESTAURANT BISTRO,Supplies & Services,Revenue
Walsall Council,http://opendatacommunities.org/id/metropolitan-district-council/walsall,WC104-236,31/05/2019,Resources and Transformation,ADELIE FOODS LTD,14/05/2019,838.46,61305-CATERING,TOWN HALL RESTAURANT BISTRO,Supplies & Services,Revenue
Walsall Council,http://opendatacommunities.org/id/metropolitan-district-council/walsall,WC104-237,31/05/2019,Adult Social Care,REDACTED,03/05/2019,"1,033.16",73506-DIRECT PAYMENT,PHYSICAL SUPPORT,Third Party Payments,Revenue
Walsall Council,http://opendatacommunities.org/id/metropolitan-district-council/walsall,WC104-238,31/05/2019,Childrens,REDACTED,07/05/2019,333.12,74510-RESIDENTS ORDERS,ADOPTION ALLOWANCES,Third Party Payments,Revenue
Walsall Council,http://opendatacommunities.org/id/metropolitan-district-council/walsall,WC104-239,31/05/2019,Childrens,REDACTED,07/05/2019,361.12,74510-RESIDENTS ORDERS,ADOPTION ALLOWANCES,Third Party Payments,Revenue
Walsall Council,http://opendatacommunities.org/id/metropolitan-district-council/walsall,WC104-240,31/05/2019,Adult Social Care,REDACTED,03/05/2019,"2,083.20",73506-DIRECT PAYMENT,LEARNING DISABILITY SUPPORT,Third Party Payments,Revenue
Walsall Council,http://opendatacommunities.org/id/metropolitan-district-council/walsall,WC104-241,31/05/2019,Adult Social Care,ADVANCE HEALTH CARE (UK) LTD,29/05/2019,-442.58,73025-PROFESSIONAL SERVICES-PRIV CONTRACTOR & OTHER AGENCIES,COMMUNITY INTERMEDIATE CARE,Third Party Payments,Revenue
Walsall Council,http://opendatacommunities.org/id/metropolitan-district-council/walsall,WC104-242,31/05/2019,Adult Social Care,ADVANCE HEALTH CARE (UK) LTD,21/05/2019,-258.12,73025-PROFESSIONAL SERVICES-PRIV CONTRACTOR & OTHER AGENCIES,INTERMEDIATE CARE SERVICE,Third Party Payments,Revenue
Walsall Council,http://opendatacommunities.org/id/metropolitan-district-council/walsall,WC104-243,31/05/2019,Adult Social Care,ADVANCE HEALTH CARE (UK) LTD,07/05/2019,250.78,73025-PROFESSIONAL SERVICES-PRIV CONTRACTOR & OTHER AGENCIES,INTERMEDIATE CARE SERVICE,Third Party Payments,Revenue
Walsall Council,http://opendatacommunities.org/id/metropolitan-district-council/walsall,WC104-244,31/05/2019,Adult Social Care,ADVANCE HEALTH CARE (UK) LTD,17/05/2019,250.78,73025-PROFESSIONAL SERVICES-PRIV CONTRACTOR & OTHER AGENCIES,INTERMEDIATE CARE SERVICE,Third Party Payments,Revenue
Walsall Council,http://opendatacommunities.org/id/metropolitan-district-council/walsall,WC104-245,31/05/2019,Adult Social Care,ADVANCE HEALTH CARE (UK) LTD,17/05/2019,250.78,73025-PROFESSIONAL SERVICES-PRIV CONTRACTOR & OTHER AGENCIES,INTERMEDIATE CARE SERVICE,Third Party Payments,Revenue
Walsall Council,http://opendatacommunities.org/id/metropolitan-district-council/walsall,WC104-246,31/05/2019,Adult Social Care,ADVANCE HEALTH CARE (UK) LTD,24/05/2019,250.78,73025-PROFESSIONAL SERVICES-PRIV CONTRACTOR & OTHER AGENCIES,INTERMEDIATE CARE SERVICE,Third Party Payments,Revenue
Walsall Council,http://opendatacommunities.org/id/metropolitan-district-council/walsall,WC104-247,31/05/2019,Adult Social Care,ADVANCE HEALTH CARE (UK) LTD,28/05/2019,250.78,73025-PROFESSIONAL SERVICES-PRIV CONTRACTOR & OTHER AGENCIES,INTERMEDIATE CARE SERVICE,Third Party Payments,Revenue
Walsall Council,http://opendatacommunities.org/id/metropolitan-district-council/walsall,WC104-248,31/05/2019,Adult Social Care,ADVANCE HEALTH CARE (UK) LTD,17/05/2019,257.94,73025-PROFESSIONAL SERVICES-PRIV CONTRACTOR & OTHER AGENCIES,INTERMEDIATE CARE SERVICE,Third Party Payments,Revenue
Walsall Council,http://opendatacommunities.org/id/metropolitan-district-council/walsall,WC104-249,31/05/2019,Adult Social Care,ADVANCE HEALTH CARE (UK) LTD,21/05/2019,258.12,73025-PROFESSIONAL SERVICES-PRIV CONTRACTOR & OTHER AGENCIES,INTERMEDIATE CARE SERVICE,Third Party Payments,Revenue
Walsall Council,http://opendatacommunities.org/id/metropolitan-district-council/walsall,WC104-250,31/05/2019,Adult Social Care,ADVANCE HEALTH CARE (UK) LTD,17/05/2019,286.60,73025-PROFESSIONAL SERVICES-PRIV CONTRACTOR & OTHER AGENCIES,INTERMEDIATE CARE SERVICE,Third Party Payments,Revenue
Walsall Council,http://opendatacommunities.org/id/metropolitan-district-council/walsall,WC104-251,31/05/2019,Adult Social Care,ADVANCE HEALTH CARE (UK) LTD,17/05/2019,286.60,73025-PROFESSIONAL SERVICES-PRIV CONTRACTOR & OTHER AGENCIES,INTERMEDIATE CARE SERVICE,Third Party Payments,Revenue
Walsall Council,http://opendatacommunities.org/id/metropolitan-district-council/walsall,WC104-252,31/05/2019,Adult Social Care,ADVANCE HEALTH CARE (UK) LTD,23/05/2019,286.60,73025-PROFESSIONAL SERVICES-PRIV CONTRACTOR & OTHER AGENCIES,INTERMEDIATE CARE SERVICE,Third Party Payments,Revenue
Walsall Council,http://opendatacommunities.org/id/metropolitan-district-council/walsall,WC104-253,31/05/2019,Adult Social Care,ADVANCE HEALTH CARE (UK) LTD,28/05/2019,286.60,73025-PROFESSIONAL SERVICES-PRIV CONTRACTOR & OTHER AGENCIES,INTERMEDIATE CARE SERVICE,Third Party Payments,Revenue
Walsall Council,http://opendatacommunities.org/id/metropolitan-district-council/walsall,WC104-254,31/05/2019,Adult Social Care,ADVANCE HEALTH CARE (UK) LTD,28/05/2019,300.93,73025-PROFESSIONAL SERVICES-PRIV CONTRACTOR & OTHER AGENCIES,INTERMEDIATE CARE SERVICE,Third Party Payments,Revenue
Walsall Council,http://opendatacommunities.org/id/metropolitan-district-council/walsall,WC104-255,31/05/2019,Adult Social Care,ADVANCE HEALTH CARE (UK) LTD,24/05/2019,301.14,73507-DOMICILIARY CARE,PHYSICAL SUPPORT,Third Party Payments,Revenue
Walsall Council,http://opendatacommunities.org/id/metropolitan-district-council/walsall,WC104-256,31/05/2019,Adult Social Care,ADVANCE HEALTH CARE (UK) LTD,22/05/2019,302.08,73025-PROFESSIONAL SERVICES-PRIV CONTRACTOR & OTHER AGENCIES,INTERMEDIATE CARE SERVICE,Third Party Payments,Revenue
Walsall Council,http://opendatacommunities.org/id/metropolitan-district-council/walsall,WC104-257,31/05/2019,Adult Social Care,ADVANCE HEALTH CARE (UK) LTD,22/05/2019,304.27,73025-PROFESSIONAL SERVICES-PRIV CONTRACTOR & OTHER AGENCIES,INTERMEDIATE CARE SERVICE,Third Party Payments,Revenue
Walsall Council,http://opendatacommunities.org/id/metropolitan-district-council/walsall,WC104-258,31/05/2019,Adult Social Care,ADVANCE HEALTH CARE (UK) LTD,07/05/2019,308.10,73025-PROFESSIONAL SERVICES-PRIV CONTRACTOR & OTHER AGENCIES,INTERMEDIATE CARE SERVICE,Third Party Payments,Revenue
Walsall Council,http://opendatacommunities.org/id/metropolitan-district-council/walsall,WC104-259,31/05/2019,Adult Social Care,ADVANCE HEALTH CARE (UK) LTD,07/05/2019,344.16,73025-PROFESSIONAL SERVICES-PRIV CONTRACTOR & OTHER AGENCIES,RAPID RESPONSE,Third Party Payments,Revenue
Walsall Council,http://opendatacommunities.org/id/metropolitan-district-council/walsall,WC104-260,31/05/2019,Adult Social Care,ADVANCE HEALTH CARE (UK) LTD,22/05/2019,344.23,73025-PROFESSIONAL SERVICES-PRIV CONTRACTOR & OTHER AGENCIES,INTERMEDIATE CARE SERVICE,Third Party Payments,Revenue
Walsall Council,http://opendatacommunities.org/id/metropolitan-district-council/walsall,WC104-261,31/05/2019,Adult Social Care,ADVANCE HEALTH CARE (UK) LTD,22/05/2019,344.23,73025-PROFESSIONAL SERVICES-PRIV CONTRACTOR & OTHER AGENCIES,INTERMEDIATE CARE SERVICE,Third Party Payments,Revenue
Walsall Council,http://opendatacommunities.org/id/metropolitan-district-council/walsall,WC104-262,31/05/2019,Adult Social Care,ADVANCE HEALTH CARE (UK) LTD,07/05/2019,351.09,73025-PROFESSIONAL SERVICES-PRIV CONTRACTOR & OTHER AGENCIES,INTERMEDIATE CARE SERVICE,Third Party Payments,Revenue
Walsall Council,http://opendatacommunities.org/id/metropolitan-district-council/walsall,WC104-263,31/05/2019,Adult Social Care,ADVANCE HEALTH CARE (UK) LTD,17/05/2019,351.09,73025-PROFESSIONAL SERVICES-PRIV CONTRACTOR & OTHER AGENCIES,INTERMEDIATE CARE SERVICE,Third Party Payments,Revenue
Walsall Council,http://opendatacommunities.org/id/metropolitan-district-council/walsall,WC104-264,31/05/2019,Adult Social Care,ADVANCE HEALTH CARE (UK) LTD,17/05/2019,351.09,73025-PROFESSIONAL SERVICES-PRIV CONTRACTOR & OTHER AGENCIES,INTERMEDIATE CARE SERVICE,Third Party Payments,Revenue
Walsall Council,http://opendatacommunities.org/id/metropolitan-district-council/walsall,WC104-265,31/05/2019,Adult Social Care,ADVANCE HEALTH CARE (UK) LTD,17/05/2019,351.09,73025-PROFESSIONAL SERVICES-PRIV CONTRACTOR & OTHER AGENCIES,INTERMEDIATE CARE SERVICE,Third Party Payments,Revenue
Walsall Council,http://opendatacommunities.org/id/metropolitan-district-council/walsall,WC104-266,31/05/2019,Adult Social Care,ADVANCE HEALTH CARE (UK) LTD,23/05/2019,351.09,73025-PROFESSIONAL SERVICES-PRIV CONTRACTOR & OTHER AGENCIES,INTERMEDIATE CARE SERVICE,Third Party Payments,Revenue
Walsall Council,http://opendatacommunities.org/id/metropolitan-district-council/walsall,WC104-267,31/05/2019,Adult Social Care,ADVANCE HEALTH CARE (UK) LTD,24/05/2019,351.09,73025-PROFESSIONAL SERVICES-PRIV CONTRACTOR & OTHER AGENCIES,INTERMEDIATE CARE SERVICE,Third Party Payments,Revenue
Walsall Council,http://opendatacommunities.org/id/metropolitan-district-council/walsall,WC104-268,31/05/2019,Adult Social Care,ADVANCE HEALTH CARE (UK) LTD,28/05/2019,351.09,73025-PROFESSIONAL SERVICES-PRIV CONTRACTOR & OTHER AGENCIES,INTERMEDIATE CARE SERVICE,Third Party Payments,Revenue
Walsall Council,http://opendatacommunities.org/id/metropolitan-district-council/walsall,WC104-269,31/05/2019,Adult Social Care,ADVANCE HEALTH CARE (UK) LTD,07/05/2019,372.58,73025-PROFESSIONAL SERVICES-PRIV CONTRACTOR & OTHER AGENCIES,INTERMEDIATE CARE SERVICE,Third Party Payments,Revenue
Walsall Council,http://opendatacommunities.org/id/metropolitan-district-council/walsall,WC104-270,31/05/2019,Adult Social Care,ADVANCE HEALTH CARE (UK) LTD,17/05/2019,372.58,73025-PROFESSIONAL SERVICES-PRIV CONTRACTOR & OTHER AGENCIES,INTERMEDIATE CARE SERVICE,Third Party Payments,Revenue
Walsall Council,http://opendatacommunities.org/id/metropolitan-district-council/walsall,WC104-271,31/05/2019,Adult Social Care,ADVANCE HEALTH CARE (UK) LTD,28/05/2019,384.62,73025-PROFESSIONAL SERVICES-PRIV CONTRACTOR & OTHER AGENCIES,INTERMEDIATE CARE SERVICE,Third Party Payments,Revenue
Walsall Council,http://opendatacommunities.org/id/metropolitan-district-council/walsall,WC104-272,31/05/2019,Adult Social Care,ADVANCE HEALTH CARE (UK) LTD,24/05/2019,387.18,73507-DOMICILIARY CARE,PHYSICAL SUPPORT,Third Party Payments,Revenue
Walsall Council,http://opendatacommunities.org/id/metropolitan-district-council/walsall,WC104-273,31/05/2019,Adult Social Care,ADVANCE HEALTH CARE (UK) LTD,24/05/2019,395.98,73507-DOMICILIARY CARE,PHYSICAL SUPPORT,Third Party Payments,Revenue
Walsall Council,http://opendatacommunities.org/id/metropolitan-district-council/walsall,WC104-274,31/05/2019,Adult Social Care,ADVANCE HEALTH CARE (UK) LTD,24/05/2019,397.17,73507-DOMICILIARY CARE,SENSORY SUPPORT,Third Party Payments,Revenue
Walsall Council,http://opendatacommunities.org/id/metropolitan-district-council/walsall,WC104-275,31/05/2019,Adult Social Care,ADVANCE HEALTH CARE (UK) LTD,24/05/2019,400.61,73507-DOMICILIARY CARE,SOCIAL SUPPORT,Third Party Payments,Revenue
Walsall Council,http://opendatacommunities.org/id/metropolitan-district-council/walsall,WC104-276,31/05/2019,Adult Social Care,ADVANCE HEALTH CARE (UK) LTD,24/05/2019,404.43,73507-DOMICILIARY CARE,PHYSICAL SUPPORT,Third Party Payments,Revenue
Walsall Council,http://opendatacommunities.org/id/metropolitan-district-council/walsall,WC104-277,31/05/2019,Adult Social Care,ADVANCE HEALTH CARE (UK) LTD,24/05/2019,408.41,73025-PROFESSIONAL SERVICES-PRIV CONTRACTOR & OTHER AGENCIES,INTERMEDIATE CARE SERVICE,Third Party Payments,Revenue
Walsall Council,http://opendatacommunities.org/id/metropolitan-district-council/walsall,WC104-278,31/05/2019,Adult Social Care,ADVANCE HEALTH CARE (UK) LTD,23/05/2019,422.74,73025-PROFESSIONAL SERVICES-PRIV CONTRACTOR & OTHER AGENCIES,INTERMEDIATE CARE SERVICE,Third Party Payments,Revenue
Walsall Council,http://opendatacommunities.org/id/metropolitan-district-council/walsall,WC104-279,31/05/2019,Adult Social Care,ADVANCE HEALTH CARE (UK) LTD,24/05/2019,426.99,73507-DOMICILIARY CARE,PHYSICAL SUPPORT,Third Party Payments,Revenue
Walsall Council,http://opendatacommunities.org/id/metropolitan-district-council/walsall,WC104-280,31/05/2019,Adult Social Care,ADVANCE HEALTH CARE (UK) LTD,17/05/2019,437.07,73025-PROFESSIONAL SERVICES-PRIV CONTRACTOR & OTHER AGENCIES,INTERMEDIATE CARE SERVICE,Third Party Payments,Revenue
Walsall Council,http://opendatacommunities.org/id/metropolitan-district-council/walsall,WC104-281,31/05/2019,Adult Social Care,ADVANCE HEALTH CARE (UK) LTD,24/05/2019,437.37,73507-DOMICILIARY CARE,SOCIAL SUPPORT,Third Party Payments,Revenue
Walsall Council,http://opendatacommunities.org/id/metropolitan-district-council/walsall,WC104-282,31/05/2019,Adult Social Care,ADVANCE HEALTH CARE (UK) LTD,22/05/2019,442.58,73025-PROFESSIONAL SERVICES-PRIV CONTRACTOR & OTHER AGENCIES,INTERMEDIATE CARE SERVICE,Third Party Payments,Revenue
Walsall Council,http://opendatacommunities.org/id/metropolitan-district-council/walsall,WC104-283,31/05/2019,Adult Social Care,ADVANCE HEALTH CARE (UK) LTD,22/05/2019,442.58,73025-PROFESSIONAL SERVICES-PRIV CONTRACTOR & OTHER AGENCIES,INTERMEDIATE CARE SERVICE,Third Party Payments,Revenue
Walsall Council,http://opendatacommunities.org/id/metropolitan-district-council/walsall,WC104-284,31/05/2019,Adult Social Care,ADVANCE HEALTH CARE (UK) LTD,22/05/2019,442.58,73025-PROFESSIONAL SERVICES-PRIV CONTRACTOR & OTHER AGENCIES,INTERMEDIATE CARE SERVICE,Third Party Payments,Revenue
Walsall Council,http://opendatacommunities.org/id/metropolitan-district-council/walsall,WC104-285,31/05/2019,Adult Social Care,ADVANCE HEALTH CARE (UK) LTD,22/05/2019,442.58,73025-PROFESSIONAL SERVICES-PRIV CONTRACTOR & OTHER AGENCIES,INTERMEDIATE CARE SERVICE,Third Party Payments,Revenue
Walsall Council,http://opendatacommunities.org/id/metropolitan-district-council/walsall,WC104-286,31/05/2019,Adult Social Care,ADVANCE HEALTH CARE (UK) LTD,22/05/2019,442.58,73025-PROFESSIONAL SERVICES-PRIV CONTRACTOR & OTHER AGENCIES,INTERMEDIATE CARE SERVICE,Third Party Payments,Revenue
Walsall Council,http://opendatacommunities.org/id/metropolitan-district-council/walsall,WC104-287,31/05/2019,Adult Social Care,ADVANCE HEALTH CARE (UK) LTD,22/05/2019,442.58,73025-PROFESSIONAL SERVICES-PRIV CONTRACTOR & OTHER AGENCIES,INTERMEDIATE CARE SERVICE,Third Party Payments,Revenue
Walsall Council,http://opendatacommunities.org/id/metropolitan-district-council/walsall,WC104-288,31/05/2019,Adult Social Care,ADVANCE HEALTH CARE (UK) LTD,22/05/2019,442.58,73025-PROFESSIONAL SERVICES-PRIV CONTRACTOR & OTHER AGENCIES,INTERMEDIATE CARE SERVICE,Third Party Payments,Revenue
Walsall Council,http://opendatacommunities.org/id/metropolitan-district-council/walsall,WC104-289,31/05/2019,Adult Social Care,ADVANCE HEALTH CARE (UK) LTD,22/05/2019,442.58,73025-PROFESSIONAL SERVICES-PRIV CONTRACTOR & OTHER AGENCIES,INTERMEDIATE CARE SERVICE,Third Party Payments,Revenue
Walsall Council,http://opendatacommunities.org/id/metropolitan-district-council/walsall,WC104-290,31/05/2019,Adult Social Care,ADVANCE HEALTH CARE (UK) LTD,28/05/2019,444.23,73025-PROFESSIONAL SERVICES-PRIV CONTRACTOR & OTHER AGENCIES,INTERMEDIATE CARE SERVICE,Third Party Payments,Revenue
Walsall Council,http://opendatacommunities.org/id/metropolitan-district-council/walsall,WC104-291,31/05/2019,Adult Social Care,ADVANCE HEALTH CARE (UK) LTD,22/05/2019,449.60,73025-PROFESSIONAL SERVICES-PRIV CONTRACTOR & OTHER AGENCIES,INTERMEDIATE CARE SERVICE,Third Party Payments,Revenue
Walsall Council,http://opendatacommunities.org/id/metropolitan-district-council/walsall,WC104-292,31/05/2019,Adult Social Care,ADVANCE HEALTH CARE (UK) LTD,07/05/2019,451.40,73025-PROFESSIONAL SERVICES-PRIV CONTRACTOR & OTHER AGENCIES,INTERMEDIATE CARE SERVICE,Third Party Payments,Revenue
Walsall Council,http://opendatacommunities.org/id/metropolitan-district-council/walsall,WC104-293,31/05/2019,Adult Social Care,ADVANCE HEALTH CARE (UK) LTD,07/05/2019,451.40,73025-PROFESSIONAL SERVICES-PRIV CONTRACTOR & OTHER AGENCIES,INTERMEDIATE CARE SERVICE,Third Party Payments,Revenue
Walsall Council,http://opendatacommunities.org/id/metropolitan-district-council/walsall,WC104-294,31/05/2019,Adult Social Care,ADVANCE HEALTH CARE (UK) LTD,07/05/2019,451.40,73025-PROFESSIONAL SERVICES-PRIV CONTRACTOR & OTHER AGENCIES,INTERMEDIATE CARE SERVICE,Third Party Payments,Revenue
Walsall Council,http://opendatacommunities.org/id/metropolitan-district-council/walsall,WC104-295,31/05/2019,Adult Social Care,ADVANCE HEALTH CARE (UK) LTD,07/05/2019,451.40,73025-PROFESSIONAL SERVICES-PRIV CONTRACTOR & OTHER AGENCIES,INTERMEDIATE CARE SERVICE,Third Party Payments,Revenue
Walsall Council,http://opendatacommunities.org/id/metropolitan-district-council/walsall,WC104-296,31/05/2019,Adult Social Care,ADVANCE HEALTH CARE (UK) LTD,07/05/2019,451.40,73025-PROFESSIONAL SERVICES-PRIV CONTRACTOR & OTHER AGENCIES,INTERMEDIATE CARE SERVICE,Third Party Payments,Revenue
Walsall Council,http://opendatacommunities.org/id/metropolitan-district-council/walsall,WC104-297,31/05/2019,Adult Social Care,ADVANCE HEALTH CARE (UK) LTD,07/05/2019,451.40,73025-PROFESSIONAL SERVICES-PRIV CONTRACTOR & OTHER AGENCIES,INTERMEDIATE CARE SERVICE,Third Party Payments,Revenue
Walsall Council,http://opendatacommunities.org/id/metropolitan-district-council/walsall,WC104-298,31/05/2019,Adult Social Care,ADVANCE HEALTH CARE (UK) LTD,07/05/2019,451.40,73025-PROFESSIONAL SERVICES-PRIV CONTRACTOR & OTHER AGENCIES,INTERMEDIATE CARE SERVICE,Third Party Payments,Revenue
Walsall Council,http://opendatacommunities.org/id/metropolitan-district-council/walsall,WC104-299,31/05/2019,Adult Social Care,ADVANCE HEALTH CARE (UK) LTD,07/05/2019,451.40,73025-PROFESSIONAL SERVICES-PRIV CONTRACTOR & OTHER AGENCIES,INTERMEDIATE CARE SERVICE,Third Party Payments,Revenue
Walsall Council,http://opendatacommunities.org/id/metropolitan-district-council/walsall,WC104-300,31/05/2019,Adult Social Care,ADVANCE HEALTH CARE (UK) LTD,17/05/2019,451.40,73025-PROFESSIONAL SERVICES-PRIV CONTRACTOR & OTHER AGENCIES,INTERMEDIATE CARE SERVICE,Third Party Payments,Revenue
Walsall Council,http://opendatacommunities.org/id/metropolitan-district-council/walsall,WC104-301,31/05/2019,Adult Social Care,ADVANCE HEALTH CARE (UK) LTD,17/05/2019,451.40,73025-PROFESSIONAL SERVICES-PRIV CONTRACTOR & OTHER AGENCIES,INTERMEDIATE CARE SERVICE,Third Party Payments,Revenue
Walsall Council,http://opendatacommunities.org/id/metropolitan-district-council/walsall,WC104-302,31/05/2019,Adult Social Care,ADVANCE HEALTH CARE (UK) LTD,17/05/2019,451.40,73025-PROFESSIONAL SERVICES-PRIV CONTRACTOR & OTHER AGENCIES,INTERMEDIATE CARE SERVICE,Third Party Payments,Revenue
Walsall Council,http://opendatacommunities.org/id/metropolitan-district-council/walsall,WC104-303,31/05/2019,Adult Social Care,ADVANCE HEALTH CARE (UK) LTD,17/05/2019,451.40,73025-PROFESSIONAL SERVICES-PRIV CONTRACTOR & OTHER AGENCIES,INTERMEDIATE CARE SERVICE,Third Party Payments,Revenue
Walsall Council,http://opendatacommunities.org/id/metropolitan-district-council/walsall,WC104-304,31/05/2019,Adult Social Care,ADVANCE HEALTH CARE (UK) LTD,17/05/2019,451.40,73025-PROFESSIONAL SERVICES-PRIV CONTRACTOR & OTHER AGENCIES,INTERMEDIATE CARE SERVICE,Third Party Payments,Revenue
Walsall Council,http://opendatacommunities.org/id/metropolitan-district-council/walsall,WC104-305,31/05/2019,Adult Social Care,ADVANCE HEALTH CARE (UK) LTD,17/05/2019,451.40,73025-PROFESSIONAL SERVICES-PRIV CONTRACTOR & OTHER AGENCIES,INTERMEDIATE CARE SERVICE,Third Party Payments,Revenue
Walsall Council,http://opendatacommunities.org/id/metropolitan-district-council/walsall,WC104-306,31/05/2019,Adult Social Care,ADVANCE HEALTH CARE (UK) LTD,17/05/2019,451.40,73025-PROFESSIONAL SERVICES-PRIV CONTRACTOR & OTHER AGENCIES,INTERMEDIATE CARE SERVICE,Third Party Payments,Revenue
Walsall Council,http://opendatacommunities.org/id/metropolitan-district-council/walsall,WC104-307,31/05/2019,Adult Social Care,ADVANCE HEALTH CARE (UK) LTD,17/05/2019,451.40,73025-PROFESSIONAL SERVICES-PRIV CONTRACTOR & OTHER AGENCIES,INTERMEDIATE CARE SERVICE,Third Party Payments,Revenue
Walsall Council,http://opendatacommunities.org/id/metropolitan-district-council/walsall,WC104-308,31/05/2019,Adult Social Care,ADVANCE HEALTH CARE (UK) LTD,17/05/2019,451.40,73025-PROFESSIONAL SERVICES-PRIV CONTRACTOR & OTHER AGENCIES,INTERMEDIATE CARE SERVICE,Third Party Payments,Revenue
Walsall Council,http://opendatacommunities.org/id/metropolitan-district-council/walsall,WC104-309,31/05/2019,Adult Social Care,ADVANCE HEALTH CARE (UK) LTD,17/05/2019,451.40,73025-PROFESSIONAL SERVICES-PRIV CONTRACTOR & OTHER AGENCIES,INTERMEDIATE CARE SERVICE,Third Party Payments,Revenue
Walsall Council,http://opendatacommunities.org/id/metropolitan-district-council/walsall,WC104-310,31/05/2019,Adult Social Care,ADVANCE HEALTH CARE (UK) LTD,17/05/2019,451.40,73025-PROFESSIONAL SERVICES-PRIV CONTRACTOR & OTHER AGENCIES,INTERMEDIATE CARE SERVICE,Third Party Payments,Revenue
Walsall Council,http://opendatacommunities.org/id/metropolitan-district-council/walsall,WC104-311,31/05/2019,Adult Social Care,ADVANCE HEALTH CARE (UK) LTD,21/05/2019,451.40,73025-PROFESSIONAL SERVICES-PRIV CONTRACTOR & OTHER AGENCIES,INTERMEDIATE CARE SERVICE,Third Party Payments,Revenue
Walsall Council,http://opendatacommunities.org/id/metropolitan-district-council/walsall,WC104-312,31/05/2019,Adult Social Care,ADVANCE HEALTH CARE (UK) LTD,21/05/2019,451.40,73025-PROFESSIONAL SERVICES-PRIV CONTRACTOR & OTHER AGENCIES,INTERMEDIATE CARE SERVICE,Third Party Payments,Revenue
Walsall Council,http://opendatacommunities.org/id/metropolitan-district-council/walsall,WC104-313,31/05/2019,Adult Social Care,ADVANCE HEALTH CARE (UK) LTD,21/05/2019,451.40,73025-PROFESSIONAL SERVICES-PRIV CONTRACTOR & OTHER AGENCIES,INTERMEDIATE CARE SERVICE,Third Party Payments,Revenue
Walsall Council,http://opendatacommunities.org/id/metropolitan-district-council/walsall,WC104-314,31/05/2019,Adult Social Care,ADVANCE HEALTH CARE (UK) LTD,23/05/2019,451.40,73025-PROFESSIONAL SERVICES-PRIV CONTRACTOR & OTHER AGENCIES,INTERMEDIATE CARE SERVICE,Third Party Payments,Revenue
Walsall Council,http://opendatacommunities.org/id/metropolitan-district-council/walsall,WC104-315,31/05/2019,Adult Social Care,ADVANCE HEALTH CARE (UK) LTD,23/05/2019,451.40,73025-PROFESSIONAL SERVICES-PRIV CONTRACTOR & OTHER AGENCIES,INTERMEDIATE CARE SERVICE,Third Party Payments,Revenue
Walsall Council,http://opendatacommunities.org/id/metropolitan-district-council/walsall,WC104-316,31/05/2019,Adult Social Care,ADVANCE HEALTH CARE (UK) LTD,23/05/2019,451.40,73025-PROFESSIONAL SERVICES-PRIV CONTRACTOR & OTHER AGENCIES,INTERMEDIATE CARE SERVICE,Third Party Payments,Revenue
Walsall Council,http://opendatacommunities.org/id/metropolitan-district-council/walsall,WC104-317,31/05/2019,Adult Social Care,ADVANCE HEALTH CARE (UK) LTD,23/05/2019,451.40,73025-PROFESSIONAL SERVICES-PRIV CONTRACTOR & OTHER AGENCIES,INTERMEDIATE CARE SERVICE,Third Party Payments,Revenue
Walsall Council,http://opendatacommunities.org/id/metropolitan-district-council/walsall,WC104-318,31/05/2019,Adult Social Care,ADVANCE HEALTH CARE (UK) LTD,23/05/2019,451.40,73025-PROFESSIONAL SERVICES-PRIV CONTRACTOR & OTHER AGENCIES,INTERMEDIATE CARE SERVICE,Third Party Payments,Revenue
Walsall Council,http://opendatacommunities.org/id/metropolitan-district-council/walsall,WC104-319,31/05/2019,Adult Social Care,ADVANCE HEALTH CARE (UK) LTD,23/05/2019,451.40,73025-PROFESSIONAL SERVICES-PRIV CONTRACTOR & OTHER AGENCIES,INTERMEDIATE CARE SERVICE,Third Party Payments,Revenue
Walsall Council,http://opendatacommunities.org/id/metropolitan-district-council/walsall,WC104-320,31/05/2019,Adult Social Care,ADVANCE HEALTH CARE (UK) LTD,24/05/2019,451.40,73025-PROFESSIONAL SERVICES-PRIV CONTRACTOR & OTHER AGENCIES,INTERMEDIATE CARE SERVICE,Third Party Payments,Revenue
Walsall Council,http://opendatacommunities.org/id/metropolitan-district-council/walsall,WC104-321,31/05/2019,Adult Social Care,ADVANCE HEALTH CARE (UK) LTD,24/05/2019,451.40,73025-PROFESSIONAL SERVICES-PRIV CONTRACTOR & OTHER AGENCIES,INTERMEDIATE CARE SERVICE,Third Party Payments,Revenue
Walsall Council,http://opendatacommunities.org/id/metropolitan-district-council/walsall,WC104-322,31/05/2019,Adult Social Care,ADVANCE HEALTH CARE (UK) LTD,24/05/2019,451.40,73025-PROFESSIONAL SERVICES-PRIV CONTRACTOR & OTHER AGENCIES,INTERMEDIATE CARE SERVICE,Third Party Payments,Revenue
Walsall Council,http://opendatacommunities.org/id/metropolitan-district-council/walsall,WC104-323,31/05/2019,Adult Social Care,ADVANCE HEALTH CARE (UK) LTD,28/05/2019,451.40,73025-PROFESSIONAL SERVICES-PRIV CONTRACTOR & OTHER AGENCIES,INTERMEDIATE CARE SERVICE,Third Party Payments,Revenue
Walsall Council,http://opendatacommunities.org/id/metropolitan-district-council/walsall,WC104-324,31/05/2019,Adult Social Care,ADVANCE HEALTH CARE (UK) LTD,28/05/2019,451.40,73025-PROFESSIONAL SERVICES-PRIV CONTRACTOR & OTHER AGENCIES,INTERMEDIATE CARE SERVICE,Third Party Payments,Revenue
Walsall Council,http://opendatacommunities.org/id/metropolitan-district-council/walsall,WC104-325,31/05/2019,Adult Social Care,ADVANCE HEALTH CARE (UK) LTD,28/05/2019,451.40,73025-PROFESSIONAL SERVICES-PRIV CONTRACTOR & OTHER AGENCIES,INTERMEDIATE CARE SERVICE,Third Party Payments,Revenue
Walsall Council,http://opendatacommunities.org/id/metropolitan-district-council/walsall,WC104-326,31/05/2019,Adult Social Care,ADVANCE HEALTH CARE (UK) LTD,28/05/2019,451.40,73025-PROFESSIONAL SERVICES-PRIV CONTRACTOR & OTHER AGENCIES,INTERMEDIATE CARE SERVICE,Third Party Payments,Revenue
Walsall Council,http://opendatacommunities.org/id/metropolitan-district-council/walsall,WC104-327,31/05/2019,Adult Social Care,ADVANCE HEALTH CARE (UK) LTD,28/05/2019,451.40,73025-PROFESSIONAL SERVICES-PRIV CONTRACTOR & OTHER AGENCIES,INTERMEDIATE CARE SERVICE,Third Party Payments,Revenue
Walsall Council,http://opendatacommunities.org/id/metropolitan-district-council/walsall,WC104-328,31/05/2019,Adult Social Care,ADVANCE HEALTH CARE (UK) LTD,28/05/2019,451.40,73025-PROFESSIONAL SERVICES-PRIV CONTRACTOR & OTHER AGENCIES,INTERMEDIATE CARE SERVICE,Third Party Payments,Revenue
Walsall Council,http://opendatacommunities.org/id/metropolitan-district-council/walsall,WC104-329,31/05/2019,Adult Social Care,ADVANCE HEALTH CARE (UK) LTD,28/05/2019,451.40,73025-PROFESSIONAL SERVICES-PRIV CONTRACTOR & OTHER AGENCIES,INTERMEDIATE CARE SERVICE,Third Party Payments,Revenue
Walsall Council,http://opendatacommunities.org/id/metropolitan-district-council/walsall,WC104-330,31/05/2019,Adult Social Care,ADVANCE HEALTH CARE (UK) LTD,28/05/2019,451.40,73025-PROFESSIONAL SERVICES-PRIV CONTRACTOR & OTHER AGENCIES,INTERMEDIATE CARE SERVICE,Third Party Payments,Revenue
Walsall Council,http://opendatacommunities.org/id/metropolitan-district-council/walsall,WC104-331,31/05/2019,Adult Social Care,ADVANCE HEALTH CARE (UK) LTD,28/05/2019,451.40,73025-PROFESSIONAL SERVICES-PRIV CONTRACTOR & OTHER AGENCIES,INTERMEDIATE CARE SERVICE,Third Party Payments,Revenue
Walsall Council,http://opendatacommunities.org/id/metropolitan-district-council/walsall,WC104-332,31/05/2019,Adult Social Care,ADVANCE HEALTH CARE (UK) LTD,24/05/2019,456.48,73507-DOMICILIARY CARE,SOCIAL SUPPORT,Third Party Payments,Revenue
Walsall Council,http://opendatacommunities.org/id/metropolitan-district-council/walsall,WC104-333,31/05/2019,Adult Social Care,ADVANCE HEALTH CARE (UK) LTD,24/05/2019,458.92,73507-DOMICILIARY CARE,PHYSICAL SUPPORT,Third Party Payments,Revenue
Walsall Council,http://opendatacommunities.org/id/metropolitan-district-council/walsall,WC104-334,31/05/2019,Adult Social Care,ADVANCE HEALTH CARE (UK) LTD,28/05/2019,465.73,73025-PROFESSIONAL SERVICES-PRIV CONTRACTOR & OTHER AGENCIES,INTERMEDIATE CARE SERVICE,Third Party Payments,Revenue
Walsall Council,http://opendatacommunities.org/id/metropolitan-district-council/walsall,WC104-335,31/05/2019,Adult Social Care,ADVANCE HEALTH CARE (UK) LTD,22/05/2019,470.68,73025-PROFESSIONAL SERVICES-PRIV CONTRACTOR & OTHER AGENCIES,INTERMEDIATE CARE SERVICE,Third Party Payments,Revenue
Walsall Council,http://opendatacommunities.org/id/metropolitan-district-council/walsall,WC104-336,31/05/2019,Adult Social Care,ADVANCE HEALTH CARE (UK) LTD,07/05/2019,472.89,73025-PROFESSIONAL SERVICES-PRIV CONTRACTOR & OTHER AGENCIES,INTERMEDIATE CARE SERVICE,Third Party Payments,Revenue
Walsall Council,http://opendatacommunities.org/id/metropolitan-district-council/walsall,WC104-337,31/05/2019,Adult Social Care,ADVANCE HEALTH CARE (UK) LTD,28/05/2019,480.06,73025-PROFESSIONAL SERVICES-PRIV CONTRACTOR & OTHER AGENCIES,INTERMEDIATE CARE SERVICE,Third Party Payments,Revenue
Walsall Council,http://opendatacommunities.org/id/metropolitan-district-council/walsall,WC104-338,31/05/2019,Adult Social Care,ADVANCE HEALTH CARE (UK) LTD,24/05/2019,492.22,73507-DOMICILIARY CARE,PHYSICAL SUPPORT,Third Party Payments,Revenue
Walsall Council,http://opendatacommunities.org/id/metropolitan-district-council/walsall,WC104-339,31/05/2019,Adult Social Care,ADVANCE HEALTH CARE (UK) LTD,24/05/2019,502.93,73507-DOMICILIARY CARE,LEARNING DISABILITY SUPPORT,Third Party Payments,Revenue
Walsall Council,http://opendatacommunities.org/id/metropolitan-district-council/walsall,WC104-340,31/05/2019,Adult Social Care,ADVANCE HEALTH CARE (UK) LTD,24/05/2019,508.32,73507-DOMICILIARY CARE,PHYSICAL SUPPORT,Third Party Payments,Revenue
Walsall Council,http://opendatacommunities.org/id/metropolitan-district-council/walsall,WC104-341,31/05/2019,Adult Social Care,ADVANCE HEALTH CARE (UK) LTD,22/05/2019,526.88,73025-PROFESSIONAL SERVICES-PRIV CONTRACTOR & OTHER AGENCIES,INTERMEDIATE CARE SERVICE,Third Party Payments,Revenue
Walsall Council,http://opendatacommunities.org/id/metropolitan-district-council/walsall,WC104-342,31/05/2019,Adult Social Care,ADVANCE HEALTH CARE (UK) LTD,28/05/2019,555.29,73025-PROFESSIONAL SERVICES-PRIV CONTRACTOR & OTHER AGENCIES,INTERMEDIATE CARE SERVICE,Third Party Payments,Revenue
Walsall Council,http://opendatacommunities.org/id/metropolitan-district-council/walsall,WC104-343,31/05/2019,Adult Social Care,ADVANCE HEALTH CARE (UK) LTD,24/05/2019,557.11,73507-DOMICILIARY CARE,PHYSICAL SUPPORT,Third Party Payments,Revenue
Walsall Council,http://opendatacommunities.org/id/metropolitan-district-council/walsall,WC104-344,31/05/2019,Adult Social Care,ADVANCE HEALTH CARE (UK) LTD,24/05/2019,562.94,73507-DOMICILIARY CARE,PHYSICAL SUPPORT,Third Party Payments,Revenue
Walsall Council,http://opendatacommunities.org/id/metropolitan-district-council/walsall,WC104-345,31/05/2019,Adult Social Care,ADVANCE HEALTH CARE (UK) LTD,24/05/2019,564.84,73507-DOMICILIARY CARE,PHYSICAL SUPPORT,Third Party Payments,Revenue
Walsall Council,http://opendatacommunities.org/id/metropolitan-district-council/walsall,WC104-346,31/05/2019,Adult Social Care,ADVANCE HEALTH CARE (UK) LTD,24/05/2019,594.35,73507-DOMICILIARY CARE,PHYSICAL SUPPORT,Third Party Payments,Revenue
Walsall Council,http://opendatacommunities.org/id/metropolitan-district-council/walsall,WC104-347,31/05/2019,Adult Social Care,ADVANCE HEALTH CARE (UK) LTD,24/05/2019,602.14,73507-DOMICILIARY CARE,PHYSICAL SUPPORT,Third Party Payments,Revenue
Walsall Council,http://opendatacommunities.org/id/metropolitan-district-council/walsall,WC104-348,31/05/2019,Adult Social Care,ADVANCE HEALTH CARE (UK) LTD,24/05/2019,605.41,73507-DOMICILIARY CARE,PHYSICAL SUPPORT,Third Party Payments,Revenue
Walsall Council,http://opendatacommunities.org/id/metropolitan-district-council/walsall,WC104-349,31/05/2019,Adult Social Care,ADVANCE HEALTH CARE (UK) LTD,24/05/2019,638.61,73507-DOMICILIARY CARE,PHYSICAL SUPPORT,Third Party Payments,Revenue
Walsall Council,http://opendatacommunities.org/id/metropolitan-district-council/walsall,WC104-350,31/05/2019,Adult Social Care,ADVANCE HEALTH CARE (UK) LTD,24/05/2019,660.01,73507-DOMICILIARY CARE,PHYSICAL SUPPORT,Third Party Payments,Revenue
Walsall Council,http://opendatacommunities.org/id/metropolitan-district-council/walsall,WC104-351,31/05/2019,Adult Social Care,ADVANCE HEALTH CARE (UK) LTD,24/05/2019,720.58,73507-DOMICILIARY CARE,PHYSICAL SUPPORT,Third Party Payments,Revenue
Walsall Council,http://opendatacommunities.org/id/metropolitan-district-council/walsall,WC104-352,31/05/2019,Adult Social Care,ADVANCE HEALTH CARE (UK) LTD,24/05/2019,745.16,73025-PROFESSIONAL SERVICES-PRIV CONTRACTOR & OTHER AGENCIES,INTERMEDIATE CARE SERVICE,Third Party Payments,Revenue
Walsall Council,http://opendatacommunities.org/id/metropolitan-district-council/walsall,WC104-353,31/05/2019,Adult Social Care,ADVANCE HEALTH CARE (UK) LTD,24/05/2019,750.12,73507-DOMICILIARY CARE,PHYSICAL SUPPORT,Third Party Payments,Revenue
Walsall Council,http://opendatacommunities.org/id/metropolitan-district-council/walsall,WC104-354,31/05/2019,Adult Social Care,ADVANCE HEALTH CARE (UK) LTD,24/05/2019,775.76,73507-DOMICILIARY CARE,PHYSICAL SUPPORT,Third Party Payments,Revenue
Walsall Council,http://opendatacommunities.org/id/metropolitan-district-council/walsall,WC104-355,31/05/2019,Adult Social Care,ADVANCE HEALTH CARE (UK) LTD,24/05/2019,796.87,73507-DOMICILIARY CARE,PHYSICAL SUPPORT,Third Party Payments,Revenue
Walsall Council,http://opendatacommunities.org/id/metropolitan-district-council/walsall,WC104-356,31/05/2019,Adult Social Care,ADVANCE HEALTH CARE (UK) LTD,24/05/2019,799.10,73507-DOMICILIARY CARE,PHYSICAL SUPPORT,Third Party Payments,Revenue
Walsall Council,http://opendatacommunities.org/id/metropolitan-district-council/walsall,WC104-357,31/05/2019,Adult Social Care,ADVANCE HEALTH CARE (UK) LTD,24/05/2019,799.12,73507-DOMICILIARY CARE,PHYSICAL SUPPORT,Third Party Payments,Revenue
Walsall Council,http://opendatacommunities.org/id/metropolitan-district-council/walsall,WC104-358,31/05/2019,Adult Social Care,ADVANCE HEALTH CARE (UK) LTD,24/05/2019,813.46,73507-DOMICILIARY CARE,PHYSICAL SUPPORT,Third Party Payments,Revenue
Walsall Council,http://opendatacommunities.org/id/metropolitan-district-council/walsall,WC104-359,31/05/2019,Adult Social Care,ADVANCE HEALTH CARE (UK) LTD,24/05/2019,827.51,73507-DOMICILIARY CARE,SUPPORT WITH MEMORY & COGNITION,Third Party Payments,Revenue
Walsall Council,http://opendatacommunities.org/id/metropolitan-district-council/walsall,WC104-360,31/05/2019,Adult Social Care,ADVANCE HEALTH CARE (UK) LTD,24/05/2019,827.52,73507-DOMICILIARY CARE,PHYSICAL SUPPORT,Third Party Payments,Revenue
Walsall Council,http://opendatacommunities.org/id/metropolitan-district-council/walsall,WC104-361,31/05/2019,Adult Social Care,ADVANCE HEALTH CARE (UK) LTD,24/05/2019,847.11,73507-DOMICILIARY CARE,PHYSICAL SUPPORT,Third Party Payments,Revenue
Walsall Council,http://opendatacommunities.org/id/metropolitan-district-council/walsall,WC104-362,31/05/2019,Adult Social Care,ADVANCE HEALTH CARE (UK) LTD,24/05/2019,883.48,73507-DOMICILIARY CARE,PHYSICAL SUPPORT,Third Party Payments,Revenue
Walsall Council,http://opendatacommunities.org/id/metropolitan-district-council/walsall,WC104-363,31/05/2019,Adult Social Care,ADVANCE HEALTH CARE (UK) LTD,24/05/2019,903.34,73507-DOMICILIARY CARE,PHYSICAL SUPPORT,Third Party Payments,Revenue
Walsall Council,http://opendatacommunities.org/id/metropolitan-district-council/walsall,WC104-364,31/05/2019,Adult Social Care,ADVANCE HEALTH CARE (UK) LTD,24/05/2019,913.93,73507-DOMICILIARY CARE,PHYSICAL SUPPORT,Third Party Payments,Revenue
Walsall Council,http://opendatacommunities.org/id/metropolitan-district-council/walsall,WC104-365,31/05/2019,Adult Social Care,ADVANCE HEALTH CARE (UK) LTD,24/05/2019,"1,002.19",73507-DOMICILIARY CARE,PHYSICAL SUPPORT,Third Party Payments,Revenue
Walsall Council,http://opendatacommunities.org/id/metropolitan-district-council/walsall,WC104-366,31/05/2019,Adult Social Care,ADVANCE HEALTH CARE (UK) LTD,01/05/2019,"1,010.27",73025-PROFESSIONAL SERVICES-PRIV CONTRACTOR & OTHER AGENCIES,RAPID RESPONSE,Third Party Payments,Revenue
Walsall Council,http://opendatacommunities.org/id/metropolitan-district-council/walsall,WC104-367,31/05/2019,Adult Social Care,ADVANCE HEALTH CARE (UK) LTD,24/05/2019,"1,107.52",73507-DOMICILIARY CARE,PHYSICAL SUPPORT,Third Party Payments,Revenue
Walsall Council,http://opendatacommunities.org/id/metropolitan-district-council/walsall,WC104-368,31/05/2019,Adult Social Care,ADVANCE HEALTH CARE (UK) LTD,24/05/2019,"1,193.63",73507-DOMICILIARY CARE,PHYSICAL SUPPORT,Third Party Payments,Revenue
Walsall Council,http://opendatacommunities.org/id/metropolitan-district-council/walsall,WC104-369,31/05/2019,Adult Social Care,ADVANCE HEALTH CARE (UK) LTD,24/05/2019,"1,198.68",73507-DOMICILIARY CARE,PHYSICAL SUPPORT,Third Party Payments,Revenue
Walsall Council,http://opendatacommunities.org/id/metropolitan-district-council/walsall,WC104-370,31/05/2019,Adult Social Care,ADVANCE HEALTH CARE (UK) LTD,24/05/2019,"1,198.82",73507-DOMICILIARY CARE,SOCIAL SUPPORT,Third Party Payments,Revenue
Walsall Council,http://opendatacommunities.org/id/metropolitan-district-council/walsall,WC104-371,31/05/2019,Adult Social Care,ADVANCE HEALTH CARE (UK) LTD,24/05/2019,"1,243.62",73507-DOMICILIARY CARE,PHYSICAL SUPPORT,Third Party Payments,Revenue
Walsall Council,http://opendatacommunities.org/id/metropolitan-district-council/walsall,WC104-372,31/05/2019,Adult Social Care,ADVANCE HEALTH CARE (UK) LTD,24/05/2019,"1,254.76",73507-DOMICILIARY CARE,PHYSICAL SUPPORT,Third Party Payments,Revenue
Walsall Council,http://opendatacommunities.org/id/metropolitan-district-council/walsall,WC104-373,31/05/2019,Adult Social Care,ADVANCE HEALTH CARE (UK) LTD,24/05/2019,"1,471.86",73507-DOMICILIARY CARE,PHYSICAL SUPPORT,Third Party Payments,Revenue
Walsall Council,http://opendatacommunities.org/id/metropolitan-district-council/walsall,WC104-374,31/05/2019,Adult Social Care,ADVANCE HEALTH CARE (UK) LTD,24/05/2019,"1,565.09",73507-DOMICILIARY CARE,PHYSICAL SUPPORT,Third Party Payments,Revenue
Walsall Council,http://opendatacommunities.org/id/metropolitan-district-council/walsall,WC104-375,31/05/2019,Adult Social Care,ADVANCE HEALTH CARE (UK) LTD,24/05/2019,"1,582.19",73507-DOMICILIARY CARE,PHYSICAL SUPPORT,Third Party Payments,Revenue
Walsall Council,http://opendatacommunities.org/id/metropolitan-district-council/walsall,WC104-376,31/05/2019,Adult Social Care,ADVANCE HEALTH CARE (UK) LTD,24/05/2019,"1,589.91",73507-DOMICILIARY CARE,PHYSICAL SUPPORT,Third Party Payments,Revenue
Walsall Council,http://opendatacommunities.org/id/metropolitan-district-council/walsall,WC104-377,31/05/2019,Adult Social Care,ADVANCE HEALTH CARE (UK) LTD,24/05/2019,"1,599.53",73507-DOMICILIARY CARE,PHYSICAL SUPPORT,Third Party Payments,Revenue
Walsall Council,http://opendatacommunities.org/id/metropolitan-district-council/walsall,WC104-378,31/05/2019,Adult Social Care,ADVANCE HEALTH CARE (UK) LTD,24/05/2019,"1,605.25",73507-DOMICILIARY CARE,PHYSICAL SUPPORT,Third Party Payments,Revenue
Walsall Council,http://opendatacommunities.org/id/metropolitan-district-council/walsall,WC104-379,31/05/2019,Adult Social Care,ADVANCE HEALTH CARE (UK) LTD,24/05/2019,"1,625.16",73507-DOMICILIARY CARE,PHYSICAL SUPPORT,Third Party Payments,Revenue
Walsall Council,http://opendatacommunities.org/id/metropolitan-district-council/walsall,WC104-380,31/05/2019,Adult Social Care,ADVANCE HEALTH CARE (UK) LTD,24/05/2019,"1,651.57",73507-DOMICILIARY CARE,PHYSICAL SUPPORT,Third Party Payments,Revenue
Walsall Council,http://opendatacommunities.org/id/metropolitan-district-council/walsall,WC104-381,31/05/2019,Adult Social Care,ADVANCE HEALTH CARE (UK) LTD,24/05/2019,"1,729.00",73507-DOMICILIARY CARE,PHYSICAL SUPPORT,Third Party Payments,Revenue
Walsall Council,http://opendatacommunities.org/id/metropolitan-district-council/walsall,WC104-382,31/05/2019,Adult Social Care,ADVANCE HEALTH CARE (UK) LTD,24/05/2019,"1,751.26",73507-DOMICILIARY CARE,PHYSICAL SUPPORT,Third Party Payments,Revenue
Walsall Council,http://opendatacommunities.org/id/metropolitan-district-council/walsall,WC104-383,31/05/2019,Adult Social Care,ADVANCE HEALTH CARE (UK) LTD,24/05/2019,"1,762.23",73507-DOMICILIARY CARE,PHYSICAL SUPPORT,Third Party Payments,Revenue
Walsall Council,http://opendatacommunities.org/id/metropolitan-district-council/walsall,WC104-384,31/05/2019,Adult Social Care,ADVANCE HEALTH CARE (UK) LTD,24/05/2019,"1,771.48",73507-DOMICILIARY CARE,PHYSICAL SUPPORT,Third Party Payments,Revenue
Walsall Council,http://opendatacommunities.org/id/metropolitan-district-council/walsall,WC104-385,31/05/2019,Adult Social Care,ADVANCE HEALTH CARE (UK) LTD,24/05/2019,"1,779.87",73507-DOMICILIARY CARE,PHYSICAL SUPPORT,Third Party Payments,Revenue
Walsall Council,http://opendatacommunities.org/id/metropolitan-district-council/walsall,WC104-386,31/05/2019,Adult Social Care,ADVANCE HEALTH CARE (UK) LTD,24/05/2019,"1,795.29",73507-DOMICILIARY CARE,PHYSICAL SUPPORT,Third Party Payments,Revenue
Walsall Council,http://opendatacommunities.org/id/metropolitan-district-council/walsall,WC104-387,31/05/2019,Adult Social Care,ADVANCE HEALTH CARE (UK) LTD,24/05/2019,"1,797.74",73507-DOMICILIARY CARE,PHYSICAL SUPPORT,Third Party Payments,Revenue
Walsall Council,http://opendatacommunities.org/id/metropolitan-district-council/walsall,WC104-388,31/05/2019,Adult Social Care,ADVANCE HEALTH CARE (UK) LTD,24/05/2019,"1,797.74",73507-DOMICILIARY CARE,PHYSICAL SUPPORT,Third Party Payments,Revenue
Walsall Council,http://opendatacommunities.org/id/metropolitan-district-council/walsall,WC104-389,31/05/2019,Adult Social Care,ADVANCE HEALTH CARE (UK) LTD,24/05/2019,"1,797.74",73507-DOMICILIARY CARE,PHYSICAL SUPPORT,Third Party Payments,Revenue
Walsall Council,http://opendatacommunities.org/id/metropolitan-district-council/walsall,WC104-390,31/05/2019,Adult Social Care,ADVANCE HEALTH CARE (UK) LTD,24/05/2019,"1,833.40",73507-DOMICILIARY CARE,PHYSICAL SUPPORT,Third Party Payments,Revenue
Walsall Council,http://opendatacommunities.org/id/metropolitan-district-council/walsall,WC104-391,31/05/2019,Adult Social Care,ADVANCE HEALTH CARE (UK) LTD,24/05/2019,"1,851.23",73507-DOMICILIARY CARE,PHYSICAL SUPPORT,Third Party Payments,Revenue
Walsall Council,http://opendatacommunities.org/id/metropolitan-district-council/walsall,WC104-392,31/05/2019,Adult Social Care,ADVANCE HEALTH CARE (UK) LTD,24/05/2019,"1,928.03",73507-DOMICILIARY CARE,PHYSICAL SUPPORT,Third Party Payments,Revenue
Walsall Council,http://opendatacommunities.org/id/metropolitan-district-council/walsall,WC104-393,31/05/2019,Adult Social Care,ADVANCE HEALTH CARE (UK) LTD,24/05/2019,"1,947.46",73507-DOMICILIARY CARE,PHYSICAL SUPPORT,Third Party Payments,Revenue
Walsall Council,http://opendatacommunities.org/id/metropolitan-district-council/walsall,WC104-394,31/05/2019,Adult Social Care,ADVANCE HEALTH CARE (UK) LTD,24/05/2019,"1,985.23",73507-DOMICILIARY CARE,PHYSICAL SUPPORT,Third Party Payments,Revenue
Walsall Council,http://opendatacommunities.org/id/metropolitan-district-council/walsall,WC104-395,31/05/2019,Adult Social Care,ADVANCE HEALTH CARE (UK) LTD,24/05/2019,"2,060.41",73507-DOMICILIARY CARE,PHYSICAL SUPPORT,Third Party Payments,Revenue
Walsall Council,http://opendatacommunities.org/id/metropolitan-district-council/walsall,WC104-396,31/05/2019,Adult Social Care,ADVANCE HEALTH CARE (UK) LTD,24/05/2019,"2,088.00",73507-DOMICILIARY CARE,PHYSICAL SUPPORT,Third Party Payments,Revenue
Walsall Council,http://opendatacommunities.org/id/metropolitan-district-council/walsall,WC104-397,31/05/2019,Adult Social Care,ADVANCE HEALTH CARE (UK) LTD,24/05/2019,"2,189.14",73507-DOMICILIARY CARE,PHYSICAL SUPPORT,Third Party Payments,Revenue
Walsall Council,http://opendatacommunities.org/id/metropolitan-district-council/walsall,WC104-398,31/05/2019,Adult Social Care,ADVANCE HEALTH CARE (UK) LTD,24/05/2019,"2,509.81",73507-DOMICILIARY CARE,PHYSICAL SUPPORT,Third Party Payments,Revenue
Walsall Council,http://opendatacommunities.org/id/metropolitan-district-council/walsall,WC104-399,31/05/2019,Adult Social Care,ADVANCE HEALTH CARE (UK) LTD,24/05/2019,"3,188.58",73507-DOMICILIARY CARE,SOCIAL SUPPORT,Third Party Payments,Revenue
Walsall Council,http://opendatacommunities.org/id/metropolitan-district-council/walsall,WC104-400,31/05/2019,Adult Social Care,ADVANCE HEALTH CARE (UK) LTD,24/05/2019,"4,791.36",73507-DOMICILIARY CARE,PHYSICAL SUPPORT,Third Party Payments,Revenue
Walsall Council,http://opendatacommunities.org/id/metropolitan-district-council/walsall,WC104-401,31/05/2019,Resources and Transformation,ADVANCED CONTRACTS (MIDLANDS) LTD,14/05/2019,435.60,40000-OPERATIONAL MAINTENANCE,CENTRALISED MAINTENANCE,Premises,Revenue
Walsall Council,http://opendatacommunities.org/id/metropolitan-district-council/walsall,WC104-402,31/05/2019,Adult Social Care,ADVANCED HEALTH AND CARE,08/05/2019,706.67,63800-COMPUTER EQUIPMENT AND SUPPLIES,INTERMEDIATE CARE SERVICE,Supplies & Services,Revenue
Walsall Council,http://opendatacommunities.org/id/metropolitan-district-council/walsall,WC104-403,31/05/2019,Economy & Environment,ADVANCED REPROGRAPHIC TECH T/A PRINTMONSTER,13/05/2019,196.00,62000-EXTERNAL PRINTING SERVICES,YEI (IMPACT) PROGRAMME,Supplies & Services,Revenue
Walsall Council,http://opendatacommunities.org/id/metropolitan-district-council/walsall,WC104-404,31/05/2019,Economy & Environment,ADVANCED REPROGRAPHIC TECH T/A PRINTMONSTER,13/05/2019,196.00,62000-EXTERNAL PRINTING SERVICES,YEI ESF FUNDING,Supplies & Services,Revenue
Walsall Council,http://opendatacommunities.org/id/metropolitan-district-council/walsall,WC104-405,31/05/2019,Economy & Environment,ADVANCED REPROGRAPHIC TECH T/A PRINTMONSTER,13/05/2019,223.50,62000-EXTERNAL PRINTING SERVICES,YEI (IMPACT) PROGRAMME,Supplies & Services,Revenue
Walsall Council,http://opendatacommunities.org/id/metropolitan-district-council/walsall,WC104-406,31/05/2019,Economy & Environment,ADVANCED REPROGRAPHIC TECH T/A PRINTMONSTER,13/05/2019,223.50,62000-EXTERNAL PRINTING SERVICES,YEI ESF FUNDING,Supplies & Services,Revenue
Walsall Council,http://opendatacommunities.org/id/metropolitan-district-council/walsall,WC104-407,31/05/2019,Adult Social Care,ADVOCACY MATTERS LIMITED,29/05/2019,"14,482.82",70000-SOCIAL SERVICES-FEES TO VOLUNTARY BODIES,OLDER PEOPLE SLA,Third Party Payments,Revenue
Walsall Council,http://opendatacommunities.org/id/metropolitan-district-council/walsall,WC104-408,31/05/2019,Economy & Environment,AEBI SCHMIDT UK LIMITED,22/05/2019,247.77,60500-GENERAL MATERIALS,FLEET,Supplies & Services,Revenue
Walsall Council,http://opendatacommunities.org/id/metropolitan-district-council/walsall,WC104-409,31/05/2019,Economy & Environment,AEBI SCHMIDT UK LIMITED,01/05/2019,619.05,60500-GENERAL MATERIALS,FLEET,Supplies & Services,Revenue
Walsall Council,http://opendatacommunities.org/id/metropolitan-district-council/walsall,WC104-410,31/05/2019,Economy & Environment,AECOM LIMITED,14/05/2019,"18,100.00",01001-OTHER CONSULTANTS FEES,CFR 1072 M6 JUNCTION 10-LTB,Capital,Capital
Walsall Council,http://opendatacommunities.org/id/metropolitan-district-council/walsall,WC104-411,31/05/2019,Economy & Environment,AECOM LIMITED,24/05/2019,"18,750.00",01002-PROJECT FEES,CFR 1072 M6 JUNCTION 10-LTB,Capital,Capital
Walsall Council,http://opendatacommunities.org/id/metropolitan-district-council/walsall,WC104-412,31/05/2019,Adult Social Care,AGINCARE UK LTD,23/05/2019,"2,887.27",73507-DOMICILIARY CARE,PHYSICAL SUPPORT,Third Party Payments,Revenue
Walsall Council,http://opendatacommunities.org/id/metropolitan-district-council/walsall,WC104-413,31/05/2019,Adult Social Care,REDACTED,03/05/2019,"2,092.80",73506-DIRECT PAYMENT,LEARNING DISABILITY SUPPORT,Third Party Payments,Revenue
Walsall Council,http://opendatacommunities.org/id/metropolitan-district-council/walsall,WC104-414,31/05/2019,Resources and Transformation,AIREY CONSULTANCY SERVICES LTD,01/05/2019,"1,415.00",63800-COMPUTER EQUIPMENT AND SUPPLIES,PROCESSING,Supplies & Services,Revenue
Walsall Council,http://opendatacommunities.org/id/metropolitan-district-council/walsall,WC104-415,31/05/2019,Adult Social Care,REDACTED,03/05/2019,802.76,73506-DIRECT PAYMENT,PHYSICAL SUPPORT,Third Party Payments,Revenue
Walsall Council,http://opendatacommunities.org/id/metropolitan-district-council/walsall,WC104-416,31/05/2019,Childrens,ALBRIGHTON CARE LTD,17/05/2019,"9,980.00",74036-EXTERNAL RESIDENTIAL CARE-OTH AGENCY PROVISION,INDEPENDENT RESIDENTIAL HOMES,Third Party Payments,Revenue
Walsall Council,http://opendatacommunities.org/id/metropolitan-district-council/walsall,WC104-417,31/05/2019,Adult Social Care,ALDERGROVE MANOR LTD,24/05/2019,"1,948.31",73501-RESIDENTIAL EMI,MENTAL HEALTH SUPPORT,Third Party Payments,Revenue
Walsall Council,http://opendatacommunities.org/id/metropolitan-district-council/walsall,WC104-418,31/05/2019,Adult Social Care,ALDERGROVE MANOR LTD,24/05/2019,"2,108.31",73501-RESIDENTIAL EMI,PHYSICAL SUPPORT,Third Party Payments,Revenue
Walsall Council,http://opendatacommunities.org/id/metropolitan-district-council/walsall,WC104-419,31/05/2019,Adult Social Care,ALDERGROVE MANOR LTD,24/05/2019,"2,117.71",73502-NURSING,PHYSICAL SUPPORT,Third Party Payments,Revenue
Walsall Council,http://opendatacommunities.org/id/metropolitan-district-council/walsall,WC104-420,31/05/2019,Adult Social Care,ALDERGROVE MANOR LTD,24/05/2019,"8,839.24",73501-RESIDENTIAL EMI,PHYSICAL SUPPORT,Third Party Payments,Revenue
Walsall Council,http://opendatacommunities.org/id/metropolitan-district-council/walsall,WC104-421,31/05/2019,Childrens,ALDRIDGE & BARONS LIMITED,15/05/2019,"3,948.00",52000-WITH DRIVER-HIRE OF VEHICLES,HOME TO SCHOOL TRANSPORT,Transport,Revenue
Walsall Council,http://opendatacommunities.org/id/metropolitan-district-council/walsall,WC104-422,31/05/2019,Childrens,ALDRIDGE & BARONS LIMITED,15/05/2019,"7,352.16",52000-WITH DRIVER-HIRE OF VEHICLES,HOME TO SCHOOL TRANSPORT,Transport,Revenue
Walsall Council,http://opendatacommunities.org/id/metropolitan-district-council/walsall,WC104-423,31/05/2019,Childrens,ALDRIDGE & BARONS LIMITED,15/05/2019,"10,302.24",52000-WITH DRIVER-HIRE OF VEHICLES,HOME TO SCHOOL TRANSPORT,Transport,Revenue
Walsall Council,http://opendatacommunities.org/id/metropolitan-district-council/walsall,WC104-424,31/05/2019,Childrens,ALDRIDGE & BARONS LIMITED,21/05/2019,"11,526.92",52000-WITH DRIVER-HIRE OF VEHICLES,HOME TO SCHOOL TRANSPORT,Transport,Revenue
Walsall Council,http://opendatacommunities.org/id/metropolitan-district-council/walsall,WC104-425,31/05/2019,Resources and Transformation,ALDRIDGE METHODIST CHURCH 001,13/05/2019,300.00,63128-HIRE OF ROOM-SERVICES-FEES,ELECTORAL ADMINISTRATION,Supplies & Services,Revenue
Walsall Council,http://opendatacommunities.org/id/metropolitan-district-council/walsall,WC104-426,31/05/2019,Economy & Environment,ALDRIDGE SHED,14/05/2019,625.00,63253-PAYMENT TO CONTRACTOR,MENTAL HEALTH,Third Party Payments,Revenue
Walsall Council,http://opendatacommunities.org/id/metropolitan-district-council/walsall,WC104-427,31/05/2019,Adult Social Care,REDACTED,03/05/2019,"1,348.80",73506-DIRECT PAYMENT,PHYSICAL SUPPORT,Third Party Payments,Revenue
Walsall Council,http://opendatacommunities.org/id/metropolitan-district-council/walsall,WC104-428,31/05/2019,Adult Social Care,ALEXANDRA HOUSE CARE SERVICES LTD T/A STONEBRIDGE NURSING HOME,24/05/2019,"1,779.36",73502-NURSING,LEARNING DISABILITY SUPPORT,Third Party Payments,Revenue
Walsall Council,http://opendatacommunities.org/id/metropolitan-district-council/walsall,WC104-429,31/05/2019,Adult Social Care,ALEXANDRA HOUSE CARE SERVICES LTD T/A STONEBRIDGE NURSING HOME,24/05/2019,"5,391.45",73500-RESIDENTIAL,LEARNING DISABILITY SUPPORT,Third Party Payments,Revenue
Walsall Council,http://opendatacommunities.org/id/metropolitan-district-council/walsall,WC104-430,31/05/2019,Adult Social Care,REDACTED,03/05/2019,"1,806.56",73506-DIRECT PAYMENT,PHYSICAL SUPPORT,Third Party Payments,Revenue
Walsall Council,http://opendatacommunities.org/id/metropolitan-district-council/walsall,WC104-431,31/05/2019,Childrens,REDACTED,07/05/2019,326.40,73506-DIRECT PAYMENT,FAMILY SUPPORT - DIRECT PAYMENTS,Third Party Payments,Revenue
Walsall Council,http://opendatacommunities.org/id/metropolitan-district-council/walsall,WC104-432,31/05/2019,Adult Social Care,REDACTED,03/05/2019,897.60,73506-DIRECT PAYMENT,PHYSICAL SUPPORT,Third Party Payments,Revenue
Walsall Council,http://opendatacommunities.org/id/metropolitan-district-council/walsall,WC104-433,31/05/2019,Adult Social Care,REDACTED,03/05/2019,"5,816.64",73506-DIRECT PAYMENT,LEARNING DISABILITY SUPPORT,Third Party Payments,Revenue
Walsall Council,http://opendatacommunities.org/id/metropolitan-district-council/walsall,WC104-434,31/05/2019,Adult Social Care,REDACTED,07/05/2019,"1,255.15",73510-SHARED LIVES,LEARNING DISABILITY SUPPORT,Third Party Payments,Revenue
Walsall Council,http://opendatacommunities.org/id/metropolitan-district-council/walsall,WC104-435,31/05/2019,Childrens,ALL SAINTS NATIONAL ACADEMY #1,23/05/2019,"4,230.78",66502-TOP UP FUNDING -GRANTS TO SCHOOLS,ALL SAINTS NATIONAL ACADEMY,Third Party Payments,Revenue
Walsall Council,http://opendatacommunities.org/id/metropolitan-district-council/walsall,WC104-436,31/05/2019,Adult Social Care,REDACTED,03/05/2019,"1,606.08",73506-DIRECT PAYMENT,SOCIAL SUPPORT,Third Party Payments,Revenue
Walsall Council,http://opendatacommunities.org/id/metropolitan-district-council/walsall,WC104-437,31/05/2019,Adult Social Care,ALLIED PUBLICITY SERVICES (MANCHESTER) LIMITED T/A APS GROUP,02/05/2019,284.66,63000-PROFESSIONAL FEES AND SERVICES,BLUE BADGES,Supplies & Services,Revenue
Walsall Council,http://opendatacommunities.org/id/metropolitan-district-council/walsall,WC104-438,31/05/2019,Adult Social Care,ALPHA HEALTH CARE LTD,24/05/2019,384.12,73503-NURSING EMI,PHYSICAL SUPPORT,Third Party Payments,Revenue
Walsall Council,http://opendatacommunities.org/id/metropolitan-district-council/walsall,WC104-439,31/05/2019,Adult Social Care,ALPHA HEALTH CARE LTD,24/05/2019,"1,753.43",73500-RESIDENTIAL,MENTAL HEALTH SUPPORT,Third Party Payments,Revenue
Walsall Council,http://opendatacommunities.org/id/metropolitan-district-council/walsall,WC104-440,31/05/2019,Adult Social Care,ALPHA HEALTH CARE LTD,24/05/2019,"2,117.71",73502-NURSING,PHYSICAL SUPPORT,Third Party Payments,Revenue
Walsall Council,http://opendatacommunities.org/id/metropolitan-district-council/walsall,WC104-441,31/05/2019,Adult Social Care,ALPHA HEALTH CARE LTD,24/05/2019,"2,231.79",73501-RESIDENTIAL EMI,SUPPORT WITH MEMORY & COGNITION,Third Party Payments,Revenue
Walsall Council,http://opendatacommunities.org/id/metropolitan-district-council/walsall,WC104-442,31/05/2019,Adult Social Care,ALPHA HEALTH CARE LTD,24/05/2019,"2,329.47",73503-NURSING EMI,MENTAL HEALTH SUPPORT,Third Party Payments,Revenue
Walsall Council,http://opendatacommunities.org/id/metropolitan-district-council/walsall,WC104-443,31/05/2019,Adult Social Care,ALPHA HEALTH CARE LTD,24/05/2019,"2,329.47",73503-NURSING EMI,PHYSICAL SUPPORT,Third Party Payments,Revenue
Walsall Council,http://opendatacommunities.org/id/metropolitan-district-council/walsall,WC104-444,31/05/2019,Adult Social Care,ALPHA HEALTH CARE LTD,24/05/2019,"2,329.47",73503-NURSING EMI,MENTAL HEALTH SUPPORT,Third Party Payments,Revenue
Walsall Council,http://opendatacommunities.org/id/metropolitan-district-council/walsall,WC104-445,31/05/2019,Adult Social Care,ALPHA HEALTH CARE LTD,24/05/2019,"2,465.63",73503-NURSING EMI,PHYSICAL SUPPORT,Third Party Payments,Revenue
Walsall Council,http://opendatacommunities.org/id/metropolitan-district-council/walsall,WC104-446,31/05/2019,Adult Social Care,ALPHA HEALTH CARE LTD,24/05/2019,"2,471.79",73501-RESIDENTIAL EMI,MENTAL HEALTH SUPPORT,Third Party Payments,Revenue
Walsall Council,http://opendatacommunities.org/id/metropolitan-district-council/walsall,WC104-447,31/05/2019,Adult Social Care,ALPHA HEALTH CARE LTD,24/05/2019,"2,562.91",73502-NURSING,PHYSICAL SUPPORT,Third Party Payments,Revenue
Walsall Council,http://opendatacommunities.org/id/metropolitan-district-council/walsall,WC104-448,31/05/2019,Adult Social Care,ALPHA HEALTH CARE LTD,24/05/2019,"2,853.19",73503-NURSING EMI,MENTAL HEALTH SUPPORT,Third Party Payments,Revenue
Walsall Council,http://opendatacommunities.org/id/metropolitan-district-council/walsall,WC104-449,31/05/2019,Adult Social Care,ALPHA HEALTH CARE LTD,24/05/2019,"2,853.19",73503-NURSING EMI,MENTAL HEALTH SUPPORT,Third Party Payments,Revenue
Walsall Council,http://opendatacommunities.org/id/metropolitan-district-council/walsall,WC104-450,31/05/2019,Adult Social Care,ALPHA HEALTH CARE LTD,24/05/2019,"2,853.19",73503-NURSING EMI,PHYSICAL SUPPORT,Third Party Payments,Revenue
Walsall Council,http://opendatacommunities.org/id/metropolitan-district-council/walsall,WC104-451,31/05/2019,Adult Social Care,ALPHA HEALTH CARE LTD,24/05/2019,"2,853.19",73503-NURSING EMI,PHYSICAL SUPPORT,Third Party Payments,Revenue
Walsall Council,http://opendatacommunities.org/id/metropolitan-district-council/walsall,WC104-452,31/05/2019,Adult Social Care,ALPHA HEALTH CARE LTD,24/05/2019,"2,853.23",73503-NURSING EMI,PHYSICAL SUPPORT,Third Party Payments,Revenue
Walsall Council,http://opendatacommunities.org/id/metropolitan-district-council/walsall,WC104-453,31/05/2019,Adult Social Care,ALPHA HEALTH CARE LTD,24/05/2019,"2,909.27",73503-NURSING EMI,PHYSICAL SUPPORT,Third Party Payments,Revenue
Walsall Council,http://opendatacommunities.org/id/metropolitan-district-council/walsall,WC104-454,31/05/2019,Adult Social Care,ALPHA HEALTH CARE LTD,24/05/2019,"3,011.79",73501-RESIDENTIAL EMI,PHYSICAL SUPPORT,Third Party Payments,Revenue
Walsall Council,http://opendatacommunities.org/id/metropolitan-district-council/walsall,WC104-455,31/05/2019,Adult Social Care,ALPHA HEALTH CARE LTD,24/05/2019,"3,011.79",73501-RESIDENTIAL EMI,SUPPORT WITH MEMORY & COGNITION,Third Party Payments,Revenue
Walsall Council,http://opendatacommunities.org/id/metropolitan-district-council/walsall,WC104-456,31/05/2019,Adult Social Care,ALPHA HEALTH CARE LTD,24/05/2019,"3,011.79",73501-RESIDENTIAL EMI,PHYSICAL SUPPORT,Third Party Payments,Revenue
Walsall Council,http://opendatacommunities.org/id/metropolitan-district-council/walsall,WC104-457,31/05/2019,Adult Social Care,ALPHA HEALTH CARE LTD,24/05/2019,"3,261.75",73503-NURSING EMI,PHYSICAL SUPPORT,Third Party Payments,Revenue
Walsall Council,http://opendatacommunities.org/id/metropolitan-district-council/walsall,WC104-458,31/05/2019,Adult Social Care,ALPHA HEALTH CARE LTD,24/05/2019,"3,485.83",73503-NURSING EMI,MENTAL HEALTH SUPPORT,Third Party Payments,Revenue
Walsall Council,http://opendatacommunities.org/id/metropolitan-district-council/walsall,WC104-459,31/05/2019,Adult Social Care,ALPHA HEALTH CARE LTD,24/05/2019,"7,041.72",73501-RESIDENTIAL EMI,PHYSICAL SUPPORT,Third Party Payments,Revenue
Walsall Council,http://opendatacommunities.org/id/metropolitan-district-council/walsall,WC104-460,31/05/2019,Adult Social Care,ALPHA HEALTH CARE LTD,24/05/2019,"11,234.27",73503-NURSING EMI,PHYSICAL SUPPORT,Third Party Payments,Revenue
Walsall Council,http://opendatacommunities.org/id/metropolitan-district-council/walsall,WC104-461,31/05/2019,Childrens,REDACTED,07/05/2019,318.08,74510-RESIDENTS ORDERS,ADOPTION ALLOWANCES,Third Party Payments,Revenue
Walsall Council,http://opendatacommunities.org/id/metropolitan-district-council/walsall,WC104-462,31/05/2019,Childrens,REDACTED,07/05/2019,318.08,74510-RESIDENTS ORDERS,ADOPTION ALLOWANCES,Third Party Payments,Revenue
Walsall Council,http://opendatacommunities.org/id/metropolitan-district-council/walsall,WC104-463,31/05/2019,Adult Social Care,REDACTED,03/05/2019,"1,128.76",73506-DIRECT PAYMENT,LEARNING DISABILITY SUPPORT,Third Party Payments,Revenue
Walsall Council,http://opendatacommunities.org/id/metropolitan-district-council/walsall,WC104-464,31/05/2019,Childrens,REDACTED,07/05/2019,808.04,74009-ADOPTION ALLOWANCE,ADOPTION ALLOWANCES,Transfer Payments,Revenue
Walsall Council,http://opendatacommunities.org/id/metropolitan-district-council/walsall,WC104-465,31/05/2019,Childrens,REDACTED,17/05/2019,98.16,74506-TRAVEL-FOSTER CARERS,INTERNAL FOSTER CARE PROVISION,Transfer Payments,Revenue
Walsall Council,http://opendatacommunities.org/id/metropolitan-district-council/walsall,WC104-466,31/05/2019,Childrens,REDACTED,17/05/2019,557.14,74501-MAINTENANCE ALLOWANCE-FOSTER CARERS,INTERNAL FOSTER CARE PROVISION,Transfer Payments,Revenue
Walsall Council,http://opendatacommunities.org/id/metropolitan-district-council/walsall,WC104-467,31/05/2019,Childrens,REDACTED,17/05/2019,"1,000.00",74508-INTERNAL FOSTER CARERS-CARER FEES,INTERNAL FOSTER CARE PROVISION,Transfer Payments,Revenue
Walsall Council,http://opendatacommunities.org/id/metropolitan-district-council/walsall,WC104-468,31/05/2019,Childrens,AMANS TRAVEL LTD,15/05/2019,654.50,52000-WITH DRIVER-HIRE OF VEHICLES,HOME TO SCHOOL TRANSPORT,Transport,Revenue
Walsall Council,http://opendatacommunities.org/id/metropolitan-district-council/walsall,WC104-469,31/05/2019,Adult Social Care,REDACTED,03/05/2019,897.60,73506-DIRECT PAYMENT,LEARNING DISABILITY SUPPORT,Third Party Payments,Revenue
Walsall Council,http://opendatacommunities.org/id/metropolitan-district-council/walsall,WC104-470,31/05/2019,Economy & Environment,AMEY LG LIMITED,13/05/2019,"3,586.56",01006-SITE WORKS MAIN CONTRACTORS,CFR 1281 SAFER ROUTES TO SCHOOL: ELMORE GREEN PRIMARY,Capital,Capital
Walsall Council,http://opendatacommunities.org/id/metropolitan-district-council/walsall,WC104-471,31/05/2019,Economy & Environment,AMEY LG LIMITED,28/05/2019,"5,195.20",73025-PROFESSIONAL SERVICES-PRIV CONTRACTOR & OTHER AGENCIES,TRAFFIC MANAGEMENT,Third Party Payments,Revenue
Walsall Council,http://opendatacommunities.org/id/metropolitan-district-council/walsall,WC104-472,31/05/2019,Economy & Environment,AMEY LG LIMITED,22/05/2019,"10,350.45",01006-SITE WORKS MAIN CONTRACTORS,CFR 1282 LGF - BLOXWICH NORTH PARK & RIDE EXTENSION (CONTRIBUTION TO NPIF),Capital,Capital
Walsall Council,http://opendatacommunities.org/id/metropolitan-district-council/walsall,WC104-473,31/05/2019,Adult Social Care,AMG NURSING CARE SERVICES,23/05/2019,"3,510.00",73508-COMMUNITY SUPPORTED LIVING/SUPPORTED ACCOMMODATION,PHYSICAL SUPPORT,Third Party Payments,Revenue
Walsall Council,http://opendatacommunities.org/id/metropolitan-district-council/walsall,WC104-474,31/05/2019,Adult Social Care,AMG NURSING CARE SERVICES,29/05/2019,"10,695.74",73508-COMMUNITY SUPPORTED LIVING/SUPPORTED ACCOMMODATION,PHYSICAL SUPPORT,Third Party Payments,Revenue
Walsall Council,http://opendatacommunities.org/id/metropolitan-district-council/walsall,WC104-475,31/05/2019,Adult Social Care,AMG NURSING CARE SERVICES,24/05/2019,"10,714.34",73508-COMMUNITY SUPPORTED LIVING/SUPPORTED ACCOMMODATION,PHYSICAL SUPPORT,Third Party Payments,Revenue
Walsall Council,http://opendatacommunities.org/id/metropolitan-district-council/walsall,WC104-476,31/05/2019,Adult Social Care,REDACTED,03/05/2019,"1,156.12",73506-DIRECT PAYMENT,PHYSICAL SUPPORT,Third Party Payments,Revenue
Walsall Council,http://opendatacommunities.org/id/metropolitan-district-council/walsall,WC104-477,31/05/2019,Childrens,REDACTED,07/05/2019,340.00,74508-INTERNAL FOSTER CARERS-CARER FEES,FAMILY & FRIENDS FOSTER CARE PROVISION,Transfer Payments,Revenue
Walsall Council,http://opendatacommunities.org/id/metropolitan-district-council/walsall,WC104-478,31/05/2019,Childrens,REDACTED,07/05/2019,450.00,74504-HOLIDAY/CHRISTMAS ALLOWANCE-FOSTER CARERS,FAMILY & FRIENDS FOSTER CARE PROVISION,Transfer Payments,Revenue
Walsall Council,http://opendatacommunities.org/id/metropolitan-district-council/walsall,WC104-479,31/05/2019,Childrens,REDACTED,07/05/2019,600.00,74501-MAINTENANCE ALLOWANCE-FOSTER CARERS,FAMILY & FRIENDS FOSTER CARE PROVISION,Transfer Payments,Revenue
Walsall Council,http://opendatacommunities.org/id/metropolitan-district-council/walsall,WC104-480,31/05/2019,Childrens,REDACTED,07/05/2019,425.08,74510-RESIDENTS ORDERS,ADOPTION ALLOWANCES,Third Party Payments,Revenue
Walsall Council,http://opendatacommunities.org/id/metropolitan-district-council/walsall,WC104-481,31/05/2019,Adult Social Care,ANCHOR,24/05/2019,340.00,73501-RESIDENTIAL EMI,SUPPORT WITH MEMORY & COGNITION,Third Party Payments,Revenue
Walsall Council,http://opendatacommunities.org/id/metropolitan-district-council/walsall,WC104-482,31/05/2019,Adult Social Care,ANCHOR,24/05/2019,416.48,73501-RESIDENTIAL EMI,PHYSICAL SUPPORT,Third Party Payments,Revenue
Walsall Council,http://opendatacommunities.org/id/metropolitan-district-council/walsall,WC104-483,31/05/2019,Adult Social Care,ANCHOR,24/05/2019,"1,753.43",73500-RESIDENTIAL,PHYSICAL SUPPORT,Third Party Payments,Revenue
Walsall Council,http://opendatacommunities.org/id/metropolitan-district-council/walsall,WC104-484,31/05/2019,Adult Social Care,ANCHOR,24/05/2019,"1,753.43",73500-RESIDENTIAL,SUPPORT WITH MEMORY & COGNITION,Third Party Payments,Revenue
Walsall Council,http://opendatacommunities.org/id/metropolitan-district-council/walsall,WC104-485,31/05/2019,Adult Social Care,ANCHOR,24/05/2019,"1,753.43",73500-RESIDENTIAL,PHYSICAL SUPPORT,Third Party Payments,Revenue
Walsall Council,http://opendatacommunities.org/id/metropolitan-district-council/walsall,WC104-486,31/05/2019,Adult Social Care,ANCHOR,24/05/2019,"1,753.43",73500-RESIDENTIAL,SUPPORT WITH MEMORY & COGNITION,Third Party Payments,Revenue
Walsall Council,http://opendatacommunities.org/id/metropolitan-district-council/walsall,WC104-487,31/05/2019,Adult Social Care,ANCHOR,24/05/2019,"1,753.43",73500-RESIDENTIAL,PHYSICAL SUPPORT,Third Party Payments,Revenue
Walsall Council,http://opendatacommunities.org/id/metropolitan-district-council/walsall,WC104-488,31/05/2019,Adult Social Care,ANCHOR,24/05/2019,"1,856.35",73500-RESIDENTIAL,PHYSICAL SUPPORT,Third Party Payments,Revenue
Walsall Council,http://opendatacommunities.org/id/metropolitan-district-council/walsall,WC104-489,31/05/2019,Adult Social Care,ANCHOR,24/05/2019,"1,904.59",73500-RESIDENTIAL,PHYSICAL SUPPORT,Third Party Payments,Revenue
Walsall Council,http://opendatacommunities.org/id/metropolitan-district-council/walsall,WC104-490,31/05/2019,Adult Social Care,ANCHOR,24/05/2019,"1,911.79",73501-RESIDENTIAL EMI,PHYSICAL SUPPORT,Third Party Payments,Revenue
Walsall Council,http://opendatacommunities.org/id/metropolitan-district-council/walsall,WC104-491,31/05/2019,Adult Social Care,ANCHOR,24/05/2019,"1,913.43",73500-RESIDENTIAL,PHYSICAL SUPPORT,Third Party Payments,Revenue
Walsall Council,http://opendatacommunities.org/id/metropolitan-district-council/walsall,WC104-492,31/05/2019,Adult Social Care,ANCHOR,24/05/2019,"1,917.02",73501-RESIDENTIAL EMI,PHYSICAL SUPPORT,Third Party Payments,Revenue
Walsall Council,http://opendatacommunities.org/id/metropolitan-district-council/walsall,WC104-493,31/05/2019,Adult Social Care,ANCHOR,24/05/2019,"1,948.31",73501-RESIDENTIAL EMI,MENTAL HEALTH SUPPORT,Third Party Payments,Revenue
Walsall Council,http://opendatacommunities.org/id/metropolitan-district-council/walsall,WC104-494,31/05/2019,Adult Social Care,ANCHOR,24/05/2019,"1,948.31",73501-RESIDENTIAL EMI,MENTAL HEALTH SUPPORT,Third Party Payments,Revenue
Walsall Council,http://opendatacommunities.org/id/metropolitan-district-council/walsall,WC104-495,31/05/2019,Adult Social Care,ANCHOR,24/05/2019,"1,948.31",73501-RESIDENTIAL EMI,PHYSICAL SUPPORT,Third Party Payments,Revenue
Walsall Council,http://opendatacommunities.org/id/metropolitan-district-council/walsall,WC104-496,31/05/2019,Adult Social Care,ANCHOR,24/05/2019,"1,948.31",73501-RESIDENTIAL EMI,SUPPORT WITH MEMORY & COGNITION,Third Party Payments,Revenue
Walsall Council,http://opendatacommunities.org/id/metropolitan-district-council/walsall,WC104-497,31/05/2019,Adult Social Care,ANCHOR,24/05/2019,"1,948.31",73501-RESIDENTIAL EMI,MENTAL HEALTH SUPPORT,Third Party Payments,Revenue
Walsall Council,http://opendatacommunities.org/id/metropolitan-district-council/walsall,WC104-498,31/05/2019,Adult Social Care,ANCHOR,24/05/2019,"1,948.31",73501-RESIDENTIAL EMI,PHYSICAL SUPPORT,Third Party Payments,Revenue
Walsall Council,http://opendatacommunities.org/id/metropolitan-district-council/walsall,WC104-499,31/05/2019,Adult Social Care,ANCHOR,24/05/2019,"1,948.31",73501-RESIDENTIAL EMI,PHYSICAL SUPPORT,Third Party Payments,Revenue
Walsall Council,http://opendatacommunities.org/id/metropolitan-district-council/walsall,WC104-500,31/05/2019,Adult Social Care,ANCHOR,24/05/2019,"1,948.31",73501-RESIDENTIAL EMI,PHYSICAL SUPPORT,Third Party Payments,Revenue
Walsall Council,http://opendatacommunities.org/id/metropolitan-district-council/walsall,WC104-501,31/05/2019,Adult Social Care,ANCHOR,24/05/2019,"1,948.31",73501-RESIDENTIAL EMI,SUPPORT WITH MEMORY & COGNITION,Third Party Payments,Revenue
Walsall Council,http://opendatacommunities.org/id/metropolitan-district-council/walsall,WC104-502,31/05/2019,Adult Social Care,ANCHOR,24/05/2019,"1,948.31",73501-RESIDENTIAL EMI,PHYSICAL SUPPORT,Third Party Payments,Revenue
Walsall Council,http://opendatacommunities.org/id/metropolitan-district-council/walsall,WC104-503,31/05/2019,Adult Social Care,ANCHOR,24/05/2019,"1,948.31",73501-RESIDENTIAL EMI,SUPPORT WITH MEMORY & COGNITION,Third Party Payments,Revenue
Walsall Council,http://opendatacommunities.org/id/metropolitan-district-council/walsall,WC104-504,31/05/2019,Adult Social Care,ANCHOR,24/05/2019,"1,948.31",73501-RESIDENTIAL EMI,MENTAL HEALTH SUPPORT,Third Party Payments,Revenue
Walsall Council,http://opendatacommunities.org/id/metropolitan-district-council/walsall,WC104-505,31/05/2019,Adult Social Care,ANCHOR,24/05/2019,"2,033.43",73500-RESIDENTIAL,SENSORY SUPPORT,Third Party Payments,Revenue
Walsall Council,http://opendatacommunities.org/id/metropolitan-district-council/walsall,WC104-506,31/05/2019,Adult Social Care,ANCHOR,24/05/2019,"2,073.43",73500-RESIDENTIAL,SOCIAL SUPPORT,Third Party Payments,Revenue
Walsall Council,http://opendatacommunities.org/id/metropolitan-district-council/walsall,WC104-507,31/05/2019,Adult Social Care,ANCHOR,24/05/2019,"2,073.43",73500-RESIDENTIAL,PHYSICAL SUPPORT,Third Party Payments,Revenue
Walsall Council,http://opendatacommunities.org/id/metropolitan-district-council/walsall,WC104-508,31/05/2019,Adult Social Care,ANCHOR,24/05/2019,"2,093.43",73500-RESIDENTIAL,PHYSICAL SUPPORT,Third Party Payments,Revenue
Walsall Council,http://opendatacommunities.org/id/metropolitan-district-council/walsall,WC104-509,31/05/2019,Adult Social Care,ANCHOR,24/05/2019,"2,120.63",73501-RESIDENTIAL EMI,SENSORY SUPPORT,Third Party Payments,Revenue
Walsall Council,http://opendatacommunities.org/id/metropolitan-district-council/walsall,WC104-510,31/05/2019,Adult Social Care,ANCHOR,24/05/2019,"2,151.79",73501-RESIDENTIAL EMI,MENTAL HEALTH SUPPORT,Third Party Payments,Revenue
Walsall Council,http://opendatacommunities.org/id/metropolitan-district-council/walsall,WC104-511,31/05/2019,Adult Social Care,ANCHOR,24/05/2019,"2,244.59",73500-RESIDENTIAL,PHYSICAL SUPPORT,Third Party Payments,Revenue
Walsall Council,http://opendatacommunities.org/id/metropolitan-district-council/walsall,WC104-512,31/05/2019,Adult Social Care,ANCHOR,24/05/2019,"2,268.31",73501-RESIDENTIAL EMI,SUPPORT WITH MEMORY & COGNITION,Third Party Payments,Revenue
Walsall Council,http://opendatacommunities.org/id/metropolitan-district-council/walsall,WC104-513,31/05/2019,Adult Social Care,ANCHOR,24/05/2019,"2,275.46",73501-RESIDENTIAL EMI,PHYSICAL SUPPORT,Third Party Payments,Revenue
Walsall Council,http://opendatacommunities.org/id/metropolitan-district-council/walsall,WC104-514,31/05/2019,Adult Social Care,ANCHOR,24/05/2019,"2,288.31",73501-RESIDENTIAL EMI,PHYSICAL SUPPORT,Third Party Payments,Revenue
Walsall Council,http://opendatacommunities.org/id/metropolitan-district-council/walsall,WC104-515,31/05/2019,Adult Social Care,ANCHOR,24/05/2019,"2,288.31",73501-RESIDENTIAL EMI,PHYSICAL SUPPORT,Third Party Payments,Revenue
Walsall Council,http://opendatacommunities.org/id/metropolitan-district-council/walsall,WC104-516,31/05/2019,Adult Social Care,ANCHOR,24/05/2019,"2,288.31",73501-RESIDENTIAL EMI,SUPPORT WITH MEMORY & COGNITION,Third Party Payments,Revenue
Walsall Council,http://opendatacommunities.org/id/metropolitan-district-council/walsall,WC104-517,31/05/2019,Adult Social Care,ANCHOR,24/05/2019,"2,288.31",73501-RESIDENTIAL EMI,PHYSICAL SUPPORT,Third Party Payments,Revenue
Walsall Council,http://opendatacommunities.org/id/metropolitan-district-council/walsall,WC104-518,31/05/2019,Adult Social Care,ANCHOR,24/05/2019,"2,288.31",73501-RESIDENTIAL EMI,PHYSICAL SUPPORT,Third Party Payments,Revenue
Walsall Council,http://opendatacommunities.org/id/metropolitan-district-council/walsall,WC104-519,31/05/2019,Adult Social Care,ANCHOR,24/05/2019,"2,308.31",73501-RESIDENTIAL EMI,PHYSICAL SUPPORT,Third Party Payments,Revenue
Walsall Council,http://opendatacommunities.org/id/metropolitan-district-council/walsall,WC104-520,31/05/2019,Adult Social Care,ANCHOR,24/05/2019,"3,018.39",73501-RESIDENTIAL EMI,PHYSICAL SUPPORT,Third Party Payments,Revenue
Walsall Council,http://opendatacommunities.org/id/metropolitan-district-council/walsall,WC104-521,31/05/2019,Adult Social Care,ANCHOR,24/05/2019,"10,740.61",73501-RESIDENTIAL EMI,SUPPORT WITH MEMORY & COGNITION,Third Party Payments,Revenue
Walsall Council,http://opendatacommunities.org/id/metropolitan-district-council/walsall,WC104-522,31/05/2019,Childrens,REDACTED,07/05/2019,312.24,74509-SPECIAL GUARDIANSHIP ORDERS,ADOPTION ALLOWANCES,Transfer Payments,Revenue
Walsall Council,http://opendatacommunities.org/id/metropolitan-district-council/walsall,WC104-523,31/05/2019,Childrens,REDACTED,17/05/2019,720.00,74501-MAINTENANCE ALLOWANCE-FOSTER CARERS,INTERNAL FOSTER CARE PROVISION,Transfer Payments,Revenue
Walsall Council,http://opendatacommunities.org/id/metropolitan-district-council/walsall,WC104-524,31/05/2019,Childrens,REDACTED,17/05/2019,"1,000.00",74508-INTERNAL FOSTER CARERS-CARER FEES,INTERNAL FOSTER CARE PROVISION,Transfer Payments,Revenue
Walsall Council,http://opendatacommunities.org/id/metropolitan-district-council/walsall,WC104-525,31/05/2019,Adult Social Care,REDACTED,03/05/2019,619.24,73506-DIRECT PAYMENT,LEARNING DISABILITY SUPPORT,Third Party Payments,Revenue
Walsall Council,http://opendatacommunities.org/id/metropolitan-district-council/walsall,WC104-526,31/05/2019,Adult Social Care,REDACTED,03/05/2019,"1,806.56",73506-DIRECT PAYMENT,PHYSICAL SUPPORT,Third Party Payments,Revenue
Walsall Council,http://opendatacommunities.org/id/metropolitan-district-council/walsall,WC104-527,31/05/2019,Childrens,ANDREWS ELECTRICAL LTD,28/05/2019,"4,128.00",01006-SITE WORKS MAIN CONTRACTORS,CFR 1297 CASTLE BUSINESS & ENTERPRISE COLLEGE EXPANSION,Capital,Capital
Walsall Council,http://opendatacommunities.org/id/metropolitan-district-council/walsall,WC104-528,31/05/2019,Adult Social Care,ANGEL COURT RESIDENTIAL CARE HOME,10/05/2019,789.58,73500-RESIDENTIAL,PHYSICAL SUPPORT,Third Party Payments,Revenue
Walsall Council,http://opendatacommunities.org/id/metropolitan-district-council/walsall,WC104-529,31/05/2019,Adult Social Care,ANGEL COURT RESIDENTIAL CARE HOME,10/05/2019,"1,852.00",73501-RESIDENTIAL EMI,PHYSICAL SUPPORT,Third Party Payments,Revenue
Walsall Council,http://opendatacommunities.org/id/metropolitan-district-council/walsall,WC104-530,31/05/2019,Adult Social Care,ANGEL COURT RESIDENTIAL CARE HOME,10/05/2019,"2,511.81",73501-RESIDENTIAL EMI,PHYSICAL SUPPORT,Third Party Payments,Revenue
Walsall Council,http://opendatacommunities.org/id/metropolitan-district-council/walsall,WC104-531,31/05/2019,Childrens,REDACTED,07/05/2019,368.76,74509-SPECIAL GUARDIANSHIP ORDERS,ADOPTION ALLOWANCES,Transfer Payments,Revenue
Walsall Council,http://opendatacommunities.org/id/metropolitan-district-council/walsall,WC104-532,31/05/2019,Childrens,REDACTED,07/05/2019,368.76,74509-SPECIAL GUARDIANSHIP ORDERS,ADOPTION ALLOWANCES,Transfer Payments,Revenue
Walsall Council,http://opendatacommunities.org/id/metropolitan-district-council/walsall,WC104-533,31/05/2019,Childrens,REDACTED,07/05/2019,500.16,74509-SPECIAL GUARDIANSHIP ORDERS,ADOPTION ALLOWANCES,Transfer Payments,Revenue
Walsall Council,http://opendatacommunities.org/id/metropolitan-district-council/walsall,WC104-534,31/05/2019,Childrens,REDACTED,07/05/2019,312.04,74509-SPECIAL GUARDIANSHIP ORDERS,ADOPTION ALLOWANCES,Transfer Payments,Revenue
Walsall Council,http://opendatacommunities.org/id/metropolitan-district-council/walsall,WC104-535,31/05/2019,Adult Social Care,REDACTED,03/05/2019,"1,175.20",73506-DIRECT PAYMENT,PHYSICAL SUPPORT,Third Party Payments,Revenue
Walsall Council,http://opendatacommunities.org/id/metropolitan-district-council/walsall,WC104-536,31/05/2019,Adult Social Care,ANSON COURT RESIDENTIAL HOME,24/05/2019,"1,086.12",73501-RESIDENTIAL EMI,PHYSICAL SUPPORT,Third Party Payments,Revenue
Walsall Council,http://opendatacommunities.org/id/metropolitan-district-council/walsall,WC104-537,31/05/2019,Adult Social Care,ANSON COURT RESIDENTIAL HOME,24/05/2019,"1,948.31",73501-RESIDENTIAL EMI,MENTAL HEALTH SUPPORT,Third Party Payments,Revenue
Walsall Council,http://opendatacommunities.org/id/metropolitan-district-council/walsall,WC104-538,31/05/2019,Adult Social Care,ANSON COURT RESIDENTIAL HOME,24/05/2019,"1,948.31",73501-RESIDENTIAL EMI,SUPPORT WITH MEMORY & COGNITION,Third Party Payments,Revenue
Walsall Council,http://opendatacommunities.org/id/metropolitan-district-council/walsall,WC104-539,31/05/2019,Adult Social Care,ANSON COURT RESIDENTIAL HOME,24/05/2019,"1,948.31",73501-RESIDENTIAL EMI,SUPPORT WITH MEMORY & COGNITION,Third Party Payments,Revenue
Walsall Council,http://opendatacommunities.org/id/metropolitan-district-council/walsall,WC104-540,31/05/2019,Adult Social Care,ANSON COURT RESIDENTIAL HOME,24/05/2019,"1,948.31",73501-RESIDENTIAL EMI,PHYSICAL SUPPORT,Third Party Payments,Revenue
Walsall Council,http://opendatacommunities.org/id/metropolitan-district-council/walsall,WC104-541,31/05/2019,Adult Social Care,ANSON COURT RESIDENTIAL HOME,24/05/2019,"1,948.31",73501-RESIDENTIAL EMI,PHYSICAL SUPPORT,Third Party Payments,Revenue
Walsall Council,http://opendatacommunities.org/id/metropolitan-district-council/walsall,WC104-542,31/05/2019,Adult Social Care,ANSON COURT RESIDENTIAL HOME,24/05/2019,"1,948.31",73501-RESIDENTIAL EMI,MENTAL HEALTH SUPPORT,Third Party Payments,Revenue
Walsall Council,http://opendatacommunities.org/id/metropolitan-district-council/walsall,WC104-543,31/05/2019,Adult Social Care,ANSON COURT RESIDENTIAL HOME,24/05/2019,"1,948.31",73501-RESIDENTIAL EMI,PHYSICAL SUPPORT,Third Party Payments,Revenue
Walsall Council,http://opendatacommunities.org/id/metropolitan-district-council/walsall,WC104-544,31/05/2019,Adult Social Care,ANSON COURT RESIDENTIAL HOME,24/05/2019,"1,948.31",73501-RESIDENTIAL EMI,PHYSICAL SUPPORT,Third Party Payments,Revenue
Walsall Council,http://opendatacommunities.org/id/metropolitan-district-council/walsall,WC104-545,31/05/2019,Adult Social Care,ANSON COURT RESIDENTIAL HOME,24/05/2019,"1,948.31",73501-RESIDENTIAL EMI,SOCIAL SUPPORT,Third Party Payments,Revenue
Walsall Council,http://opendatacommunities.org/id/metropolitan-district-council/walsall,WC104-546,31/05/2019,Adult Social Care,ANSON COURT RESIDENTIAL HOME,24/05/2019,"1,948.31",73501-RESIDENTIAL EMI,SUPPORT WITH MEMORY & COGNITION,Third Party Payments,Revenue
Walsall Council,http://opendatacommunities.org/id/metropolitan-district-council/walsall,WC104-547,31/05/2019,Adult Social Care,ANSON COURT RESIDENTIAL HOME,24/05/2019,"1,948.31",73501-RESIDENTIAL EMI,SUPPORT WITH MEMORY & COGNITION,Third Party Payments,Revenue
Walsall Council,http://opendatacommunities.org/id/metropolitan-district-council/walsall,WC104-548,31/05/2019,Adult Social Care,ANSON COURT RESIDENTIAL HOME,24/05/2019,"1,948.31",73501-RESIDENTIAL EMI,SOCIAL SUPPORT,Third Party Payments,Revenue
Walsall Council,http://opendatacommunities.org/id/metropolitan-district-council/walsall,WC104-549,31/05/2019,Adult Social Care,ANSON COURT RESIDENTIAL HOME,24/05/2019,"1,948.31",73501-RESIDENTIAL EMI,PHYSICAL SUPPORT,Third Party Payments,Revenue
Walsall Council,http://opendatacommunities.org/id/metropolitan-district-council/walsall,WC104-550,31/05/2019,Adult Social Care,ANSON COURT RESIDENTIAL HOME,24/05/2019,"1,948.31",73501-RESIDENTIAL EMI,SUPPORT WITH MEMORY & COGNITION,Third Party Payments,Revenue
Walsall Council,http://opendatacommunities.org/id/metropolitan-district-council/walsall,WC104-551,31/05/2019,Adult Social Care,ANSON COURT RESIDENTIAL HOME,24/05/2019,"2,028.31",73501-RESIDENTIAL EMI,PHYSICAL SUPPORT,Third Party Payments,Revenue
Walsall Council,http://opendatacommunities.org/id/metropolitan-district-council/walsall,WC104-552,31/05/2019,Adult Social Care,ANSON COURT RESIDENTIAL HOME,24/05/2019,"2,028.31",73501-RESIDENTIAL EMI,PHYSICAL SUPPORT,Third Party Payments,Revenue
Walsall Council,http://opendatacommunities.org/id/metropolitan-district-council/walsall,WC104-553,31/05/2019,Adult Social Care,ANSON COURT RESIDENTIAL HOME,24/05/2019,"2,028.31",73501-RESIDENTIAL EMI,SOCIAL SUPPORT,Third Party Payments,Revenue
Walsall Council,http://opendatacommunities.org/id/metropolitan-district-council/walsall,WC104-554,31/05/2019,Adult Social Care,ANSON COURT RESIDENTIAL HOME,24/05/2019,"2,028.31",73501-RESIDENTIAL EMI,MENTAL HEALTH SUPPORT,Third Party Payments,Revenue
Walsall Council,http://opendatacommunities.org/id/metropolitan-district-council/walsall,WC104-555,31/05/2019,Adult Social Care,ANSON COURT RESIDENTIAL HOME,24/05/2019,"2,068.31",73501-RESIDENTIAL EMI,PHYSICAL SUPPORT,Third Party Payments,Revenue
Walsall Council,http://opendatacommunities.org/id/metropolitan-district-council/walsall,WC104-556,31/05/2019,Adult Social Care,ANSON COURT RESIDENTIAL HOME,24/05/2019,"2,068.31",73501-RESIDENTIAL EMI,PHYSICAL SUPPORT,Third Party Payments,Revenue
Walsall Council,http://opendatacommunities.org/id/metropolitan-district-council/walsall,WC104-557,31/05/2019,Adult Social Care,ANSON COURT RESIDENTIAL HOME,24/05/2019,"2,068.31",73501-RESIDENTIAL EMI,MENTAL HEALTH SUPPORT,Third Party Payments,Revenue
Walsall Council,http://opendatacommunities.org/id/metropolitan-district-council/walsall,WC104-558,31/05/2019,Adult Social Care,ANSON COURT RESIDENTIAL HOME,24/05/2019,"2,068.31",73501-RESIDENTIAL EMI,MENTAL HEALTH SUPPORT,Third Party Payments,Revenue
Walsall Council,http://opendatacommunities.org/id/metropolitan-district-council/walsall,WC104-559,31/05/2019,Adult Social Care,ANSON COURT RESIDENTIAL HOME,24/05/2019,"2,703.50",73501-RESIDENTIAL EMI,PHYSICAL SUPPORT,Third Party Payments,Revenue
Walsall Council,http://opendatacommunities.org/id/metropolitan-district-council/walsall,WC104-560,31/05/2019,Adult Social Care,ANSON COURT RESIDENTIAL HOME,24/05/2019,"3,915.39",73501-RESIDENTIAL EMI,PHYSICAL SUPPORT,Third Party Payments,Revenue
Walsall Council,http://opendatacommunities.org/id/metropolitan-district-council/walsall,WC104-561,31/05/2019,Economy & Environment,ANTHONY COLLINS SOLICITORS,01/05/2019,406.00,73014-LEGAL FEES-PRIV CONTRACTOR FEES,UNCAPITALISED SPEND,Third Party Payments,Revenue
Walsall Council,http://opendatacommunities.org/id/metropolitan-district-council/walsall,WC104-562,31/05/2019,Childrens,REDACTED,07/05/2019,604.00,74510-RESIDENTS ORDERS,ADOPTION ALLOWANCES,Third Party Payments,Revenue
Walsall Council,http://opendatacommunities.org/id/metropolitan-district-council/walsall,WC104-563,31/05/2019,Childrens,REDACTED,07/05/2019,495.85,74509-SPECIAL GUARDIANSHIP ORDERS,ADOPTION ALLOWANCES,Transfer Payments,Revenue
Walsall Council,http://opendatacommunities.org/id/metropolitan-district-council/walsall,WC104-564,31/05/2019,Adult Social Care,ANVILLE COURT CARE LTD,24/05/2019,"2,633.19",73503-NURSING EMI,MENTAL HEALTH SUPPORT,Third Party Payments,Revenue
Walsall Council,http://opendatacommunities.org/id/metropolitan-district-council/walsall,WC104-565,31/05/2019,Economy & Environment,APCOA PARKING SERVICES (UK) LTD,29/05/2019,"49,618.36",73025-PROFESSIONAL SERVICES-PRIV CONTRACTOR & OTHER AGENCIES,PARKING SERVICES OFF-STREET,Third Party Payments,Revenue
Walsall Council,http://opendatacommunities.org/id/metropolitan-district-council/walsall,WC104-566,31/05/2019,Resources and Transformation,APP CARZ,21/05/2019,486.00,52000-WITH DRIVER-HIRE OF VEHICLES,ADVICE & GUIDANCE SERVICE,Transport,Revenue
Walsall Council,http://opendatacommunities.org/id/metropolitan-district-council/walsall,WC104-567,31/05/2019,Childrens,APP CARZ,21/05/2019,"6,306.00",52000-WITH DRIVER-HIRE OF VEHICLES,HOME TO SCHOOL TRANSPORT,Transport,Revenue
Walsall Council,http://opendatacommunities.org/id/metropolitan-district-council/walsall,WC104-568,31/05/2019,Childrens,APPLE TRANSCRIPTION LIMITED,23/05/2019,227.15,63116-EXTERNAL BARRISTERS-SERVICES-FEES,GENERAL MANAGEMENT SUPPORT (INC LEGAL),Supplies & Services,Revenue
Walsall Council,http://opendatacommunities.org/id/metropolitan-district-council/walsall,WC104-569,31/05/2019,Childrens,AQUAID (BIRMINGHAM CENTRAL),29/05/2019,281.00,61009-BEVERAGES-PROVISIONS,PELSALL EDC,Supplies & Services,Revenue
Walsall Council,http://opendatacommunities.org/id/metropolitan-district-council/walsall,WC104-570,31/05/2019,Economy & Environment,AQUAMO LTD,01/05/2019,"1,213.00",60008-REPAIR & MAINTENANCE OF FURNITURE & EQUIPMENT,WALSALL GALA CENTRE,Supplies & Services,Revenue
Walsall Council,http://opendatacommunities.org/id/metropolitan-district-council/walsall,WC104-571,31/05/2019,Economy & Environment,AQUILA TRUCK CENTRES LTD,14/05/2019,824.55,73025-PROFESSIONAL SERVICES-PRIV CONTRACTOR & OTHER AGENCIES,TARMAC,Third Party Payments,Revenue
Walsall Council,http://opendatacommunities.org/id/metropolitan-district-council/walsall,WC104-572,31/05/2019,Adult Social Care,ARBORETUM NURSING HOME.,24/05/2019,462.78,73502-NURSING,PHYSICAL SUPPORT,Third Party Payments,Revenue
Walsall Council,http://opendatacommunities.org/id/metropolitan-district-council/walsall,WC104-573,31/05/2019,Adult Social Care,ARBORETUM NURSING HOME.,24/05/2019,905.04,73502-NURSING,SOCIAL SUPPORT,Third Party Payments,Revenue
Walsall Council,http://opendatacommunities.org/id/metropolitan-district-council/walsall,WC104-574,31/05/2019,Adult Social Care,ARBORETUM NURSING HOME.,24/05/2019,"1,234.10",73502-NURSING,SOCIAL SUPPORT,Third Party Payments,Revenue
Walsall Council,http://opendatacommunities.org/id/metropolitan-district-council/walsall,WC104-575,31/05/2019,Adult Social Care,ARBORETUM NURSING HOME.,24/05/2019,"1,635.96",73500-RESIDENTIAL,PHYSICAL SUPPORT,Third Party Payments,Revenue
Walsall Council,http://opendatacommunities.org/id/metropolitan-district-council/walsall,WC104-576,31/05/2019,Adult Social Care,ARBORETUM NURSING HOME.,24/05/2019,"2,117.71",73502-NURSING,PHYSICAL SUPPORT,Third Party Payments,Revenue
Walsall Council,http://opendatacommunities.org/id/metropolitan-district-council/walsall,WC104-577,31/05/2019,Adult Social Care,ARBORETUM NURSING HOME.,24/05/2019,"2,117.71",73502-NURSING,PHYSICAL SUPPORT,Third Party Payments,Revenue
Walsall Council,http://opendatacommunities.org/id/metropolitan-district-council/walsall,WC104-578,31/05/2019,Adult Social Care,ARBORETUM NURSING HOME.,24/05/2019,"2,117.71",73502-NURSING,PHYSICAL SUPPORT,Third Party Payments,Revenue
Walsall Council,http://opendatacommunities.org/id/metropolitan-district-council/walsall,WC104-579,31/05/2019,Adult Social Care,ARBORETUM NURSING HOME.,24/05/2019,"2,197.71",73502-NURSING,PHYSICAL SUPPORT,Third Party Payments,Revenue
Walsall Council,http://opendatacommunities.org/id/metropolitan-district-council/walsall,WC104-580,31/05/2019,Adult Social Care,ARBORETUM NURSING HOME.,24/05/2019,"2,217.71",73502-NURSING,PHYSICAL SUPPORT,Third Party Payments,Revenue
Walsall Council,http://opendatacommunities.org/id/metropolitan-district-council/walsall,WC104-581,31/05/2019,Adult Social Care,ARBORETUM NURSING HOME.,24/05/2019,"2,237.71",73502-NURSING,PHYSICAL SUPPORT,Third Party Payments,Revenue
Walsall Council,http://opendatacommunities.org/id/metropolitan-district-council/walsall,WC104-582,31/05/2019,Adult Social Care,ARBORETUM NURSING HOME.,24/05/2019,"2,237.71",73502-NURSING,PHYSICAL SUPPORT,Third Party Payments,Revenue
Walsall Council,http://opendatacommunities.org/id/metropolitan-district-council/walsall,WC104-583,31/05/2019,Adult Social Care,ARBORETUM NURSING HOME.,24/05/2019,"2,237.71",73502-NURSING,PHYSICAL SUPPORT,Third Party Payments,Revenue
Walsall Council,http://opendatacommunities.org/id/metropolitan-district-council/walsall,WC104-584,31/05/2019,Adult Social Care,ARBORETUM NURSING HOME.,24/05/2019,"2,237.71",73502-NURSING,PHYSICAL SUPPORT,Third Party Payments,Revenue
Walsall Council,http://opendatacommunities.org/id/metropolitan-district-council/walsall,WC104-585,31/05/2019,Adult Social Care,ARBORETUM NURSING HOME.,24/05/2019,"2,449.47",73503-NURSING EMI,PHYSICAL SUPPORT,Third Party Payments,Revenue
Walsall Council,http://opendatacommunities.org/id/metropolitan-district-council/walsall,WC104-586,31/05/2019,Adult Social Care,ARBORETUM NURSING HOME.,17/05/2019,"2,660.71",73025-PROFESSIONAL SERVICES-PRIV CONTRACTOR & OTHER AGENCIES,TRANSITIONAL CARE SUPPORT TEAM,Third Party Payments,Revenue
Walsall Council,http://opendatacommunities.org/id/metropolitan-district-council/walsall,WC104-587,31/05/2019,Adult Social Care,ARBORETUM NURSING HOME.,24/05/2019,"2,861.29",73502-NURSING,PHYSICAL SUPPORT,Third Party Payments,Revenue
Walsall Council,http://opendatacommunities.org/id/metropolitan-district-council/walsall,WC104-588,31/05/2019,Adult Social Care,ARBORETUM NURSING HOME.,03/05/2019,"8,940.00",73025-PROFESSIONAL SERVICES-PRIV CONTRACTOR & OTHER AGENCIES,TRANSITIONAL CARE SUPPORT TEAM,Third Party Payments,Revenue
Walsall Council,http://opendatacommunities.org/id/metropolitan-district-council/walsall,WC104-589,31/05/2019,Adult Social Care,ARBORETUM NURSING HOME.,08/05/2019,"14,900.00",73025-PROFESSIONAL SERVICES-PRIV CONTRACTOR & OTHER AGENCIES,TRANSITIONAL CARE SUPPORT TEAM,Third Party Payments,Revenue
Walsall Council,http://opendatacommunities.org/id/metropolitan-district-council/walsall,WC104-590,31/05/2019,Economy & Environment,ARCHWAY TCS LTD,09/05/2019,573.30,73025-PROFESSIONAL SERVICES-PRIV CONTRACTOR & OTHER AGENCIES,DEPOT,Third Party Payments,Revenue
Walsall Council,http://opendatacommunities.org/id/metropolitan-district-council/walsall,WC104-591,31/05/2019,Economy & Environment,ARCHWAY TCS LTD,01/05/2019,707.50,60537-VEHICLE WASH PLANT-MATERIALS,DEPOT,Supplies & Services,Revenue
Walsall Council,http://opendatacommunities.org/id/metropolitan-district-council/walsall,WC104-592,31/05/2019,Economy & Environment,ARCHWAY TCS LTD,01/05/2019,707.50,60537-VEHICLE WASH PLANT-MATERIALS,DEPOT,Supplies & Services,Revenue
Walsall Council,http://opendatacommunities.org/id/metropolitan-district-council/walsall,WC104-593,31/05/2019,Economy & Environment,ARCHWAY TCS LTD,01/05/2019,707.50,60537-VEHICLE WASH PLANT-MATERIALS,DEPOT,Supplies & Services,Revenue
Walsall Council,http://opendatacommunities.org/id/metropolitan-district-council/walsall,WC104-594,31/05/2019,Resources and Transformation,ARMSTRONG YORK ASBESTOS ENVIRONMENTAL LIMITED,01/05/2019,300.00,01006-SITE WORKS MAIN CONTRACTORS,CFR 801 ASBESTOS REMOVAL EAST,Capital,Capital
Walsall Council,http://opendatacommunities.org/id/metropolitan-district-council/walsall,WC104-595,31/05/2019,Holding Accounts,ARTHUR J GALLAGHER T/A HEATH LAMBERT LIMITED,01/05/2019,"7,112.85",89012-TEACHERS SICKNESS SCHEME PREMIUM INSURANCE POLICY,PUBLIC LIABILITY,Supplies & Services,Revenue
Walsall Council,http://opendatacommunities.org/id/metropolitan-district-council/walsall,WC104-596,31/05/2019,Holding Accounts,ARTHUR J GALLAGHER T/A HEATH LAMBERT LIMITED,01/05/2019,"28,438.40",89012-TEACHERS SICKNESS SCHEME PREMIUM INSURANCE POLICY,PUBLIC LIABILITY,Supplies & Services,Revenue
Walsall Council,http://opendatacommunities.org/id/metropolitan-district-council/walsall,WC104-597,31/05/2019,Holding Accounts,ARTHUR J GALLAGHER T/A HEATH LAMBERT LIMITED,01/05/2019,"30,338.67",89012-TEACHERS SICKNESS SCHEME PREMIUM INSURANCE POLICY,PUBLIC LIABILITY,Supplies & Services,Revenue
Walsall Council,http://opendatacommunities.org/id/metropolitan-district-council/walsall,WC104-598,31/05/2019,Holding Accounts,ARTHUR J GALLAGHER T/A HEATH LAMBERT LIMITED,07/05/2019,"35,112.00",89012-TEACHERS SICKNESS SCHEME PREMIUM INSURANCE POLICY,PUBLIC LIABILITY,Supplies & Services,Revenue
Walsall Council,http://opendatacommunities.org/id/metropolitan-district-council/walsall,WC104-599,31/05/2019,Holding Accounts,ARTHUR J GALLAGHER T/A HEATH LAMBERT LIMITED,01/05/2019,"41,473.60",89012-TEACHERS SICKNESS SCHEME PREMIUM INSURANCE POLICY,PUBLIC LIABILITY,Supplies & Services,Revenue
Walsall Council,http://opendatacommunities.org/id/metropolitan-district-council/walsall,WC104-600,31/05/2019,Holding Accounts,ARTHUR J GALLAGHER T/A HEATH LAMBERT LIMITED,01/05/2019,"220,024.00",89012-TEACHERS SICKNESS SCHEME PREMIUM INSURANCE POLICY,PUBLIC LIABILITY,Supplies & Services,Revenue
Walsall Council,http://opendatacommunities.org/id/metropolitan-district-council/walsall,WC104-601,31/05/2019,Adult Social Care,ASH GRANGE CARE HOME,07/05/2019,291.38,73501-RESIDENTIAL EMI,PHYSICAL SUPPORT,Third Party Payments,Revenue
Walsall Council,http://opendatacommunities.org/id/metropolitan-district-council/walsall,WC104-602,31/05/2019,Adult Social Care,ASH GRANGE CARE HOME,24/05/2019,623.93,73502-NURSING,LEARNING DISABILITY SUPPORT,Third Party Payments,Revenue
Walsall Council,http://opendatacommunities.org/id/metropolitan-district-council/walsall,WC104-603,31/05/2019,Adult Social Care,ASH GRANGE CARE HOME,07/05/2019,946.44,73025-PROFESSIONAL SERVICES-PRIV CONTRACTOR & OTHER AGENCIES,TRANSITIONAL CARE SUPPORT TEAM,Third Party Payments,Revenue
Walsall Council,http://opendatacommunities.org/id/metropolitan-district-council/walsall,WC104-604,31/05/2019,Adult Social Care,ASH GRANGE CARE HOME,24/05/2019,"1,753.43",73500-RESIDENTIAL,SUPPORT WITH MEMORY & COGNITION,Third Party Payments,Revenue
Walsall Council,http://opendatacommunities.org/id/metropolitan-district-council/walsall,WC104-605,31/05/2019,Adult Social Care,ASH GRANGE CARE HOME,24/05/2019,"1,753.43",73500-RESIDENTIAL,MENTAL HEALTH SUPPORT,Third Party Payments,Revenue
Walsall Council,http://opendatacommunities.org/id/metropolitan-district-council/walsall,WC104-606,31/05/2019,Adult Social Care,ASH GRANGE CARE HOME,24/05/2019,"1,890.51",73500-RESIDENTIAL,LEARNING DISABILITY SUPPORT,Third Party Payments,Revenue
Walsall Council,http://opendatacommunities.org/id/metropolitan-district-council/walsall,WC104-607,31/05/2019,Adult Social Care,ASH GRANGE CARE HOME,07/05/2019,"1,893.99",73025-PROFESSIONAL SERVICES-PRIV CONTRACTOR & OTHER AGENCIES,TRANSITIONAL CARE SUPPORT TEAM,Third Party Payments,Revenue
Walsall Council,http://opendatacommunities.org/id/metropolitan-district-council/walsall,WC104-608,31/05/2019,Adult Social Care,ASH GRANGE CARE HOME,24/05/2019,"2,117.71",73502-NURSING,PHYSICAL SUPPORT,Third Party Payments,Revenue
Walsall Council,http://opendatacommunities.org/id/metropolitan-district-council/walsall,WC104-609,31/05/2019,Adult Social Care,ASH GRANGE CARE HOME,24/05/2019,"2,117.71",73502-NURSING,PHYSICAL SUPPORT,Third Party Payments,Revenue
Walsall Council,http://opendatacommunities.org/id/metropolitan-district-council/walsall,WC104-610,31/05/2019,Adult Social Care,ASH GRANGE CARE HOME,24/05/2019,"2,117.71",73502-NURSING,PHYSICAL SUPPORT,Third Party Payments,Revenue
Walsall Council,http://opendatacommunities.org/id/metropolitan-district-council/walsall,WC104-611,31/05/2019,Adult Social Care,ASH GRANGE CARE HOME,24/05/2019,"2,117.71",73502-NURSING,PHYSICAL SUPPORT,Third Party Payments,Revenue
Walsall Council,http://opendatacommunities.org/id/metropolitan-district-council/walsall,WC104-612,31/05/2019,Adult Social Care,ASH GRANGE CARE HOME,24/05/2019,"2,117.71",73502-NURSING,PHYSICAL SUPPORT,Third Party Payments,Revenue
Walsall Council,http://opendatacommunities.org/id/metropolitan-district-council/walsall,WC104-613,31/05/2019,Adult Social Care,ASH GRANGE CARE HOME,24/05/2019,"2,117.71",73502-NURSING,SUPPORT WITH MEMORY & COGNITION,Third Party Payments,Revenue
Walsall Council,http://opendatacommunities.org/id/metropolitan-district-council/walsall,WC104-614,31/05/2019,Adult Social Care,ASH GRANGE CARE HOME,24/05/2019,"2,117.71",73502-NURSING,PHYSICAL SUPPORT,Third Party Payments,Revenue
Walsall Council,http://opendatacommunities.org/id/metropolitan-district-council/walsall,WC104-615,31/05/2019,Adult Social Care,ASH GRANGE CARE HOME,24/05/2019,"2,117.71",73502-NURSING,PHYSICAL SUPPORT,Third Party Payments,Revenue
Walsall Council,http://opendatacommunities.org/id/metropolitan-district-council/walsall,WC104-616,31/05/2019,Adult Social Care,ASH GRANGE CARE HOME,24/05/2019,"2,117.71",73502-NURSING,PHYSICAL SUPPORT,Third Party Payments,Revenue
Walsall Council,http://opendatacommunities.org/id/metropolitan-district-council/walsall,WC104-617,31/05/2019,Adult Social Care,ASH GRANGE CARE HOME,24/05/2019,"2,117.71",73502-NURSING,PHYSICAL SUPPORT,Third Party Payments,Revenue
Walsall Council,http://opendatacommunities.org/id/metropolitan-district-council/walsall,WC104-618,31/05/2019,Adult Social Care,ASH GRANGE CARE HOME,24/05/2019,"2,117.71",73502-NURSING,MENTAL HEALTH SUPPORT,Third Party Payments,Revenue
Walsall Council,http://opendatacommunities.org/id/metropolitan-district-council/walsall,WC104-619,31/05/2019,Adult Social Care,ASH GRANGE CARE HOME,24/05/2019,"2,117.71",73502-NURSING,PHYSICAL SUPPORT,Third Party Payments,Revenue
Walsall Council,http://opendatacommunities.org/id/metropolitan-district-council/walsall,WC104-620,31/05/2019,Adult Social Care,ASH GRANGE CARE HOME,24/05/2019,"2,117.71",73502-NURSING,PHYSICAL SUPPORT,Third Party Payments,Revenue
Walsall Council,http://opendatacommunities.org/id/metropolitan-district-council/walsall,WC104-621,31/05/2019,Adult Social Care,ASH GRANGE CARE HOME,24/05/2019,"2,117.71",73502-NURSING,PHYSICAL SUPPORT,Third Party Payments,Revenue
Walsall Council,http://opendatacommunities.org/id/metropolitan-district-council/walsall,WC104-622,31/05/2019,Adult Social Care,ASH GRANGE CARE HOME,24/05/2019,"2,117.71",73502-NURSING,MENTAL HEALTH SUPPORT,Third Party Payments,Revenue
Walsall Council,http://opendatacommunities.org/id/metropolitan-district-council/walsall,WC104-623,31/05/2019,Adult Social Care,ASH GRANGE CARE HOME,24/05/2019,"2,117.71",73502-NURSING,PHYSICAL SUPPORT,Third Party Payments,Revenue
Walsall Council,http://opendatacommunities.org/id/metropolitan-district-council/walsall,WC104-624,31/05/2019,Adult Social Care,ASH GRANGE CARE HOME,24/05/2019,"2,317.71",73502-NURSING,PHYSICAL SUPPORT,Third Party Payments,Revenue
Walsall Council,http://opendatacommunities.org/id/metropolitan-district-council/walsall,WC104-625,31/05/2019,Adult Social Care,ASH GRANGE CARE HOME,24/05/2019,"2,317.71",73502-NURSING,PHYSICAL SUPPORT,Third Party Payments,Revenue
Walsall Council,http://opendatacommunities.org/id/metropolitan-district-council/walsall,WC104-626,31/05/2019,Adult Social Care,ASH GRANGE CARE HOME,24/05/2019,"2,329.47",73503-NURSING EMI,PHYSICAL SUPPORT,Third Party Payments,Revenue
Walsall Council,http://opendatacommunities.org/id/metropolitan-district-council/walsall,WC104-627,31/05/2019,Adult Social Care,ASH GRANGE CARE HOME,24/05/2019,"2,329.47",73503-NURSING EMI,PHYSICAL SUPPORT,Third Party Payments,Revenue
Walsall Council,http://opendatacommunities.org/id/metropolitan-district-council/walsall,WC104-628,31/05/2019,Adult Social Care,ASH GRANGE CARE HOME,24/05/2019,"2,397.71",73502-NURSING,PHYSICAL SUPPORT,Third Party Payments,Revenue
Walsall Council,http://opendatacommunities.org/id/metropolitan-district-council/walsall,WC104-629,31/05/2019,Adult Social Care,ASH GRANGE CARE HOME,24/05/2019,"2,565.83",73503-NURSING EMI,PHYSICAL SUPPORT,Third Party Payments,Revenue
Walsall Council,http://opendatacommunities.org/id/metropolitan-district-council/walsall,WC104-630,31/05/2019,Adult Social Care,ASH GRANGE CARE HOME,24/05/2019,"2,690.54",73502-NURSING,PHYSICAL SUPPORT,Third Party Payments,Revenue
Walsall Council,http://opendatacommunities.org/id/metropolitan-district-council/walsall,WC104-631,31/05/2019,Adult Social Care,ASH GRANGE CARE HOME,24/05/2019,"2,726.03",73502-NURSING,SOCIAL SUPPORT,Third Party Payments,Revenue
Walsall Council,http://opendatacommunities.org/id/metropolitan-district-council/walsall,WC104-632,31/05/2019,Adult Social Care,ASH GRANGE CARE HOME,24/05/2019,"3,582.86",73500-RESIDENTIAL,PHYSICAL SUPPORT,Third Party Payments,Revenue
Walsall Council,http://opendatacommunities.org/id/metropolitan-district-council/walsall,WC104-633,31/05/2019,Adult Social Care,ASH GRANGE CARE HOME,24/05/2019,"6,634.73",73504-SHORT STAY RESIDENTIAL,PHYSICAL SUPPORT,Third Party Payments,Revenue
Walsall Council,http://opendatacommunities.org/id/metropolitan-district-council/walsall,WC104-634,31/05/2019,Economy & Environment,ASHDOWN SUPPLIES,09/05/2019,293.76,60500-GENERAL MATERIALS,STREETLY CREMATORIUM,Supplies & Services,Revenue
Walsall Council,http://opendatacommunities.org/id/metropolitan-district-council/walsall,WC104-635,31/05/2019,Adult Social Care,REDACTED,03/05/2019,"1,221.60",73506-DIRECT PAYMENT,LEARNING DISABILITY SUPPORT,Third Party Payments,Revenue
Walsall Council,http://opendatacommunities.org/id/metropolitan-district-council/walsall,WC104-636,31/05/2019,Adult Social Care,REDACTED,03/05/2019,"1,113.84",73506-DIRECT PAYMENT,LEARNING DISABILITY SUPPORT,Third Party Payments,Revenue
Walsall Council,http://opendatacommunities.org/id/metropolitan-district-council/walsall,WC104-637,31/05/2019,Adult Social Care,REDACTED,03/05/2019,775.20,73506-DIRECT PAYMENT,PHYSICAL SUPPORT,Third Party Payments,Revenue
Walsall Council,http://opendatacommunities.org/id/metropolitan-district-council/walsall,WC104-638,31/05/2019,Childrens,ASPIRE PEOPLE LTD.,17/05/2019,476.90,63000-PROFESSIONAL FEES AND SERVICES,BEHAVIOUR SUPPORT SERVICE (INCOME),Supplies & Services,Revenue
Walsall Council,http://opendatacommunities.org/id/metropolitan-district-council/walsall,WC104-639,31/05/2019,Childrens,ASPIRE PEOPLE LTD.,17/05/2019,618.00,63000-PROFESSIONAL FEES AND SERVICES,BEHAVIOUR SUPPORT SERVICE (INCOME),Supplies & Services,Revenue
Walsall Council,http://opendatacommunities.org/id/metropolitan-district-council/walsall,WC104-640,31/05/2019,Adult Social Care,ASSURED HEALTHCARE SOLUTIONS (PARK FARM LODGE),24/05/2019,"2,012.91",73500-RESIDENTIAL,PHYSICAL SUPPORT,Third Party Payments,Revenue
Walsall Council,http://opendatacommunities.org/id/metropolitan-district-council/walsall,WC104-641,31/05/2019,Economy & Environment,ATHWAL NEWS LTD,14/05/2019,269.37,60501-LIBRARY BOOKS,LIBRARY MANAGEMENT,Supplies & Services,Revenue
Walsall Council,http://opendatacommunities.org/id/metropolitan-district-council/walsall,WC104-642,31/05/2019,Economy & Environment,ATHWAL NEWS LTD,14/05/2019,301.48,60501-LIBRARY BOOKS,LIBRARY MANAGEMENT,Supplies & Services,Revenue
Walsall Council,http://opendatacommunities.org/id/metropolitan-district-council/walsall,WC104-643,31/05/2019,Economy & Environment,ATHWAL NEWS LTD,14/05/2019,355.44,60501-LIBRARY BOOKS,LIBRARY MANAGEMENT,Supplies & Services,Revenue
Walsall Council,http://opendatacommunities.org/id/metropolitan-district-council/walsall,WC104-644,31/05/2019,Economy & Environment,ATKINS LIMITED,15/05/2019,528.81,01003-ENGINEERS ASSISTANTS TIME - DESIGN,CFR 819 LTP-YORKS BRIDGE,Capital,Capital
Walsall Council,http://opendatacommunities.org/id/metropolitan-district-council/walsall,WC104-645,31/05/2019,Economy & Environment,ATKINS LIMITED,28/05/2019,"4,123.56",73025-PROFESSIONAL SERVICES-PRIV CONTRACTOR & OTHER AGENCIES,SECTION 38 OF HIGHWAYS ACT - SUPERVISION,Third Party Payments,Revenue
Walsall Council,http://opendatacommunities.org/id/metropolitan-district-council/walsall,WC104-646,31/05/2019,Economy & Environment,ATKINS LIMITED,15/05/2019,"4,589.92",73025-PROFESSIONAL SERVICES-PRIV CONTRACTOR & OTHER AGENCIES,SECTION 38 OF HIGHWAYS ACT - SUPERVISION,Third Party Payments,Revenue
Walsall Council,http://opendatacommunities.org/id/metropolitan-district-council/walsall,WC104-647,31/05/2019,Resources and Transformation,AURORA GRAPHICS & DISPLAYS LTD,07/05/2019,540.00,62008-OUTWORK PRINT & DESIGN,PRINTING SERVICES,Supplies & Services,Revenue
Walsall Council,http://opendatacommunities.org/id/metropolitan-district-council/walsall,WC104-648,31/05/2019,Adult Social Care,AUTISM WEST MIDLANDS,24/05/2019,"5,379.36",73500-RESIDENTIAL,LEARNING DISABILITY SUPPORT,Third Party Payments,Revenue
Walsall Council,http://opendatacommunities.org/id/metropolitan-district-council/walsall,WC104-649,31/05/2019,Adult Social Care,AUTISM WEST MIDLANDS,24/05/2019,"8,876.85",73500-RESIDENTIAL,LEARNING DISABILITY SUPPORT,Third Party Payments,Revenue
Walsall Council,http://opendatacommunities.org/id/metropolitan-district-council/walsall,WC104-650,31/05/2019,Adult Social Care,AUTISM WEST MIDLANDS 001,24/05/2019,"9,529.53",73500-RESIDENTIAL,LEARNING DISABILITY SUPPORT,Third Party Payments,Revenue
Walsall Council,http://opendatacommunities.org/id/metropolitan-district-council/walsall,WC104-651,31/05/2019,Adult Social Care,REDACTED,03/05/2019,426.68,73506-DIRECT PAYMENT,SUPPORT WITH MEMORY & COGNITION,Third Party Payments,Revenue
Walsall Council,http://opendatacommunities.org/id/metropolitan-district-council/walsall,WC104-652,31/05/2019,Adult Social Care,REDACTED,03/05/2019,"3,182.40",73506-DIRECT PAYMENT,LEARNING DISABILITY SUPPORT,Third Party Payments,Revenue
Walsall Council,http://opendatacommunities.org/id/metropolitan-district-council/walsall,WC104-653,31/05/2019,Resources and Transformation,B E FURNITURE LTD T/A B E EVENTHIRE,23/05/2019,"3,762.10",60009-LEASING/HIRE/RENTAL-EQUIPMENT,ELECTORAL ADMINISTRATION,Supplies & Services,Revenue
Walsall Council,http://opendatacommunities.org/id/metropolitan-district-council/walsall,WC104-654,31/05/2019,Childrens,REDACTED,08/05/2019,464.00,76000-TRANSFER PAYMENTS - SOCIAL SERVICES CLIENTS,TRANSITION AND LEAVING CARE PLACEMENTS,Transfer Payments,Revenue
Walsall Council,http://opendatacommunities.org/id/metropolitan-district-council/walsall,WC104-655,31/05/2019,Childrens,REDACTED,22/05/2019,464.00,76000-TRANSFER PAYMENTS - SOCIAL SERVICES CLIENTS,TRANSITION AND LEAVING CARE PLACEMENTS,Transfer Payments,Revenue
Walsall Council,http://opendatacommunities.org/id/metropolitan-district-council/walsall,WC104-656,31/05/2019,Economy & Environment,BAART HARRIES NEWALL,29/05/2019,868.00,01002-PROJECT FEES,CFR 632 WALSALL ARBORETUM RESTORATION PROGRAMME,Capital,Capital
Walsall Council,http://opendatacommunities.org/id/metropolitan-district-council/walsall,WC104-657,31/05/2019,Resources and Transformation,BABINGTON GROUP,17/05/2019,"1,615.00",63000-PROFESSIONAL FEES AND SERVICES,REVENUES,Supplies & Services,Revenue
Walsall Council,http://opendatacommunities.org/id/metropolitan-district-council/walsall,WC104-658,31/05/2019,Adult Social Care,BACK CARE SOLUTIONS LTD,09/05/2019,541.26,60000-FURNITURE & EQUIPMENT,"STRATEGY,COMMISSIONING AND DELIVERY SUPPORT",Supplies & Services,Revenue
Walsall Council,http://opendatacommunities.org/id/metropolitan-district-council/walsall,WC104-659,31/05/2019,Adult Social Care,REDACTED,03/05/2019,"3,303.40",73506-DIRECT PAYMENT,LEARNING DISABILITY SUPPORT,Third Party Payments,Revenue
Walsall Council,http://opendatacommunities.org/id/metropolitan-district-council/walsall,WC104-660,31/05/2019,Adult Social Care,BALTIMORE CONSULTING LTD,23/05/2019,"4,107.50",63102-CONSULTANTS FEES - CORPORATE,SENIOR MANAGEMENT TEAM,Supplies & Services,Revenue
Walsall Council,http://opendatacommunities.org/id/metropolitan-district-council/walsall,WC104-661,31/05/2019,Adult Social Care,BALTIMORE CONSULTING LTD,15/05/2019,"6,572.00",63102-CONSULTANTS FEES - CORPORATE,SENIOR MANAGEMENT TEAM,Supplies & Services,Revenue
Walsall Council,http://opendatacommunities.org/id/metropolitan-district-council/walsall,WC104-662,31/05/2019,Adult Social Care,REDACTED,03/05/2019,"1,582.88",73506-DIRECT PAYMENT,PHYSICAL SUPPORT,Third Party Payments,Revenue
Walsall Council,http://opendatacommunities.org/id/metropolitan-district-council/walsall,WC104-663,31/05/2019,Childrens,REDACTED,07/05/2019,340.00,74508-INTERNAL FOSTER CARERS-CARER FEES,FAMILY & FRIENDS FOSTER CARE PROVISION,Transfer Payments,Revenue
Walsall Council,http://opendatacommunities.org/id/metropolitan-district-council/walsall,WC104-664,31/05/2019,Childrens,REDACTED,07/05/2019,540.00,74501-MAINTENANCE ALLOWANCE-FOSTER CARERS,FAMILY & FRIENDS FOSTER CARE PROVISION,Transfer Payments,Revenue
Walsall Council,http://opendatacommunities.org/id/metropolitan-district-council/walsall,WC104-665,31/05/2019,Economy & Environment,BARON FAMAIN LIMITED,08/05/2019,"29,783.25",01045-PRIVATE GRANTS,CFR 1282 CHURCH SQUARE APARTMENTS,Capital,Capital
Walsall Council,http://opendatacommunities.org/id/metropolitan-district-council/walsall,WC104-666,31/05/2019,Childrens,BARR BEACON SCHOOL TRUST,22/05/2019,500.00,63000-PROFESSIONAL FEES AND SERVICES,ADMISSIONS & PUPIL PLACE PLANNING,Supplies & Services,Revenue
Walsall Council,http://opendatacommunities.org/id/metropolitan-district-council/walsall,WC104-667,31/05/2019,Childrens,BARR BEACON SCHOOL TRUST,23/05/2019,"21,868.22",66502-TOP UP FUNDING -GRANTS TO SCHOOLS,BARR BEACON SCHOOL TRUST (ACADEMY),Third Party Payments,Revenue
Walsall Council,http://opendatacommunities.org/id/metropolitan-district-council/walsall,WC104-668,31/05/2019,Adult Social Care,BARTHOLAMEW LODGE CARE HOME,24/05/2019,"5,732.71",73503-NURSING EMI,PHYSICAL SUPPORT,Third Party Payments,Revenue
Walsall Council,http://opendatacommunities.org/id/metropolitan-district-council/walsall,WC104-669,31/05/2019,Economy & Environment,BAT FABRICATIONS LTD,15/05/2019,"4,985.00",60008-REPAIR & MAINTENANCE OF FURNITURE & EQUIPMENT,PARKING SERVICES OFF-STREET,Supplies & Services,Revenue
Walsall Council,http://opendatacommunities.org/id/metropolitan-district-council/walsall,WC104-670,31/05/2019,Childrens,BAT FABRICATIONS LTD,08/05/2019,"20,000.00",01006-SITE WORKS MAIN CONTRACTORS,CFR 1348 HOLY TRINITY SAFEGUARDING,Capital,Capital
Walsall Council,http://opendatacommunities.org/id/metropolitan-district-council/walsall,WC104-671,31/05/2019,Resources and Transformation,BATLEYS,03/05/2019,214.50,61016-FOOD AND BEVERAGES-PROVISIONS,WALSALL TOWN HALL,Supplies & Services,Revenue
Walsall Council,http://opendatacommunities.org/id/metropolitan-district-council/walsall,WC104-672,31/05/2019,Resources and Transformation,BATLEYS,09/05/2019,438.43,61016-FOOD AND BEVERAGES-PROVISIONS,WALSALL TOWN HALL,Supplies & Services,Revenue
Walsall Council,http://opendatacommunities.org/id/metropolitan-district-council/walsall,WC104-673,31/05/2019,Economy & Environment,BATLEYS,01/05/2019,498.56,61009-BEVERAGES-PROVISIONS,FOREST ARTS CENTRE,Supplies & Services,Revenue
Walsall Council,http://opendatacommunities.org/id/metropolitan-district-council/walsall,WC104-674,31/05/2019,Resources and Transformation,BATLEYS,28/05/2019,"1,399.23",61016-FOOD AND BEVERAGES-PROVISIONS,WALSALL TOWN HALL,Supplies & Services,Revenue
Walsall Council,http://opendatacommunities.org/id/metropolitan-district-council/walsall,WC104-675,31/05/2019,Childrens,BELVIDERE ACADEMY,22/05/2019,950.00,77300-ISB-FORMULA ALLOCATION,OUT OF BOROUGH SCHOOLS,Transfer Payments,Revenue
Walsall Council,http://opendatacommunities.org/id/metropolitan-district-council/walsall,WC104-676,31/05/2019,Adult Social Care,BELVIDERE COURT,24/05/2019,"2,078.03",73502-NURSING,MENTAL HEALTH SUPPORT,Third Party Payments,Revenue
Walsall Council,http://opendatacommunities.org/id/metropolitan-district-council/walsall,WC104-677,31/05/2019,Adult Social Care,BELVIDERE COURT,24/05/2019,"2,113.01",73502-NURSING,MENTAL HEALTH SUPPORT,Third Party Payments,Revenue
Walsall Council,http://opendatacommunities.org/id/metropolitan-district-council/walsall,WC104-678,31/05/2019,Adult Social Care,BELVIDERE COURT,24/05/2019,"2,285.83",73503-NURSING EMI,PHYSICAL SUPPORT,Third Party Payments,Revenue
Walsall Council,http://opendatacommunities.org/id/metropolitan-district-council/walsall,WC104-679,31/05/2019,Adult Social Care,BELVIDERE COURT,24/05/2019,"2,285.83",73503-NURSING EMI,PHYSICAL SUPPORT,Third Party Payments,Revenue
Walsall Council,http://opendatacommunities.org/id/metropolitan-district-council/walsall,WC104-680,31/05/2019,Adult Social Care,REDACTED,03/05/2019,"2,569.64",73506-DIRECT PAYMENT,LEARNING DISABILITY SUPPORT,Third Party Payments,Revenue
Walsall Council,http://opendatacommunities.org/id/metropolitan-district-council/walsall,WC104-681,31/05/2019,Adult Social Care,BENNETT WORKPLACE SOLUTIONS LIMITED,01/05/2019,537.29,60006-NEW-FURNITURE & EQUIPMENT,ACCESS TEAM,Supplies & Services,Revenue
Walsall Council,http://opendatacommunities.org/id/metropolitan-district-council/walsall,WC104-682,31/05/2019,Adult Social Care,BENTLEY COURT PRIORY,22/05/2019,251.50,73025-PROFESSIONAL SERVICES-PRIV CONTRACTOR & OTHER AGENCIES,TRANSITIONAL CARE SUPPORT TEAM,Third Party Payments,Revenue
Walsall Council,http://opendatacommunities.org/id/metropolitan-district-council/walsall,WC104-683,31/05/2019,Adult Social Care,BENTLEY COURT PRIORY,22/05/2019,"2,070.32",73025-PROFESSIONAL SERVICES-PRIV CONTRACTOR & OTHER AGENCIES,TRANSITIONAL CARE SUPPORT TEAM,Third Party Payments,Revenue
Walsall Council,http://opendatacommunities.org/id/metropolitan-district-council/walsall,WC104-684,31/05/2019,Adult Social Care,BENTLEY COURT PRIORY,17/05/2019,"3,081.73",73025-PROFESSIONAL SERVICES-PRIV CONTRACTOR & OTHER AGENCIES,TRANSITIONAL CARE SUPPORT TEAM,Third Party Payments,Revenue
Walsall Council,http://opendatacommunities.org/id/metropolitan-district-council/walsall,WC104-685,31/05/2019,Adult Social Care,BENTLEY COURT PRIORY,24/05/2019,"4,157.39",73502-NURSING,PHYSICAL SUPPORT,Third Party Payments,Revenue
Walsall Council,http://opendatacommunities.org/id/metropolitan-district-council/walsall,WC104-686,31/05/2019,Adult Social Care,BENTLEY COURT PRIORY,24/05/2019,"4,573.11",73503-NURSING EMI,SUPPORT WITH MEMORY & COGNITION,Third Party Payments,Revenue
Walsall Council,http://opendatacommunities.org/id/metropolitan-district-council/walsall,WC104-687,31/05/2019,Adult Social Care,BENTLEY COURT PRIORY,24/05/2019,"4,573.11",73503-NURSING EMI,PHYSICAL SUPPORT,Third Party Payments,Revenue
Walsall Council,http://opendatacommunities.org/id/metropolitan-district-council/walsall,WC104-688,31/05/2019,Adult Social Care,BENTLEY COURT PRIORY,24/05/2019,"4,573.11",73503-NURSING EMI,PHYSICAL SUPPORT,Third Party Payments,Revenue
Walsall Council,http://opendatacommunities.org/id/metropolitan-district-council/walsall,WC104-689,31/05/2019,Adult Social Care,BENTLEY COURT PRIORY,24/05/2019,"4,573.11",73503-NURSING EMI,PHYSICAL SUPPORT,Third Party Payments,Revenue
Walsall Council,http://opendatacommunities.org/id/metropolitan-district-council/walsall,WC104-690,31/05/2019,Adult Social Care,BENTLEY COURT PRIORY,24/05/2019,"4,573.11",73503-NURSING EMI,PHYSICAL SUPPORT,Third Party Payments,Revenue
Walsall Council,http://opendatacommunities.org/id/metropolitan-district-council/walsall,WC104-691,31/05/2019,Adult Social Care,BENTLEY COURT PRIORY,24/05/2019,"4,573.11",73503-NURSING EMI,SOCIAL SUPPORT,Third Party Payments,Revenue
Walsall Council,http://opendatacommunities.org/id/metropolitan-district-council/walsall,WC104-692,31/05/2019,Adult Social Care,BENTLEY COURT PRIORY,24/05/2019,"4,573.11",73503-NURSING EMI,MENTAL HEALTH SUPPORT,Third Party Payments,Revenue
Walsall Council,http://opendatacommunities.org/id/metropolitan-district-council/walsall,WC104-693,31/05/2019,Adult Social Care,BENTLEY COURT PRIORY,24/05/2019,"4,573.11",73503-NURSING EMI,PHYSICAL SUPPORT,Third Party Payments,Revenue
Walsall Council,http://opendatacommunities.org/id/metropolitan-district-council/walsall,WC104-694,31/05/2019,Adult Social Care,BENTLEY COURT PRIORY,24/05/2019,"4,573.11",73503-NURSING EMI,SOCIAL SUPPORT,Third Party Payments,Revenue
Walsall Council,http://opendatacommunities.org/id/metropolitan-district-council/walsall,WC104-695,31/05/2019,Adult Social Care,BENTLEY COURT PRIORY,24/05/2019,"4,573.11",73503-NURSING EMI,SUPPORT WITH MEMORY & COGNITION,Third Party Payments,Revenue
Walsall Council,http://opendatacommunities.org/id/metropolitan-district-council/walsall,WC104-696,31/05/2019,Adult Social Care,BENTLEY COURT PRIORY,29/05/2019,"34,200.00",73025-PROFESSIONAL SERVICES-PRIV CONTRACTOR & OTHER AGENCIES,TRANSITIONAL CARE SUPPORT TEAM,Third Party Payments,Revenue
Walsall Council,http://opendatacommunities.org/id/metropolitan-district-council/walsall,WC104-697,31/05/2019,Adult Social Care,REDACTED,03/05/2019,"1,095.92",73506-DIRECT PAYMENT,PHYSICAL SUPPORT,Third Party Payments,Revenue
Walsall Council,http://opendatacommunities.org/id/metropolitan-district-council/walsall,WC104-698,31/05/2019,Adult Social Care,REDACTED,03/05/2019,"1,777.92",73506-DIRECT PAYMENT,PHYSICAL SUPPORT,Third Party Payments,Revenue
Walsall Council,http://opendatacommunities.org/id/metropolitan-district-council/walsall,WC104-699,31/05/2019,Childrens,REDACTED,17/05/2019,-150.00,74503-BIRTHDAY ALLOWANCE-FOSTER CARERS,INTERNAL FOSTER CARE PROVISION,Transfer Payments,Revenue
Walsall Council,http://opendatacommunities.org/id/metropolitan-district-council/walsall,WC104-700,31/05/2019,Childrens,REDACTED,17/05/2019,180.00,74504-HOLIDAY/CHRISTMAS ALLOWANCE-FOSTER CARERS,INTERNAL FOSTER CARE PROVISION,Transfer Payments,Revenue
Walsall Council,http://opendatacommunities.org/id/metropolitan-district-council/walsall,WC104-701,31/05/2019,Childrens,REDACTED,17/05/2019,720.00,74501-MAINTENANCE ALLOWANCE-FOSTER CARERS,INTERNAL FOSTER CARE PROVISION,Transfer Payments,Revenue
Walsall Council,http://opendatacommunities.org/id/metropolitan-district-council/walsall,WC104-702,31/05/2019,Childrens,REDACTED,17/05/2019,"2,260.69",74508-INTERNAL FOSTER CARERS-CARER FEES,INTERNAL FOSTER CARE PROVISION,Transfer Payments,Revenue
Walsall Council,http://opendatacommunities.org/id/metropolitan-district-council/walsall,WC104-703,31/05/2019,Adult Social Care,REDACTED,03/05/2019,"1,974.00",73506-DIRECT PAYMENT,PHYSICAL SUPPORT,Third Party Payments,Revenue
Walsall Council,http://opendatacommunities.org/id/metropolitan-district-council/walsall,WC104-704,31/05/2019,Economy & Environment,BESCOT STADIUM SUNDAY MARKET LTD,07/05/2019,"2,600.00",73025-PROFESSIONAL SERVICES-PRIV CONTRACTOR & OTHER AGENCIES,WILLENHALL MARKET,Third Party Payments,Revenue
Walsall Council,http://opendatacommunities.org/id/metropolitan-district-council/walsall,WC104-705,31/05/2019,Adult Social Care,BETHPHAGE.,31/05/2019,324.19,73508-COMMUNITY SUPPORTED LIVING/SUPPORTED ACCOMMODATION,LEARNING DISABILITY SUPPORT,Third Party Payments,Revenue
Walsall Council,http://opendatacommunities.org/id/metropolitan-district-council/walsall,WC104-706,31/05/2019,Adult Social Care,BETHPHAGE.,31/05/2019,883.52,73508-COMMUNITY SUPPORTED LIVING/SUPPORTED ACCOMMODATION,LEARNING DISABILITY SUPPORT,Third Party Payments,Revenue
Walsall Council,http://opendatacommunities.org/id/metropolitan-district-council/walsall,WC104-707,31/05/2019,Adult Social Care,BETHPHAGE.,31/05/2019,883.52,73508-COMMUNITY SUPPORTED LIVING/SUPPORTED ACCOMMODATION,LEARNING DISABILITY SUPPORT,Third Party Payments,Revenue
Walsall Council,http://opendatacommunities.org/id/metropolitan-district-council/walsall,WC104-708,31/05/2019,Adult Social Care,BETHPHAGE.,31/05/2019,883.52,73508-COMMUNITY SUPPORTED LIVING/SUPPORTED ACCOMMODATION,LEARNING DISABILITY SUPPORT,Third Party Payments,Revenue
Walsall Council,http://opendatacommunities.org/id/metropolitan-district-council/walsall,WC104-709,31/05/2019,Adult Social Care,BETHPHAGE.,31/05/2019,972.57,73507-DOMICILIARY CARE,LEARNING DISABILITY SUPPORT,Third Party Payments,Revenue
Walsall Council,http://opendatacommunities.org/id/metropolitan-district-council/walsall,WC104-710,31/05/2019,Adult Social Care,BETHPHAGE.,31/05/2019,983.25,73507-DOMICILIARY CARE,LEARNING DISABILITY SUPPORT,Third Party Payments,Revenue
Walsall Council,http://opendatacommunities.org/id/metropolitan-district-council/walsall,WC104-711,31/05/2019,Adult Social Care,BETHPHAGE.,24/05/2019,"1,026.00",73508-COMMUNITY SUPPORTED LIVING/SUPPORTED ACCOMMODATION,LEARNING DISABILITY SUPPORT,Third Party Payments,Revenue
Walsall Council,http://opendatacommunities.org/id/metropolitan-district-council/walsall,WC104-712,31/05/2019,Adult Social Care,BETHPHAGE.,24/05/2019,"1,026.00",73508-COMMUNITY SUPPORTED LIVING/SUPPORTED ACCOMMODATION,LEARNING DISABILITY SUPPORT,Third Party Payments,Revenue
Walsall Council,http://opendatacommunities.org/id/metropolitan-district-council/walsall,WC104-713,31/05/2019,Adult Social Care,BETHPHAGE.,24/05/2019,"1,026.00",73508-COMMUNITY SUPPORTED LIVING/SUPPORTED ACCOMMODATION,LEARNING DISABILITY SUPPORT,Third Party Payments,Revenue
Walsall Council,http://opendatacommunities.org/id/metropolitan-district-council/walsall,WC104-714,31/05/2019,Adult Social Care,BETHPHAGE.,24/05/2019,"1,026.00",73508-COMMUNITY SUPPORTED LIVING/SUPPORTED ACCOMMODATION,LEARNING DISABILITY SUPPORT,Third Party Payments,Revenue
Walsall Council,http://opendatacommunities.org/id/metropolitan-district-council/walsall,WC104-715,31/05/2019,Adult Social Care,BETHPHAGE.,31/05/2019,"1,026.00",73508-COMMUNITY SUPPORTED LIVING/SUPPORTED ACCOMMODATION,LEARNING DISABILITY SUPPORT,Third Party Payments,Revenue
Walsall Council,http://opendatacommunities.org/id/metropolitan-district-council/walsall,WC104-716,31/05/2019,Adult Social Care,BETHPHAGE.,31/05/2019,"1,026.00",73508-COMMUNITY SUPPORTED LIVING/SUPPORTED ACCOMMODATION,LEARNING DISABILITY SUPPORT,Third Party Payments,Revenue
Walsall Council,http://opendatacommunities.org/id/metropolitan-district-council/walsall,WC104-717,31/05/2019,Adult Social Care,BETHPHAGE.,31/05/2019,"1,104.40",73508-COMMUNITY SUPPORTED LIVING/SUPPORTED ACCOMMODATION,LEARNING DISABILITY SUPPORT,Third Party Payments,Revenue
Walsall Council,http://opendatacommunities.org/id/metropolitan-district-council/walsall,WC104-718,31/05/2019,Adult Social Care,BETHPHAGE.,31/05/2019,"1,111.52",73508-COMMUNITY SUPPORTED LIVING/SUPPORTED ACCOMMODATION,LEARNING DISABILITY SUPPORT,Third Party Payments,Revenue
Walsall Council,http://opendatacommunities.org/id/metropolitan-district-council/walsall,WC104-719,31/05/2019,Adult Social Care,BETHPHAGE.,24/05/2019,"1,282.50",73508-COMMUNITY SUPPORTED LIVING/SUPPORTED ACCOMMODATION,LEARNING DISABILITY SUPPORT,Third Party Payments,Revenue
Walsall Council,http://opendatacommunities.org/id/metropolitan-district-council/walsall,WC104-720,31/05/2019,Adult Social Care,BETHPHAGE.,31/05/2019,"1,296.76",73508-COMMUNITY SUPPORTED LIVING/SUPPORTED ACCOMMODATION,LEARNING DISABILITY SUPPORT,Third Party Payments,Revenue
Walsall Council,http://opendatacommunities.org/id/metropolitan-district-council/walsall,WC104-721,31/05/2019,Adult Social Care,BETHPHAGE.,31/05/2019,"1,296.76",73508-COMMUNITY SUPPORTED LIVING/SUPPORTED ACCOMMODATION,LEARNING DISABILITY SUPPORT,Third Party Payments,Revenue
Walsall Council,http://opendatacommunities.org/id/metropolitan-district-council/walsall,WC104-722,31/05/2019,Adult Social Care,BETHPHAGE.,31/05/2019,"1,296.76",73508-COMMUNITY SUPPORTED LIVING/SUPPORTED ACCOMMODATION,LEARNING DISABILITY SUPPORT,Third Party Payments,Revenue
Walsall Council,http://opendatacommunities.org/id/metropolitan-district-council/walsall,WC104-723,31/05/2019,Adult Social Care,BETHPHAGE.,31/05/2019,"1,296.76",73508-COMMUNITY SUPPORTED LIVING/SUPPORTED ACCOMMODATION,LEARNING DISABILITY SUPPORT,Third Party Payments,Revenue
Walsall Council,http://opendatacommunities.org/id/metropolitan-district-council/walsall,WC104-724,31/05/2019,Adult Social Care,BETHPHAGE.,31/05/2019,"1,339.52",73508-COMMUNITY SUPPORTED LIVING/SUPPORTED ACCOMMODATION,LEARNING DISABILITY SUPPORT,Third Party Payments,Revenue
Walsall Council,http://opendatacommunities.org/id/metropolitan-district-council/walsall,WC104-725,31/05/2019,Adult Social Care,BETHPHAGE.,31/05/2019,"1,620.95",73508-COMMUNITY SUPPORTED LIVING/SUPPORTED ACCOMMODATION,LEARNING DISABILITY SUPPORT,Third Party Payments,Revenue
Walsall Council,http://opendatacommunities.org/id/metropolitan-district-council/walsall,WC104-726,31/05/2019,Adult Social Care,BETHPHAGE.,23/05/2019,"1,638.75",73508-COMMUNITY SUPPORTED LIVING/SUPPORTED ACCOMMODATION,LEARNING DISABILITY SUPPORT,Third Party Payments,Revenue
Walsall Council,http://opendatacommunities.org/id/metropolitan-district-council/walsall,WC104-727,31/05/2019,Adult Social Care,BETHPHAGE.,31/05/2019,"2,693.24",73508-COMMUNITY SUPPORTED LIVING/SUPPORTED ACCOMMODATION,LEARNING DISABILITY SUPPORT,Third Party Payments,Revenue
Walsall Council,http://opendatacommunities.org/id/metropolitan-district-council/walsall,WC104-728,31/05/2019,Adult Social Care,BETHPHAGE.,31/05/2019,"2,693.24",73508-COMMUNITY SUPPORTED LIVING/SUPPORTED ACCOMMODATION,LEARNING DISABILITY SUPPORT,Third Party Payments,Revenue
Walsall Council,http://opendatacommunities.org/id/metropolitan-district-council/walsall,WC104-729,31/05/2019,Adult Social Care,BETHPHAGE.,31/05/2019,"2,693.24",73508-COMMUNITY SUPPORTED LIVING/SUPPORTED ACCOMMODATION,LEARNING DISABILITY SUPPORT,Third Party Payments,Revenue
Walsall Council,http://opendatacommunities.org/id/metropolitan-district-council/walsall,WC104-730,31/05/2019,Adult Social Care,BETHPHAGE.,31/05/2019,"2,693.24",73508-COMMUNITY SUPPORTED LIVING/SUPPORTED ACCOMMODATION,LEARNING DISABILITY SUPPORT,Third Party Payments,Revenue
Walsall Council,http://opendatacommunities.org/id/metropolitan-district-council/walsall,WC104-731,31/05/2019,Adult Social Care,BETHPHAGE.,31/05/2019,"5,744.04",73508-COMMUNITY SUPPORTED LIVING/SUPPORTED ACCOMMODATION,MENTAL HEALTH SUPPORT,Third Party Payments,Revenue
Walsall Council,http://opendatacommunities.org/id/metropolitan-district-council/walsall,WC104-732,31/05/2019,Adult Social Care,BETHPHAGE.,31/05/2019,"5,744.04",73508-COMMUNITY SUPPORTED LIVING/SUPPORTED ACCOMMODATION,MENTAL HEALTH SUPPORT,Third Party Payments,Revenue
Walsall Council,http://opendatacommunities.org/id/metropolitan-district-council/walsall,WC104-733,31/05/2019,Adult Social Care,BETHPHAGE.,31/05/2019,"5,744.04",73508-COMMUNITY SUPPORTED LIVING/SUPPORTED ACCOMMODATION,MENTAL HEALTH SUPPORT,Third Party Payments,Revenue
Walsall Council,http://opendatacommunities.org/id/metropolitan-district-council/walsall,WC104-734,31/05/2019,Adult Social Care,BETHPHAGE.,31/05/2019,"5,744.04",73508-COMMUNITY SUPPORTED LIVING/SUPPORTED ACCOMMODATION,MENTAL HEALTH SUPPORT,Third Party Payments,Revenue
Walsall Council,http://opendatacommunities.org/id/metropolitan-district-council/walsall,WC104-735,31/05/2019,Adult Social Care,BETHPHAGE.,31/05/2019,"5,744.04",73508-COMMUNITY SUPPORTED LIVING/SUPPORTED ACCOMMODATION,MENTAL HEALTH SUPPORT,Third Party Payments,Revenue
Walsall Council,http://opendatacommunities.org/id/metropolitan-district-council/walsall,WC104-736,31/05/2019,Adult Social Care,BETHPHAGE.,31/05/2019,"5,744.04",73508-COMMUNITY SUPPORTED LIVING/SUPPORTED ACCOMMODATION,MENTAL HEALTH SUPPORT,Third Party Payments,Revenue
Walsall Council,http://opendatacommunities.org/id/metropolitan-district-council/walsall,WC104-737,31/05/2019,Adult Social Care,BETHPHAGE.,31/05/2019,"7,180.05",73508-COMMUNITY SUPPORTED LIVING/SUPPORTED ACCOMMODATION,MENTAL HEALTH SUPPORT,Third Party Payments,Revenue
Walsall Council,http://opendatacommunities.org/id/metropolitan-district-council/walsall,WC104-738,31/05/2019,Adult Social Care,BETHPHAGE.,31/05/2019,"7,180.05",73508-COMMUNITY SUPPORTED LIVING/SUPPORTED ACCOMMODATION,MENTAL HEALTH SUPPORT,Third Party Payments,Revenue
Walsall Council,http://opendatacommunities.org/id/metropolitan-district-council/walsall,WC104-739,31/05/2019,Adult Social Care,REDACTED,03/05/2019,949.52,73506-DIRECT PAYMENT,PHYSICAL SUPPORT,Third Party Payments,Revenue
Walsall Council,http://opendatacommunities.org/id/metropolitan-district-council/walsall,WC104-740,31/05/2019,Resources and Transformation,BFA SAFETY TRAINING,29/05/2019,315.00,30030-EXTERNAL TRAINING,HEALTH & SAFETY,Employees,Revenue
Walsall Council,http://opendatacommunities.org/id/metropolitan-district-council/walsall,WC104-741,31/05/2019,Resources and Transformation,BFA SAFETY TRAINING,21/05/2019,400.00,30030-EXTERNAL TRAINING,HEALTH & SAFETY,Employees,Revenue
Walsall Council,http://opendatacommunities.org/id/metropolitan-district-council/walsall,WC104-742,31/05/2019,Resources and Transformation,BFA SAFETY TRAINING,21/05/2019,525.00,30030-EXTERNAL TRAINING,HEALTH & SAFETY,Employees,Revenue
Walsall Council,http://opendatacommunities.org/id/metropolitan-district-council/walsall,WC104-743,31/05/2019,Adult Social Care,BID CENTRE FOR DEAF PEOPLE,16/05/2019,270.00,"62521-INTERPRETATION,TRANSLATION & HUMAN AIDS TO TRANSCRIPTION",ACCESS TEAM,Supplies & Services,Revenue
Walsall Council,http://opendatacommunities.org/id/metropolitan-district-council/walsall,WC104-744,31/05/2019,Adult Social Care,BID CENTRE FOR DEAF PEOPLE,16/05/2019,374.40,"62521-INTERPRETATION,TRANSLATION & HUMAN AIDS TO TRANSCRIPTION",ACCESS TEAM,Supplies & Services,Revenue
Walsall Council,http://opendatacommunities.org/id/metropolitan-district-council/walsall,WC104-745,31/05/2019,Economy & Environment,BIFFA WASTE SERVICES LTD,22/05/2019,196.00,73029-HAZARDOUS WASTE REMOVAL/DISPOSAL-PRIV CONTRACTOR FEES,WASTE DISPOSAL - RESIDUAL,Third Party Payments,Revenue
Walsall Council,http://opendatacommunities.org/id/metropolitan-district-council/walsall,WC104-746,31/05/2019,Economy & Environment,BIFFA WASTE SERVICES LTD,22/05/2019,312.42,73039-LANDFILL TAX-PRIV CONTRACTOR FEES,WASTE DISPOSAL - RESIDUAL,Third Party Payments,Revenue
Walsall Council,http://opendatacommunities.org/id/metropolitan-district-council/walsall,WC104-747,31/05/2019,Childrens,REDACTED,07/05/2019,431.60,73506-DIRECT PAYMENT,FAMILY SUPPORT - DIRECT PAYMENTS,Third Party Payments,Revenue
Walsall Council,http://opendatacommunities.org/id/metropolitan-district-council/walsall,WC104-748,31/05/2019,Economy & Environment,BILLY ROSS WHOLESALE,22/05/2019,236.88,60500-GENERAL MATERIALS,LEATHER MUSEUM SHOP STOCK,Supplies & Services,Revenue
Walsall Council,http://opendatacommunities.org/id/metropolitan-district-council/walsall,WC104-749,31/05/2019,Childrens,BIRCHILLS C OF E COMMUNITY ACADEMY,10/05/2019,"5,850.00",66505-OTHER-GRANTS TO OTHER ORGS,EARLY YEARS - DEPRIVATION FUNDING,Third Party Payments,Revenue
Walsall Council,http://opendatacommunities.org/id/metropolitan-district-council/walsall,WC104-750,31/05/2019,Childrens,BIRCHILLS C OF E COMMUNITY ACADEMY,23/05/2019,"29,217.72",66502-TOP UP FUNDING -GRANTS TO SCHOOLS,BIRCHILLS CE COMMUNITY ACADEMY,Third Party Payments,Revenue
Walsall Council,http://opendatacommunities.org/id/metropolitan-district-council/walsall,WC104-751,31/05/2019,Childrens,BIRCHILLS C OF E COMMUNITY ACADEMY,10/05/2019,"44,109.00",66505-OTHER-GRANTS TO OTHER ORGS,EARLY YEARS - 3 YR OLDS,Third Party Payments,Revenue
Walsall Council,http://opendatacommunities.org/id/metropolitan-district-council/walsall,WC104-752,31/05/2019,Economy & Environment,BIRMINGHAM CHILDRENS HOSPITAL,01/05/2019,"1,194.15",74000-OTHER AGENCY FEES,CORONERS SERVICE,Third Party Payments,Revenue
Walsall Council,http://opendatacommunities.org/id/metropolitan-district-council/walsall,WC104-753,31/05/2019,Childrens,BIRMINGHAM CITY COUNCIL,17/05/2019,"1,956.16",74037-INDEPENDENT FOSTER CARE-OTH AGENCY PROVISION,EXTERNAL FOSTER CARE PROVISION,Third Party Payments,Revenue
Walsall Council,http://opendatacommunities.org/id/metropolitan-district-council/walsall,WC104-754,31/05/2019,Childrens,BIRMINGHAM CITY COUNCIL,08/05/2019,"3,833.66",66502-TOP UP FUNDING -GRANTS TO SCHOOLS,MAINTAINED PROVIDERS,Third Party Payments,Revenue
Walsall Council,http://opendatacommunities.org/id/metropolitan-district-council/walsall,WC104-755,31/05/2019,Childrens,BIRMINGHAM CITY COUNCIL,08/05/2019,"4,888.00",66502-TOP UP FUNDING -GRANTS TO SCHOOLS,MAINTAINED PROVIDERS,Third Party Payments,Revenue
Walsall Council,http://opendatacommunities.org/id/metropolitan-district-council/walsall,WC104-756,31/05/2019,Childrens,BIRMINGHAM CITY COUNCIL,08/05/2019,"6,644.00",66502-TOP UP FUNDING -GRANTS TO SCHOOLS,MAINTAINED PROVIDERS,Third Party Payments,Revenue
Walsall Council,http://opendatacommunities.org/id/metropolitan-district-council/walsall,WC104-757,31/05/2019,Childrens,BIRMINGHAM CITY COUNCIL,08/05/2019,"9,638.00",66502-TOP UP FUNDING -GRANTS TO SCHOOLS,MAINTAINED PROVIDERS,Third Party Payments,Revenue
Walsall Council,http://opendatacommunities.org/id/metropolitan-district-council/walsall,WC104-758,31/05/2019,Childrens,BIRMINGHAM CITY COUNCIL,08/05/2019,"11,553.00",66502-TOP UP FUNDING -GRANTS TO SCHOOLS,MAINTAINED PROVIDERS,Third Party Payments,Revenue
Walsall Council,http://opendatacommunities.org/id/metropolitan-district-council/walsall,WC104-759,31/05/2019,Childrens,BIRMINGHAM CITY COUNCIL,08/05/2019,"13,661.00",66502-TOP UP FUNDING -GRANTS TO SCHOOLS,MAINTAINED PROVIDERS,Third Party Payments,Revenue
Walsall Council,http://opendatacommunities.org/id/metropolitan-district-council/walsall,WC104-760,31/05/2019,Childrens,BIRMINGHAM CITY COUNCIL,08/05/2019,"18,259.00",66502-TOP UP FUNDING -GRANTS TO SCHOOLS,MAINTAINED PROVIDERS,Third Party Payments,Revenue
Walsall Council,http://opendatacommunities.org/id/metropolitan-district-council/walsall,WC104-761,31/05/2019,Economy & Environment,BLACK COUNTRY CHAMBER OF COMMERCE & INDUSTRY.,14/05/2019,"3,500.00",63000-PROFESSIONAL FEES AND SERVICES,EMPLOYMENT GROWTH TEAM,Supplies & Services,Revenue
Walsall Council,http://opendatacommunities.org/id/metropolitan-district-council/walsall,WC104-762,31/05/2019,Economy & Environment,BLACK COUNTRY CONSORTIUM LIMITED,07/05/2019,"17,128.98",65500-GRANTS TO ASSOCIATIONS,GROWTH HUB,Third Party Payments,Revenue
Walsall Council,http://opendatacommunities.org/id/metropolitan-district-council/walsall,WC104-763,31/05/2019,Economy & Environment,BLACK COUNTRY CONSORTIUM LIMITED,03/05/2019,"36,712.21",65500-GRANTS TO ASSOCIATIONS,GROWTH HUB,Third Party Payments,Revenue
Walsall Council,http://opendatacommunities.org/id/metropolitan-district-council/walsall,WC104-764,31/05/2019,Economy & Environment,BLACK COUNTRY CONSORTIUM LIMITED,03/05/2019,"81,168.68",65500-GRANTS TO ASSOCIATIONS,GROWTH HUB,Third Party Payments,Revenue
Walsall Council,http://opendatacommunities.org/id/metropolitan-district-council/walsall,WC104-765,31/05/2019,Economy & Environment,BLACK COUNTRY DANCE HUB,23/05/2019,"5,000.00",63000-PROFESSIONAL FEES AND SERVICES,FOREST ARTS CENTRE,Supplies & Services,Revenue
Walsall Council,http://opendatacommunities.org/id/metropolitan-district-council/walsall,WC104-766,31/05/2019,Childrens,BLACK COUNTRY WOMENS AID,16/05/2019,"6,250.00",63000-PROFESSIONAL FEES AND SERVICES,TOXIC TRIO,Supplies & Services,Revenue
Walsall Council,http://opendatacommunities.org/id/metropolitan-district-council/walsall,WC104-767,31/05/2019,Childrens,BLACK COUNTRY WOMENS AID,08/05/2019,"18,466.27",63000-PROFESSIONAL FEES AND SERVICES,TOXIC TRIO,Supplies & Services,Revenue
Walsall Council,http://opendatacommunities.org/id/metropolitan-district-council/walsall,WC104-768,31/05/2019,Childrens,BLACK COUNTRY WOMENS AID,17/05/2019,"18,466.27",63000-PROFESSIONAL FEES AND SERVICES,TOXIC TRIO,Supplies & Services,Revenue
Walsall Council,http://opendatacommunities.org/id/metropolitan-district-council/walsall,WC104-769,31/05/2019,Childrens,BLAKENALL HEATH JMI SCHOOL,23/05/2019,"4,230.78",66502-TOP UP FUNDING -GRANTS TO SCHOOLS,BLAKENALL HEATH JUNIOR SCHOOL,Third Party Payments,Revenue
Walsall Council,http://opendatacommunities.org/id/metropolitan-district-council/walsall,WC104-770,31/05/2019,Childrens,BLOXWICH ACADEMY,10/05/2019,"5,700.00",66505-OTHER-GRANTS TO OTHER ORGS,EARLY YEARS - DEPRIVATION FUNDING,Third Party Payments,Revenue
Walsall Council,http://opendatacommunities.org/id/metropolitan-district-council/walsall,WC104-771,31/05/2019,Childrens,BLOXWICH ACADEMY,23/05/2019,"8,673.08",66502-TOP UP FUNDING -GRANTS TO SCHOOLS,BLOXWICH ACADEMY,Third Party Payments,Revenue
Walsall Council,http://opendatacommunities.org/id/metropolitan-district-council/walsall,WC104-772,31/05/2019,Childrens,BLOXWICH ACADEMY,23/05/2019,"9,683.96",66502-TOP UP FUNDING -GRANTS TO SCHOOLS,BLOXWICH ACADEMY,Third Party Payments,Revenue
Walsall Council,http://opendatacommunities.org/id/metropolitan-district-council/walsall,WC104-773,31/05/2019,Childrens,BLOXWICH ACADEMY,10/05/2019,"35,626.50",66505-OTHER-GRANTS TO OTHER ORGS,EARLY YEARS - 3 YR OLDS,Third Party Payments,Revenue
Walsall Council,http://opendatacommunities.org/id/metropolitan-district-council/walsall,WC104-774,31/05/2019,Adult Social Care,BLOXWICH COMMUNITY PARTNERSHIP.,01/05/2019,261.00,73511-DAY CARE,SUPPORT WITH MEMORY & COGNITION,Third Party Payments,Revenue
Walsall Council,http://opendatacommunities.org/id/metropolitan-district-council/walsall,WC104-775,31/05/2019,Adult Social Care,BLOXWICH COMMUNITY PARTNERSHIP.,01/05/2019,261.00,73511-DAY CARE,SUPPORT WITH MEMORY & COGNITION,Third Party Payments,Revenue
Walsall Council,http://opendatacommunities.org/id/metropolitan-district-council/walsall,WC104-776,31/05/2019,Adult Social Care,BLOXWICH COMMUNITY PARTNERSHIP.,01/05/2019,261.00,73511-DAY CARE,SUPPORT WITH MEMORY & COGNITION,Third Party Payments,Revenue
Walsall Council,http://opendatacommunities.org/id/metropolitan-district-council/walsall,WC104-777,31/05/2019,Adult Social Care,BLOXWICH COMMUNITY PARTNERSHIP.,01/05/2019,261.00,73511-DAY CARE,SUPPORT WITH MEMORY & COGNITION,Third Party Payments,Revenue
Walsall Council,http://opendatacommunities.org/id/metropolitan-district-council/walsall,WC104-778,31/05/2019,Resources and Transformation,BLOXWICH COMMUNITY PARTNERSHIP.,14/05/2019,372.50,61002-DRY FOODS-PROVISIONS,TOWN HALL RESTAURANT BISTRO,Supplies & Services,Revenue
Walsall Council,http://opendatacommunities.org/id/metropolitan-district-council/walsall,WC104-779,31/05/2019,Adult Social Care,BLOXWICH COMMUNITY PARTNERSHIP.,24/05/2019,546.00,73508-COMMUNITY SUPPORTED LIVING/SUPPORTED ACCOMMODATION,PHYSICAL SUPPORT,Third Party Payments,Revenue
Walsall Council,http://opendatacommunities.org/id/metropolitan-district-council/walsall,WC104-780,31/05/2019,Resources and Transformation,BLOXWICH COMMUNITY PARTNERSHIP.,07/05/2019,"5,250.00",66500-GRANTS TO OTHER ORGS,BLOXWICH COMMUNITY PARTNERSHIP,Third Party Payments,Revenue
Walsall Council,http://opendatacommunities.org/id/metropolitan-district-council/walsall,WC104-781,31/05/2019,Childrens,BLUE COAT CHURCH OF ENGLAND ACADEMY,23/05/2019,"34,776.28",66502-TOP UP FUNDING -GRANTS TO SCHOOLS,BLUE COAT CofE ACADEMY,Third Party Payments,Revenue
Walsall Council,http://opendatacommunities.org/id/metropolitan-district-council/walsall,WC104-782,31/05/2019,Economy & Environment,BME UNITED LTD,03/05/2019,"6,000.00",63000-PROFESSIONAL FEES AND SERVICES,SMOKING CESSATION,Supplies & Services,Revenue
Walsall Council,http://opendatacommunities.org/id/metropolitan-district-council/walsall,WC104-783,31/05/2019,Childrens,REDACTED,07/05/2019,"1,468.80",73506-DIRECT PAYMENT,FAMILY SUPPORT - DIRECT PAYMENTS,Third Party Payments,Revenue
Walsall Council,http://opendatacommunities.org/id/metropolitan-district-council/walsall,WC104-784,31/05/2019,Economy & Environment,BOC LTD,28/05/2019,540.77,60500-GENERAL MATERIALS,FLEET,Supplies & Services,Revenue
Walsall Council,http://opendatacommunities.org/id/metropolitan-district-council/walsall,WC104-785,31/05/2019,Economy & Environment,BOC LTD,15/05/2019,"1,288.41",60500-GENERAL MATERIALS,POLLUTION DIVISION,Supplies & Services,Revenue
Walsall Council,http://opendatacommunities.org/id/metropolitan-district-council/walsall,WC104-786,31/05/2019,Childrens,BOOSTERS OUT OF SCHOOL CLUB,21/05/2019,266.00,63120-CRECHE FACILITIES-SERVICES-FEES,FOSTERING SUPPORT TEAM,Supplies & Services,Revenue
